Workbook

Sheet Input
B4: Strategic energy management assessment
C6: Business Name
C8: Sector
C10: Address
C12: City
C14: Postal Code
D15: eg. V3N 4X8
C17: Date
C18: =TODAY() -> 2018-07-05
C19: First Name
C21: Last Name
C23: Job Title
C25: Email
C28: Annual Electric Cost ($)
C30: Annual Energy Consumption (kWh/yr)
C33: Number one barrier for implementing energy efficient solutions:
C35: Please comment below:
C40: Number one reason for implementing energy efficient solutions:
C42: Please comment below:
C47: BC Hydro Account Number
D48: optional

Sheet Lighting (hidden)
B6: Question Set:
B7: =Sector -> 0
B8: Section:
B9: Lighting
B11: Question | C11: Response
A12: 1 | B12: =IFERROR(INDEX(Table3[Question],MATCH(INDEX(Table7[Q],MATCH(INDEX(Table1[Evaluator Question Set],MATCH($B$7,Table1[BC Hydro Sector Allocation],0)),Table7[Question Set],0))&"."&INDEX(Table5[S],MATCH($B$9,Table5[Diagnostic Heading],0))&"."&$A12,Table3[ID],0)),"hide") -> hide
A13: 2 | B13: =IFERROR(INDEX(Table3[Question],MATCH(INDEX(Table7[Q],MATCH(INDEX(Table1[Evaluator Question Set],MATCH($B$7,Table1[BC Hydro Sector Allocation],0)),Table7[Question Set],0))&"."&INDEX(Table5[S],MATCH($B$9,Table5[Diagnostic Heading],0))&"."&$A13,Table3[ID],0)),"hide") -> hide
A14: 3 | B14: =IFERROR(INDEX(Table3[Question],MATCH(INDEX(Table7[Q],MATCH(INDEX(Table1[Evaluator Question Set],MATCH($B$7,Table1[BC Hydro Sector Allocation],0)),Table7[Question Set],0))&"."&INDEX(Table5[S],MATCH($B$9,Table5[Diagnostic Heading],0))&"."&$A14,Table3[ID],0)),"hide") -> hide
A15: 4 | B15: =IFERROR(INDEX(Table3[Question],MATCH(INDEX(Table7[Q],MATCH(INDEX(Table1[Evaluator Question Set],MATCH($B$7,Table1[BC Hydro Sector Allocation],0)),Table7[Question Set],0))&"."&INDEX(Table5[S],MATCH($B$9,Table5[Diagnostic Heading],0))&"."&$A15,Table3[ID],0)),"hide") -> hide
A16: 5 | B16: =IFERROR(INDEX(Table3[Question],MATCH(INDEX(Table7[Q],MATCH(INDEX(Table1[Evaluator Question Set],MATCH($B$7,Table1[BC Hydro Sector Allocation],0)),Table7[Question Set],0))&"."&INDEX(Table5[S],MATCH($B$9,Table5[Diagnostic Heading],0))&"."&$A16,Table3[ID],0)),"hide") -> hide

Sheet HVAC and Refrigeration (hidden)
B6: Question Set:
B7: =Sector -> 0
B8: Section:
B9: Heating, Ventilation, Air Conditioning / Refrigeration
B11: Question | C11: Response
A12: 1 | B12: =IFERROR(INDEX(Table3[Question],MATCH(INDEX(Table7[Q],MATCH(INDEX(Table1[Evaluator Question Set],MATCH($B$7,Table1[BC Hydro Sector Allocation],0)),Table7[Question Set],0))&"."&INDEX(Table5[S],MATCH($B$9,Table5[Diagnostic Heading],0))&"."&$A12,Table3[ID],0)),"hide") -> hide
A13: 2 | B13: =IFERROR(INDEX(Table3[Question],MATCH(INDEX(Table7[Q],MATCH(INDEX(Table1[Evaluator Question Set],MATCH($B$7,Table1[BC Hydro Sector Allocation],0)),Table7[Question Set],0))&"."&INDEX(Table5[S],MATCH($B$9,Table5[Diagnostic Heading],0))&"."&$A13,Table3[ID],0)),"hide") -> hide
A14: 3 | B14: =IFERROR(INDEX(Table3[Question],MATCH(INDEX(Table7[Q],MATCH(INDEX(Table1[Evaluator Question Set],MATCH($B$7,Table1[BC Hydro Sector Allocation],0)),Table7[Question Set],0))&"."&INDEX(Table5[S],MATCH($B$9,Table5[Diagnostic Heading],0))&"."&$A14,Table3[ID],0)),"hide") -> hide
A15: 4 | B15: =IFERROR(INDEX(Table3[Question],MATCH(INDEX(Table7[Q],MATCH(INDEX(Table1[Evaluator Question Set],MATCH($B$7,Table1[BC Hydro Sector Allocation],0)),Table7[Question Set],0))&"."&INDEX(Table5[S],MATCH($B$9,Table5[Diagnostic Heading],0))&"."&$A15,Table3[ID],0)),"hide") -> hide
A16: 5 | B16: =IFERROR(INDEX(Table3[Question],MATCH(INDEX(Table7[Q],MATCH(INDEX(Table1[Evaluator Question Set],MATCH($B$7,Table1[BC Hydro Sector Allocation],0)),Table7[Question Set],0))&"."&INDEX(Table5[S],MATCH($B$9,Table5[Diagnostic Heading],0))&"."&$A16,Table3[ID],0)),"hide") -> hide

Sheet Energy Efficient Equipment (hidden)
B6: Question Set:
B7: =Sector -> 0
B8: Section:
B9: Energy Efficient Equipment
B11: Question | C11: Response
A12: 1 | B12: =IFERROR(INDEX(Table3[Question],MATCH(INDEX(Table7[Q],MATCH(INDEX(Table1[Evaluator Question Set],MATCH($B$7,Table1[BC Hydro Sector Allocation],0)),Table7[Question Set],0))&"."&INDEX(Table5[S],MATCH($B$9,Table5[Diagnostic Heading],0))&"."&$A12,Table3[ID],0)),"hide") -> hide
A13: 2 | B13: =IFERROR(INDEX(Table3[Question],MATCH(INDEX(Table7[Q],MATCH(INDEX(Table1[Evaluator Question Set],MATCH($B$7,Table1[BC Hydro Sector Allocation],0)),Table7[Question Set],0))&"."&INDEX(Table5[S],MATCH($B$9,Table5[Diagnostic Heading],0))&"."&$A13,Table3[ID],0)),"hide") -> hide
A14: 3 | B14: =IFERROR(INDEX(Table3[Question],MATCH(INDEX(Table7[Q],MATCH(INDEX(Table1[Evaluator Question Set],MATCH($B$7,Table1[BC Hydro Sector Allocation],0)),Table7[Question Set],0))&"."&INDEX(Table5[S],MATCH($B$9,Table5[Diagnostic Heading],0))&"."&$A14,Table3[ID],0)),"hide") -> hide
A15: 4 | B15: =IFERROR(INDEX(Table3[Question],MATCH(INDEX(Table7[Q],MATCH(INDEX(Table1[Evaluator Question Set],MATCH($B$7,Table1[BC Hydro Sector Allocation],0)),Table7[Question Set],0))&"."&INDEX(Table5[S],MATCH($B$9,Table5[Diagnostic Heading],0))&"."&$A15,Table3[ID],0)),"hide") -> hide
A16: 5 | B16: =IFERROR(INDEX(Table3[Question],MATCH(INDEX(Table7[Q],MATCH(INDEX(Table1[Evaluator Question Set],MATCH($B$7,Table1[BC Hydro Sector Allocation],0)),Table7[Question Set],0))&"."&INDEX(Table5[S],MATCH($B$9,Table5[Diagnostic Heading],0))&"."&$A16,Table3[ID],0)),"hide") -> hide

Sheet O&M Practices (hidden)
B6: Question Set:
B7: =Sector -> 0
B8: Section:
B9: Operating and Maintenance Practices
B11: Question | C11: Response
A12: 1 | B12: =IFERROR(INDEX(Table3[Question],MATCH(INDEX(Table7[Q],MATCH(INDEX(Table1[Evaluator Question Set],MATCH($B$7,Table1[BC Hydro Sector Allocation],0)),Table7[Question Set],0))&"."&INDEX(Table5[S],MATCH($B$9,Table5[Diagnostic Heading],0))&"."&$A12,Table3[ID],0)),"hide") -> hide
A13: 2 | B13: =IFERROR(INDEX(Table3[Question],MATCH(INDEX(Table7[Q],MATCH(INDEX(Table1[Evaluator Question Set],MATCH($B$7,Table1[BC Hydro Sector Allocation],0)),Table7[Question Set],0))&"."&INDEX(Table5[S],MATCH($B$9,Table5[Diagnostic Heading],0))&"."&$A13,Table3[ID],0)),"hide") -> hide
A14: 3 | B14: =IFERROR(INDEX(Table3[Question],MATCH(INDEX(Table7[Q],MATCH(INDEX(Table1[Evaluator Question Set],MATCH($B$7,Table1[BC Hydro Sector Allocation],0)),Table7[Question Set],0))&"."&INDEX(Table5[S],MATCH($B$9,Table5[Diagnostic Heading],0))&"."&$A14,Table3[ID],0)),"hide") -> hide
A15: 4 | B15: =IFERROR(INDEX(Table3[Question],MATCH(INDEX(Table7[Q],MATCH(INDEX(Table1[Evaluator Question Set],MATCH($B$7,Table1[BC Hydro Sector Allocation],0)),Table7[Question Set],0))&"."&INDEX(Table5[S],MATCH($B$9,Table5[Diagnostic Heading],0))&"."&$A15,Table3[ID],0)),"hide") -> hide
A16: 5 | B16: =IFERROR(INDEX(Table3[Question],MATCH(INDEX(Table7[Q],MATCH(INDEX(Table1[Evaluator Question Set],MATCH($B$7,Table1[BC Hydro Sector Allocation],0)),Table7[Question Set],0))&"."&INDEX(Table5[S],MATCH($B$9,Table5[Diagnostic Heading],0))&"."&$A16,Table3[ID],0)),"hide") -> hide

Sheet Management Practice (hidden)
B6: Question Set:
B7: =Sector -> 0
B8: Section:
B9: Management Practice
B11: Question | C11: Response
A12: 1 | B12: =IFERROR(INDEX(Table3[Question],MATCH(INDEX(Table7[Q],MATCH(INDEX(Table1[Evaluator Question Set],MATCH($B$7,Table1[BC Hydro Sector Allocation],0)),Table7[Question Set],0))&"."&INDEX(Table5[S],MATCH($B$9,Table5[Diagnostic Heading],0))&"."&$A12,Table3[ID],0)),"hide") -> hide
A13: 2 | B13: =IFERROR(INDEX(Table3[Question],MATCH(INDEX(Table7[Q],MATCH(INDEX(Table1[Evaluator Question Set],MATCH($B$7,Table1[BC Hydro Sector Allocation],0)),Table7[Question Set],0))&"."&INDEX(Table5[S],MATCH($B$9,Table5[Diagnostic Heading],0))&"."&$A13,Table3[ID],0)),"hide") -> hide
A14: 3 | B14: =IFERROR(INDEX(Table3[Question],MATCH(INDEX(Table7[Q],MATCH(INDEX(Table1[Evaluator Question Set],MATCH($B$7,Table1[BC Hydro Sector Allocation],0)),Table7[Question Set],0))&"."&INDEX(Table5[S],MATCH($B$9,Table5[Diagnostic Heading],0))&"."&$A14,Table3[ID],0)),"hide") -> hide
A15: 4 | B15: =IFERROR(INDEX(Table3[Question],MATCH(INDEX(Table7[Q],MATCH(INDEX(Table1[Evaluator Question Set],MATCH($B$7,Table1[BC Hydro Sector Allocation],0)),Table7[Question Set],0))&"."&INDEX(Table5[S],MATCH($B$9,Table5[Diagnostic Heading],0))&"."&$A15,Table3[ID],0)),"hide") -> hide
A16: 5 | B16: =IFERROR(INDEX(Table3[Question],MATCH(INDEX(Table7[Q],MATCH(INDEX(Table1[Evaluator Question Set],MATCH($B$7,Table1[BC Hydro Sector Allocation],0)),Table7[Question Set],0))&"."&INDEX(Table5[S],MATCH($B$9,Table5[Diagnostic Heading],0))&"."&$A16,Table3[ID],0)),"hide") -> hide

Sheet Report (hidden)
A2: Prepared for:
A4: =Input!C7 -> 0
A6: By: Conservation and Energy Management, (604) 433 2700, powersmart@bchydro.com
A7: =IF(Account="","For: ","For: Account number ending with "&RIGHT(Account,4)&", ")&Input!C11&", "&Input!C13&", "&Input!C15&", "&TEXT(Input!C18,"dd/mm/yyyy") -> For: , , , 05/07/2018
A9: Executive summary
A11: Thank you for completing a Strategic Energy Management Assessment to help identify your energy savings opportunities. Your assessment provides information and details on energy savings together with BC Hydro Conservation and Energy Management programs and tips to help you reach your energy savings target. We hope that this report is valuable to your business in achieving long term energy savings.
A17: Did you know that the average incentive for implementing energy conservation measures
A18: for similar businesses was: | I18: =INDEX(Table1[Rebate],MATCH(Sector,Table1[BC Hydro Sector Allocation],0)) -> 
A20: The incentive, plus the money you save on energy bills each month, means that you can reinvest back into what matters most – your business.
A23: Your electrical cost and savings:
A24: Annual Electrical Energy Consumption (kWh/yr): | I24: =AnnEgyCons -> 0
A25: Estimated Annual Cost ($/yr): | I25: =AnnElecCost -> 0
A26: Your potential energy savings (%): | I26: =SUMIFS(Table3[ES Percent],Table3[Answer],"No",Table3[DisplaySavings],TRUE) -> 0
A27: Estimated energy savings (kWh/yr): | I27: =ROUND(AnnEgyCons*I26,-3) -> 0
A28: Your potential annual energy cost savings ($): | I28: =ROUND(AnnEgyCons*I26*(AnnElecCost/AnnEgyCons),-3) -> 
A30: Your Strategic Energy Management Rating:
A31: Lighting | I31: =COUNTIFS(Table3[Answer],"Yes",Table3[Selected],TRUE,Table3[Diagnostic Heading],Report!$A31)/COUNTIFS(Table3[Selected],TRUE,Table3[Diagnostic Heading],Report!$A31) -> 
A32: Heating, Ventilation, Air Conditioning / Refrigeration | I32: =COUNTIFS(Table3[Answer],"Yes",Table3[Selected],TRUE,Table3[Diagnostic Heading],Report!$A32)/COUNTIFS(Table3[Selected],TRUE,Table3[Diagnostic Heading],Report!$A32) -> 
A33: Energy Efficient Equipment | I33: =COUNTIFS(Table3[Answer],"Yes",Table3[Selected],TRUE,Table3[Diagnostic Heading],Report!$A33)/COUNTIFS(Table3[Selected],TRUE,Table3[Diagnostic Heading],Report!$A33) -> 
A34: Operating and Maintenance Practices | I34: =COUNTIFS(Table3[Answer],"Yes",Table3[Selected],TRUE,Table3[Diagnostic Heading],Report!$A34)/COUNTIFS(Table3[Selected],TRUE,Table3[Diagnostic Heading],Report!$A34) -> 
A35: Management Practice | I35: =COUNTIFS(Table3[Answer],"Yes",Table3[Selected],TRUE,Table3[Diagnostic Heading],Report!$A35)/COUNTIFS(Table3[Selected],TRUE,Table3[Diagnostic Heading],Report!$A35) -> 
A37: Overall rating, incentives, and operational opportunities
A38: Overall Rating: | G38: =AVERAGE(I31:J35) -> 
A39: Number of incentives available: | G39: =COUNTIF(Table3[FundedYes],TRUE) -> 0
A40: Number of operational opportunities available: | G40: =COUNTIF(Table3[OperationalYes],TRUE) -> 0
A47: Incentives Available
A49: Lighting
A50: Fluorescent lighting | I50: Average incentive of 25% of project cost when upgrading to LED
A51: Consider upgrading your fluorescent lighting to energy efficient T8 lamps. If you currently have T12 lamps, upgrading to the latest T8 lamps and electronic ballasts could reduce your lighting costs by up to 40%. Also consider upgrading to LEDs to increase your savings by up to 60% and be eligible for BC Hydro incentives. | N51: Consider upgrading your fluorescent lighting to energy efficient T8 lamps. If you currently have T12 lamps, upgrading to the latest T8 lamps and electronic ballasts could reduce your lighting costs by up to 40%. Also consider upgrading to LEDs to increase your savings by up to 60% and be eligible for BC Hydro incentives.
A52: Typically 10.9 % energy savings, or $13,400 per year. | H52: Link to details
A53: Exterior Lighting | I53: Average incentive of 25% of project cost
A54: Consider upgrading your exterior lighting (e.g. in parking lots) to T8 fluorescent or LED (incentives available for specific LED technologies). These will provide savings and you can get your return even quicker with incentives. | N54: Consider upgrading your exterior lighting (e.g. in parking lots) to T8 fluorescent or LED (incentives available for specific LED technologies). These will provide savings and you can get your return even quicker with incentives.
A55: Typically 1.3 % energy savings, or $1,600 per year. | H55: Link to details
A56: Heating, Ventilation, Air Conditioning / Refrigeration
A57: Heating / cooling controls | I57: Average incentive of 20% of project cost
A58: BC Hydro funding is available. Consider upgrading your heating, ventilation & air conditioning system to include variable frequency drives on fans and pumps and/or variable speed ECM pumps. | N58: BC Hydro funding is available. Consider upgrading your heating, ventilation & air conditioning system to include variable frequency drives on fans and pumps and/or variable speed ECM pumps.
A59: Typically 7.0 % energy savings, or $8,600 per year. | H59: Link to details
A61: Operational Opportunities
A63: Heating, Ventilation, Air Conditioning / Refrigeration
A64: Economizer operation
A65: Have your heating, ventilation and air conditioning economizer checked for correct operation (an economizer is a vent controlled to use cooler outside air to reduce the heating, ventilation and air conditioning system energy use). If the vent is not operating it can increase heating, ventilation and air conditioning system energy use by up to 50%. Learn more about economizers through the link below. | M65: Have your heating, ventilation and air conditioning economizer checked for correct operation (an economizer is a vent controlled to use cooler outside air to reduce the heating, ventilation and air conditioning system energy use). If the vent is not operating it can increase heating, ventilation and air conditioning system energy use by up to 50%. Learn more about economizers through the link below.
A66: Typically 0.5 % energy savings, or $700 per year. | J66: Link to details
A67: Energy Efficient Equipment
A68: Office equipment
A69: Check to confirm that the Energy Star® mode is enabled on your office equipment (e.g. computers, copiers and printers). Energy Star® is a low-power sleep mode that saves energy when the equipment is not used for a period. It is included in most office equipment, but often not enabled. Learn more about operating your office equipment efficiently through the link below. Learn more about operating your office equipment efficiently through the link below. | M69: Check to confirm that the Energy Star® mode is enabled on your office equipment (e.g. computers, copiers and printers). Energy Star® is a low-power sleep mode that saves energy when the equipment is not used for a period. It is included in most office equipment, but often not enabled. Learn more about operating your office equipment efficiently through the link below. Learn more about operating your office equipment efficiently through the link below.
A70: Typically 0.3 % energy savings, or $300 per year. | J70: Link to details
A71: Office equipment
A72: Install / activated power management software on computers to control when computers shut down or sleep. | M72: Install / activated power management software on computers to control when computers shut down or sleep.
A73: Typically 2.3 % energy savings, or $2,900 per year. | J73: Link to details
A74: Operating and Maintenance Practices
A75: Energy saving tips
A76: Prepare a list of energy saving tips for your type of business. BC Hydro Power Smart has tips available. Find energy saving tips through the link below. | M76: Prepare a list of energy saving tips for your type of business. BC Hydro Power Smart has tips available. Find energy saving tips through the link below.
A77: Typically 0.2 % energy savings, or $200 per year. | J77: Link to details
A78: Management Practice
A79: Targets and Planning
A80: Create a realistic target and action plan to reduce energy costs for the next year (e.g. kWh/sq. ft. by 10%). Find out how to manage your energy costs and consumption in your business through the link below. | M80: Create a realistic target and action plan to reduce energy costs for the next year (e.g. kWh/sq. ft. by 10%). Find out how to manage your energy costs and consumption in your business through the link below.
A81: Typically 0.2 % energy savings, or $200 per year. | J81: Link to details
A82: Understanding of energy performance and opportunities
A83: Conduct an energy audit to quantify costs and identify savings opportunities. Learn how to do an energy audit and build a business case for energy efficiency through the link below. | M83: Conduct an energy audit to quantify costs and identify savings opportunities. Learn how to do an energy audit and build a business case for energy efficiency through the link below.
A84: Typically 0.2 % energy savings, or $200 per year. | J84: Link to details
A85: Purchasing
A86: Use Power Smart buying guides and product catalogues when buying equipment or specify energy efficiency standards in your procurement process. Visit the link below for BC Hydro Power Smart buying guides. | M86: Use Power Smart buying guides and product catalogues when buying equipment or specify energy efficiency standards in your procurement process. Visit the link below for BC Hydro Power Smart buying guides.
A87: Typically 0.2 % energy savings, or $200 per year. | J87: Link to details
A89: Next Steps
A90: 1. Review the report and recommended actions.
A91: 2. Go to www.bchydro.com/referral to get a list of Energy Professionals to help you with your project.
A92: 3. Go to www.bchydro.com/express to fill out an application form for incentives before any works starts.
A93: 4. To find out more about BC Hydro funding call 1 866 522 4713.
A95: The data and information provided in this report was compiled solely for BC Hydro purposes. BC Hydro expressly disclaims any warranties or representations, either expressed or implied, with respect to the accuracy, reliability, usefulness, completeness, non-infringement of intellectual property rights, or quality of data and information contained herein. BC Hydro, its employees, servants and agents do not accept any liability of any kind arising in any way out of the use of or reliance on this data and information by any person. Any person using or relying on this data and information does so at their own risk.

Sheet Question Sets (hidden)
A1: ID | B1: Question set | C1: Diagnostic Heading | D1: Q | E1: Report Heading | F1: BCH Funded | G1: Available BC Hydro Funding | H1: Question | I1: Action | J1: Proposed Link | K1: Selected | L1: Answer | M1: FundedYes | N1: OperationalYes | O1: a | P1: b | Q1: c | R1: ES Percent | S1: ES Value | T1: DisplaySavings | U1: Reference for Column C
A2: =INDEX(Table7[Q],MATCH(Table3[[#This Row],[Question set]],Table7[Question Set],0))&"."&INDEX(Table5[S],MATCH(Table3[[#This Row],[Diagnostic Heading]],Table5[Diagnostic Heading],0))&"."&Table3[[#This Row],[Q]] -> 1.1.1 | B2: Education | C2: Lighting | D2: 1 | E2: LED Lighting | F2: yes | G2: Average incentive of 50% of product cost | H2: We have upgraded our incandescent lighting to energy efficient LED lamps. | I2: BC Hydro funding is available. Assess the cost effectiveness of upgrading your incandescent lighting to energy efficient LEDs. LEDs use at least 75% less energy than a standard incandescent and last about 15 to 20 times longer than incandescent lighting, and about three times longer than CFLs. Learn more about LEDs by clicking the link below. | J2: http://www.bchydro.com/news/conservation/2014/led-lighting-increasingly-popular.html | K2: =INDEX(Table1[Evaluator Question Set],MATCH(Sector,Table1[BC Hydro Sector Allocation],0))=Table3[[#This Row],[Question set]] ->  | L2: =IF(Table3[[#This Row],[Selected]],INDIRECT("'"&INDEX(Table5[SheetName],MATCH(Table3[[#This Row],[Diagnostic Heading]],Table5[Diagnostic Heading],0))&"'"&"!C"&11+Table3[[#This Row],[Q]]),"") ->  | M2: =IFERROR(AND(Table3[[#This Row],[BCH Funded]]="Yes",Table3[[#This Row],[Answer]]="No"),"") ->  | N2: =IFERROR(AND(Table3[[#This Row],[BCH Funded]]="no",Table3[[#This Row],[Answer]]="No"),"") ->  | O2: =IFERROR(IF(Table3[[#This Row],[Answer]]="No",INDEX(Table10[],MATCH(INDEX(Table8[CPR Type],MATCH(Table3[[#This Row],[Report Heading]],Table8[Report Heading],0)),Table10[Segment],0),MATCH(Table3[[#This Row],[Question set]],Table10[#Headers],0)),0),0.01/COUNTIFS(Table3[Question set],INDEX(Table1[Evaluator Question Set],MATCH(Sector,Table1[BC Hydro Sector Allocation],0)),Table3[Diagnostic Heading],Table3[[#This Row],[Diagnostic Heading]],Table3[Selected],TRUE)) ->  | P2: 0.05 | Q2: 0.75 | R2: =Table3[[#This Row],[a]]*Table3[[#This Row],[b]]*Table3[[#This Row],[c]] ->  | S2: =Table3[[#This Row],[ES Percent]]*AnnEgyCons ->  | T2: TRUE | U2: Cristian Suvagau
A3: =INDEX(Table7[Q],MATCH(Table3[[#This Row],[Question set]],Table7[Question Set],0))&"."&INDEX(Table5[S],MATCH(Table3[[#This Row],[Diagnostic Heading]],Table5[Diagnostic Heading],0))&"."&Table3[[#This Row],[Q]] -> 1.1.2 | B3: Education | C3: Lighting | D3: 2 | E3: Fluorescent lighting | F3: yes | G3: Average incentive of 25% of project cost when upgrading to LED | H3: Have you upgraded your lighting system in the last 5 years? | I3: Consider upgrading your fluorescent lighting to energy efficient T8 lamps. If you currently have T12 lamps, upgrading to the latest T8 lamps and electronic ballasts could reduce your lighting costs by up to 40%. Also consider upgrading to LEDs to increase your savings by up to 60% and be eligible for BC Hydro incentives. | J3: https://www.bchydro.com/ecatalog/eCatServlet?cmd=all_psp_incentives&existId=&energyId=13&p=1&sb=3&dir=1&ip=50 | K3: =INDEX(Table1[Evaluator Question Set],MATCH(Sector,Table1[BC Hydro Sector Allocation],0))=Table3[[#This Row],[Question set]] ->  | L3: =IF(Table3[[#This Row],[Selected]],INDIRECT("'"&INDEX(Table5[SheetName],MATCH(Table3[[#This Row],[Diagnostic Heading]],Table5[Diagnostic Heading],0))&"'"&"!C"&11+Table3[[#This Row],[Q]]),"") ->  | M3: =IFERROR(AND(Table3[[#This Row],[BCH Funded]]="Yes",Table3[[#This Row],[Answer]]="No"),"") ->  | N3: =IFERROR(AND(Table3[[#This Row],[BCH Funded]]="no",Table3[[#This Row],[Answer]]="No"),"") ->  | O3: =IFERROR(IF(Table3[[#This Row],[Answer]]="No",INDEX(Table10[],MATCH(INDEX(Table8[CPR Type],MATCH(Table3[[#This Row],[Report Heading]],Table8[Report Heading],0)),Table10[Segment],0),MATCH(Table3[[#This Row],[Question set]],Table10[#Headers],0)),0),0.01/COUNTIFS(Table3[Question set],INDEX(Table1[Evaluator Question Set],MATCH(Sector,Table1[BC Hydro Sector Allocation],0)),Table3[Diagnostic Heading],Table3[[#This Row],[Diagnostic Heading]],Table3[Selected],TRUE)) ->  | P3: 0.9 | Q3: 0.3 | R3: =Table3[[#This Row],[a]]*Table3[[#This Row],[b]]*Table3[[#This Row],[c]] ->  | S3: =Table3[[#This Row],[ES Percent]]*AnnEgyCons ->  | T3: TRUE | U3: Cristian Suvagau
A4: =INDEX(Table7[Q],MATCH(Table3[[#This Row],[Question set]],Table7[Question Set],0))&"."&INDEX(Table5[S],MATCH(Table3[[#This Row],[Diagnostic Heading]],Table5[Diagnostic Heading],0))&"."&Table3[[#This Row],[Q]] -> 1.1.3 | B4: Education | C4: Lighting | D4: 3 | E4: LED Exit lighting | F4: no | H4: We have replaced incandescent exit signs with energy efficient LED exit signs. | I4: Did you know that exit signs are now legislated by the federal government? | J4: http://www.nrcan.gc.ca/energy/regulations-codes-standards/18419 | K4: =INDEX(Table1[Evaluator Question Set],MATCH(Sector,Table1[BC Hydro Sector Allocation],0))=Table3[[#This Row],[Question set]] ->  | L4: =IF(Table3[[#This Row],[Selected]],INDIRECT("'"&INDEX(Table5[SheetName],MATCH(Table3[[#This Row],[Diagnostic Heading]],Table5[Diagnostic Heading],0))&"'"&"!C"&11+Table3[[#This Row],[Q]]),"") ->  | M4: =IFERROR(AND(Table3[[#This Row],[BCH Funded]]="Yes",Table3[[#This Row],[Answer]]="No"),"") ->  | N4: =IFERROR(AND(Table3[[#This Row],[BCH Funded]]="no",Table3[[#This Row],[Answer]]="No"),"") ->  | O4: =IFERROR(IF(Table3[[#This Row],[Answer]]="No",INDEX(Table10[],MATCH(INDEX(Table8[CPR Type],MATCH(Table3[[#This Row],[Report Heading]],Table8[Report Heading],0)),Table10[Segment],0),MATCH(Table3[[#This Row],[Question set]],Table10[#Headers],0)),0),0.01/COUNTIFS(Table3[Question set],INDEX(Table1[Evaluator Question Set],MATCH(Sector,Table1[BC Hydro Sector Allocation],0)),Table3[Diagnostic Heading],Table3[[#This Row],[Diagnostic Heading]],Table3[Selected],TRUE)) ->  | P4: 0.04 | Q4: 0.9 | R4: =Table3[[#This Row],[a]]*Table3[[#This Row],[b]]*Table3[[#This Row],[c]] ->  | S4: =Table3[[#This Row],[ES Percent]]*AnnEgyCons ->  | T4: TRUE | U4: Cristian Suvagau
A5: =INDEX(Table7[Q],MATCH(Table3[[#This Row],[Question set]],Table7[Question Set],0))&"."&INDEX(Table5[S],MATCH(Table3[[#This Row],[Diagnostic Heading]],Table5[Diagnostic Heading],0))&"."&Table3[[#This Row],[Q]] -> 1.1.4 | B5: Education | C5: Lighting | D5: 4 | E5: Exterior Lighting | F5: yes | G5: Average incentive of 25% of project cost | H5: We have upgraded our exterior lighting to energy efficient lamps and fixtures that reduce glare, light pollution and lighting costs (e.g. in parking lots). | I5: Consider upgrading your exterior lighting (e.g. in parking lots) to T8 fluorescent or LED (incentives available for specific LED technologies). These will provide savings and you can get your return even quicker with incentives. | J5: https://www.bchydro.com/ecatalog/eCatServlet?cmd=all_psp_incentives&existId=&energyId=13&p=1&sb=3&dir=1&ip=50 | K5: =INDEX(Table1[Evaluator Question Set],MATCH(Sector,Table1[BC Hydro Sector Allocation],0))=Table3[[#This Row],[Question set]] ->  | L5: =IF(Table3[[#This Row],[Selected]],INDIRECT("'"&INDEX(Table5[SheetName],MATCH(Table3[[#This Row],[Diagnostic Heading]],Table5[Diagnostic Heading],0))&"'"&"!C"&11+Table3[[#This Row],[Q]]),"") ->  | M5: =IFERROR(AND(Table3[[#This Row],[BCH Funded]]="Yes",Table3[[#This Row],[Answer]]="No"),"") ->  | N5: =IFERROR(AND(Table3[[#This Row],[BCH Funded]]="no",Table3[[#This Row],[Answer]]="No"),"") ->  | O5: =IFERROR(IF(Table3[[#This Row],[Answer]]="No",INDEX(Table10[],MATCH(INDEX(Table8[CPR Type],MATCH(Table3[[#This Row],[Report Heading]],Table8[Report Heading],0)),Table10[Segment],0),MATCH(Table3[[#This Row],[Question set]],Table10[#Headers],0)),0),0.01/COUNTIFS(Table3[Question set],INDEX(Table1[Evaluator Question Set],MATCH(Sector,Table1[BC Hydro Sector Allocation],0)),Table3[Diagnostic Heading],Table3[[#This Row],[Diagnostic Heading]],Table3[Selected],TRUE)) ->  | P5: 1 | Q5: 0.5 | R5: =Table3[[#This Row],[a]]*Table3[[#This Row],[b]]*Table3[[#This Row],[c]] ->  | S5: =Table3[[#This Row],[ES Percent]]*AnnEgyCons ->  | T5: TRUE | U5: Cristian Suvagau
A6: =INDEX(Table7[Q],MATCH(Table3[[#This Row],[Question set]],Table7[Question Set],0))&"."&INDEX(Table5[S],MATCH(Table3[[#This Row],[Diagnostic Heading]],Table5[Diagnostic Heading],0))&"."&Table3[[#This Row],[Q]] -> 1.1.5 | B6: Education | C6: Lighting | D6: 5 | E6: Lighting control | F6: No | H6: We have installed controls on lighting to turn off when not required (e.g. timers or occupancy sensors in offices and meeting rooms, daylight harvesting in offices). | I6: Lighting controls can provide you with energy savings and better management of your lighting systems. Adding lighting controls may be eligible for additional incentive funding when completing a lighting retrofit as not all controls energy savings are recognized by BC Hydro. | J6: https://www.bchydro.com/ecatalog/eCatServlet?cmd=all_psp_incentives&existId=&energyId=14 | K6: =INDEX(Table1[Evaluator Question Set],MATCH(Sector,Table1[BC Hydro Sector Allocation],0))=Table3[[#This Row],[Question set]] ->  | L6: =IF(Table3[[#This Row],[Selected]],INDIRECT("'"&INDEX(Table5[SheetName],MATCH(Table3[[#This Row],[Diagnostic Heading]],Table5[Diagnostic Heading],0))&"'"&"!C"&11+Table3[[#This Row],[Q]]),"") ->  | M6: =IFERROR(AND(Table3[[#This Row],[BCH Funded]]="Yes",Table3[[#This Row],[Answer]]="No"),"") ->  | N6: =IFERROR(AND(Table3[[#This Row],[BCH Funded]]="no",Table3[[#This Row],[Answer]]="No"),"") ->  | O6: =IFERROR(IF(Table3[[#This Row],[Answer]]="No",INDEX(Table10[],MATCH(INDEX(Table8[CPR Type],MATCH(Table3[[#This Row],[Report Heading]],Table8[Report Heading],0)),Table10[Segment],0),MATCH(Table3[[#This Row],[Question set]],Table10[#Headers],0)),0),0.01/COUNTIFS(Table3[Question set],INDEX(Table1[Evaluator Question Set],MATCH(Sector,Table1[BC Hydro Sector Allocation],0)),Table3[Diagnostic Heading],Table3[[#This Row],[Diagnostic Heading]],Table3[Selected],TRUE)) ->  | P6: 0.15 | Q6: 0.3 | R6: =Table3[[#This Row],[a]]*Table3[[#This Row],[b]]*Table3[[#This Row],[c]] ->  | S6: =Table3[[#This Row],[ES Percent]]*AnnEgyCons ->  | T6: TRUE | U6: Cristian Suvagau
A7: =INDEX(Table7[Q],MATCH(Table3[[#This Row],[Question set]],Table7[Question Set],0))&"."&INDEX(Table5[S],MATCH(Table3[[#This Row],[Diagnostic Heading]],Table5[Diagnostic Heading],0))&"."&Table3[[#This Row],[Q]] -> 1.2.1 | B7: Education | C7: Heating, Ventilation, Air Conditioning / Refrigeration | D7: 1 | E7: Air tightness | F7: no | H7: We have examined ways to improve the air-tightness of air-conditioned spaces (e.g. closing doors, windows and installing air curtains). | I7: Stretch your legs. Have a walk around and look for where you could improve the air-tightness of air-conditioned spaces (e.g. closing doors, windows, installing air curtains). Learn more about air leakage control in your building through the link below. | J7: http://www.energycodes.gov/sites/default/files/documents/BECP_Buidling%20Energy%20Code%20Resource%20Guide%20Air%20Leakage%20Guide_Sept2011_v00_lores.pdf | K7: =INDEX(Table1[Evaluator Question Set],MATCH(Sector,Table1[BC Hydro Sector Allocation],0))=Table3[[#This Row],[Question set]] ->  | L7: =IF(Table3[[#This Row],[Selected]],INDIRECT("'"&INDEX(Table5[SheetName],MATCH(Table3[[#This Row],[Diagnostic Heading]],Table5[Diagnostic Heading],0))&"'"&"!C"&11+Table3[[#This Row],[Q]]),"") ->  | M7: =IFERROR(AND(Table3[[#This Row],[BCH Funded]]="Yes",Table3[[#This Row],[Answer]]="No"),"") ->  | N7: =IFERROR(AND(Table3[[#This Row],[BCH Funded]]="no",Table3[[#This Row],[Answer]]="No"),"") ->  | O7: =IFERROR(IF(Table3[[#This Row],[Answer]]="No",INDEX(Table10[],MATCH(INDEX(Table8[CPR Type],MATCH(Table3[[#This Row],[Report Heading]],Table8[Report Heading],0)),Table10[Segment],0),MATCH(Table3[[#This Row],[Question set]],Table10[#Headers],0)),0),0.01/COUNTIFS(Table3[Question set],INDEX(Table1[Evaluator Question Set],MATCH(Sector,Table1[BC Hydro Sector Allocation],0)),Table3[Diagnostic Heading],Table3[[#This Row],[Diagnostic Heading]],Table3[Selected],TRUE)) ->  | P7: 1 | Q7: 0.02 | R7: =Table3[[#This Row],[a]]*Table3[[#This Row],[b]]*Table3[[#This Row],[c]] ->  | S7: =Table3[[#This Row],[ES Percent]]*AnnEgyCons ->  | T7: TRUE | U7: ASHRAE- Simulation of the Impact of Commercial Building Envelope Airtightness on Building Energy Utilization
A8: =INDEX(Table7[Q],MATCH(Table3[[#This Row],[Question set]],Table7[Question Set],0))&"."&INDEX(Table5[S],MATCH(Table3[[#This Row],[Diagnostic Heading]],Table5[Diagnostic Heading],0))&"."&Table3[[#This Row],[Q]] -> 1.2.2 | B8: Education | C8: Heating, Ventilation, Air Conditioning / Refrigeration | D8: 2 | E8: Heating / cooling controls | F8: yes | G8: Average incentive of 20% of project cost | H8: We have upgraded our heating, ventilation & air conditioning system to include variable frequency drives on fans and pumps and/or variable speed ECM pumps. | I8: BC Hydro funding is available. Consider upgrading your heating, ventilation & air conditioning system to include variable frequency drives on fans and pumps and/or variable speed ECM pumps. | J8: https://www.bchydro.com/ecatalog/ | K8: =INDEX(Table1[Evaluator Question Set],MATCH(Sector,Table1[BC Hydro Sector Allocation],0))=Table3[[#This Row],[Question set]] ->  | L8: =IF(Table3[[#This Row],[Selected]],INDIRECT("'"&INDEX(Table5[SheetName],MATCH(Table3[[#This Row],[Diagnostic Heading]],Table5[Diagnostic Heading],0))&"'"&"!C"&11+Table3[[#This Row],[Q]]),"") ->  | M8: =IFERROR(AND(Table3[[#This Row],[BCH Funded]]="Yes",Table3[[#This Row],[Answer]]="No"),"") ->  | N8: =IFERROR(AND(Table3[[#This Row],[BCH Funded]]="no",Table3[[#This Row],[Answer]]="No"),"") ->  | O8: =IFERROR(IF(Table3[[#This Row],[Answer]]="No",INDEX(Table10[],MATCH(INDEX(Table8[CPR Type],MATCH(Table3[[#This Row],[Report Heading]],Table8[Report Heading],0)),Table10[Segment],0),MATCH(Table3[[#This Row],[Question set]],Table10[#Headers],0)),0),0.01/COUNTIFS(Table3[Question set],INDEX(Table1[Evaluator Question Set],MATCH(Sector,Table1[BC Hydro Sector Allocation],0)),Table3[Diagnostic Heading],Table3[[#This Row],[Diagnostic Heading]],Table3[Selected],TRUE)) ->  | P8: 1 | Q8: 0.2 | R8: =Table3[[#This Row],[a]]*Table3[[#This Row],[b]]*Table3[[#This Row],[c]] ->  | S8: =Table3[[#This Row],[ES Percent]]*AnnEgyCons ->  | T8: TRUE | U8: Past commercial incentives
A9: =INDEX(Table7[Q],MATCH(Table3[[#This Row],[Question set]],Table7[Question Set],0))&"."&INDEX(Table5[S],MATCH(Table3[[#This Row],[Diagnostic Heading]],Table5[Diagnostic Heading],0))&"."&Table3[[#This Row],[Q]] -> 1.2.3 | B9: Education | C9: Heating, Ventilation, Air Conditioning / Refrigeration | D9: 3 | E9: Heating and cooling temperature set points | F9: no | H9: We have adjusted temperature settings for heating and cooling to minimize energy use. | I9: Pay attention to your thermostat settings. Air conditioning thermostats should be set no lower than 25° C; each degree you raise your temperature setting can save on air conditioning costs. To achieve similar savings when heating, 20° C is the recommended temperature. Learn more about adjusting thermostats through the link below. | J9: https://www.bchydro.com/powersmart/business/technologies-equipment/heating-cooling.html | K9: =INDEX(Table1[Evaluator Question Set],MATCH(Sector,Table1[BC Hydro Sector Allocation],0))=Table3[[#This Row],[Question set]] ->  | L9: =IF(Table3[[#This Row],[Selected]],INDIRECT("'"&INDEX(Table5[SheetName],MATCH(Table3[[#This Row],[Diagnostic Heading]],Table5[Diagnostic Heading],0))&"'"&"!C"&11+Table3[[#This Row],[Q]]),"") ->  | M9: =IFERROR(AND(Table3[[#This Row],[BCH Funded]]="Yes",Table3[[#This Row],[Answer]]="No"),"") ->  | N9: =IFERROR(AND(Table3[[#This Row],[BCH Funded]]="no",Table3[[#This Row],[Answer]]="No"),"") ->  | O9: =IFERROR(IF(Table3[[#This Row],[Answer]]="No",INDEX(Table10[],MATCH(INDEX(Table8[CPR Type],MATCH(Table3[[#This Row],[Report Heading]],Table8[Report Heading],0)),Table10[Segment],0),MATCH(Table3[[#This Row],[Question set]],Table10[#Headers],0)),0),0.01/COUNTIFS(Table3[Question set],INDEX(Table1[Evaluator Question Set],MATCH(Sector,Table1[BC Hydro Sector Allocation],0)),Table3[Diagnostic Heading],Table3[[#This Row],[Diagnostic Heading]],Table3[Selected],TRUE)) ->  | P9: 1 | Q9: 0.05 | R9: =Table3[[#This Row],[a]]*Table3[[#This Row],[b]]*Table3[[#This Row],[c]] ->  | S9: =Table3[[#This Row],[ES Percent]]*AnnEgyCons ->  | T9: TRUE | U9: Past commercial incentives
A10: =INDEX(Table7[Q],MATCH(Table3[[#This Row],[Question set]],Table7[Question Set],0))&"."&INDEX(Table5[S],MATCH(Table3[[#This Row],[Diagnostic Heading]],Table5[Diagnostic Heading],0))&"."&Table3[[#This Row],[Q]] -> 1.2.4 | B10: Education | C10: Heating, Ventilation, Air Conditioning / Refrigeration | D10: 4 | E10: Economizer operation | F10: no | H10: We regularly check the operation of the economizer on our heating, ventilation & air conditioning system (an economizer is a vent controlled to use cooler outside air to reduce the heating, ventilation & air conditioning system energy use). | I10: Have your heating, ventilation and air conditioning economizer checked for correct operation (an economizer is a vent controlled to use cooler outside air to reduce the heating, ventilation and air conditioning system energy use). If the vent is not operating it can increase heating, ventilation and air conditioning system energy use by up to 50%. Learn more about economizers through the link below. | J10: https://www.bchydro.com/powersmart/business/technologies-equipment/heating-cooling.html | K10: =INDEX(Table1[Evaluator Question Set],MATCH(Sector,Table1[BC Hydro Sector Allocation],0))=Table3[[#This Row],[Question set]] ->  | L10: =IF(Table3[[#This Row],[Selected]],INDIRECT("'"&INDEX(Table5[SheetName],MATCH(Table3[[#This Row],[Diagnostic Heading]],Table5[Diagnostic Heading],0))&"'"&"!C"&11+Table3[[#This Row],[Q]]),"") ->  | M10: =IFERROR(AND(Table3[[#This Row],[BCH Funded]]="Yes",Table3[[#This Row],[Answer]]="No"),"") ->  | N10: =IFERROR(AND(Table3[[#This Row],[BCH Funded]]="no",Table3[[#This Row],[Answer]]="No"),"") ->  | O10: =IFERROR(IF(Table3[[#This Row],[Answer]]="No",INDEX(Table10[],MATCH(INDEX(Table8[CPR Type],MATCH(Table3[[#This Row],[Report Heading]],Table8[Report Heading],0)),Table10[Segment],0),MATCH(Table3[[#This Row],[Question set]],Table10[#Headers],0)),0),0.01/COUNTIFS(Table3[Question set],INDEX(Table1[Evaluator Question Set],MATCH(Sector,Table1[BC Hydro Sector Allocation],0)),Table3[Diagnostic Heading],Table3[[#This Row],[Diagnostic Heading]],Table3[Selected],TRUE)) ->  | P10: 1 | Q10: 0.2 | R10: =Table3[[#This Row],[a]]*Table3[[#This Row],[b]]*Table3[[#This Row],[c]] ->  | S10: =Table3[[#This Row],[ES Percent]]*AnnEgyCons ->  | T10: TRUE | U10: Stan Ma: Catalyst DEMO Richmond Center = 29%
A11: =INDEX(Table7[Q],MATCH(Table3[[#This Row],[Question set]],Table7[Question Set],0))&"."&INDEX(Table5[S],MATCH(Table3[[#This Row],[Diagnostic Heading]],Table5[Diagnostic Heading],0))&"."&Table3[[#This Row],[Q]] -> 1.2.5 | B11: Education | C11: Heating, Ventilation, Air Conditioning / Refrigeration | D11: 5 | E11: Economizer sensor | F11: yes | G11: Average incentive of 20% of project cost | H11: We have assessed opportunities to upgrade to an efficient economizer controller sensor on our rooftop heating, ventilation & air conditioning system. | I11: BC Hydro funding is available. Assess the cost effectiveness of upgrading your rooftop heating, ventilation & air conditioning system with an efficient economizer controller sensor. | J11: https://www.bchydro.com/ecatalog/ | K11: =INDEX(Table1[Evaluator Question Set],MATCH(Sector,Table1[BC Hydro Sector Allocation],0))=Table3[[#This Row],[Question set]] ->  | L11: =IF(Table3[[#This Row],[Selected]],INDIRECT("'"&INDEX(Table5[SheetName],MATCH(Table3[[#This Row],[Diagnostic Heading]],Table5[Diagnostic Heading],0))&"'"&"!C"&11+Table3[[#This Row],[Q]]),"") ->  | M11: =IFERROR(AND(Table3[[#This Row],[BCH Funded]]="Yes",Table3[[#This Row],[Answer]]="No"),"") ->  | N11: =IFERROR(AND(Table3[[#This Row],[BCH Funded]]="no",Table3[[#This Row],[Answer]]="No"),"") ->  | O11: =IFERROR(IF(Table3[[#This Row],[Answer]]="No",INDEX(Table10[],MATCH(INDEX(Table8[CPR Type],MATCH(Table3[[#This Row],[Report Heading]],Table8[Report Heading],0)),Table10[Segment],0),MATCH(Table3[[#This Row],[Question set]],Table10[#Headers],0)),0),0.01/COUNTIFS(Table3[Question set],INDEX(Table1[Evaluator Question Set],MATCH(Sector,Table1[BC Hydro Sector Allocation],0)),Table3[Diagnostic Heading],Table3[[#This Row],[Diagnostic Heading]],Table3[Selected],TRUE)) ->  | P11: 1 | Q11: 0.1 | R11: =Table3[[#This Row],[a]]*Table3[[#This Row],[b]]*Table3[[#This Row],[c]] ->  | S11: =Table3[[#This Row],[ES Percent]]*AnnEgyCons ->  | T11: TRUE | U11: Stan Ma: past experience
A12: =INDEX(Table7[Q],MATCH(Table3[[#This Row],[Question set]],Table7[Question Set],0))&"."&INDEX(Table5[S],MATCH(Table3[[#This Row],[Diagnostic Heading]],Table5[Diagnostic Heading],0))&"."&Table3[[#This Row],[Q]] -> 1.4.1 | B12: Education | C12: Energy Efficient Equipment | D12: 1 | E12: Office equipment | F12: no | H12: We have checked to ensure that the energy saver mode is enabled on our office equipment (e.g. computers, copiers, printers). | I12: Check to confirm that the Energy Star® mode is enabled on your office equipment (e.g. computers, copiers and printers). Energy Star® is a low-power sleep mode that saves energy when the equipment is not used for a period. It is included in most office equipment, but often not enabled. Learn more about operating your office equipment efficiently through the link below. Learn more about operating your office equipment efficiently through the link below. | J12: https://www.energystar.gov/products/office_equipment | K12: =INDEX(Table1[Evaluator Question Set],MATCH(Sector,Table1[BC Hydro Sector Allocation],0))=Table3[[#This Row],[Question set]] ->  | L12: =IF(Table3[[#This Row],[Selected]],INDIRECT("'"&INDEX(Table5[SheetName],MATCH(Table3[[#This Row],[Diagnostic Heading]],Table5[Diagnostic Heading],0))&"'"&"!C"&11+Table3[[#This Row],[Q]]),"") ->  | M12: =IFERROR(AND(Table3[[#This Row],[BCH Funded]]="Yes",Table3[[#This Row],[Answer]]="No"),"") ->  | N12: =IFERROR(AND(Table3[[#This Row],[BCH Funded]]="no",Table3[[#This Row],[Answer]]="No"),"") ->  | O12: =IFERROR(IF(Table3[[#This Row],[Answer]]="No",INDEX(Table10[],MATCH(INDEX(Table8[CPR Type],MATCH(Table3[[#This Row],[Report Heading]],Table8[Report Heading],0)),Table10[Segment],0),MATCH(Table3[[#This Row],[Question set]],Table10[#Headers],0)),0),0.01/COUNTIFS(Table3[Question set],INDEX(Table1[Evaluator Question Set],MATCH(Sector,Table1[BC Hydro Sector Allocation],0)),Table3[Diagnostic Heading],Table3[[#This Row],[Diagnostic Heading]],Table3[Selected],TRUE)) ->  | P12: 1 | Q12: 0.04 | R12: =Table3[[#This Row],[a]]*Table3[[#This Row],[b]]*Table3[[#This Row],[c]] ->  | S12: =Table3[[#This Row],[ES Percent]]*AnnEgyCons ->  | T12: TRUE | U12: https://energy.gov/energysaver/articles/how-much-can-you-really-save-energy-efficient-improvements
A13: =INDEX(Table7[Q],MATCH(Table3[[#This Row],[Question set]],Table7[Question Set],0))&"."&INDEX(Table5[S],MATCH(Table3[[#This Row],[Diagnostic Heading]],Table5[Diagnostic Heading],0))&"."&Table3[[#This Row],[Q]] -> 1.4.2 | B13: Education | C13: Energy Efficient Equipment | D13: 2 | E13: Office Equipment | F13: no | H13: We have upgraded our power bars to energy efficient power bars. | I13: Consider upgrading the power bars on your office equipment to the latest current-sensing power bars. Learn more about BC Hydro’s financial incentives for this technology through the link below. | J13: https://www.energystar.gov/products/low_carbon_it_campaign/more_it_energy_saving_tips | K13: =INDEX(Table1[Evaluator Question Set],MATCH(Sector,Table1[BC Hydro Sector Allocation],0))=Table3[[#This Row],[Question set]] ->  | L13: =IF(Table3[[#This Row],[Selected]],INDIRECT("'"&INDEX(Table5[SheetName],MATCH(Table3[[#This Row],[Diagnostic Heading]],Table5[Diagnostic Heading],0))&"'"&"!C"&11+Table3[[#This Row],[Q]]),"") ->  | M13: =IFERROR(AND(Table3[[#This Row],[BCH Funded]]="Yes",Table3[[#This Row],[Answer]]="No"),"") ->  | N13: =IFERROR(AND(Table3[[#This Row],[BCH Funded]]="no",Table3[[#This Row],[Answer]]="No"),"") ->  | O13: =IFERROR(IF(Table3[[#This Row],[Answer]]="No",INDEX(Table10[],MATCH(INDEX(Table8[CPR Type],MATCH(Table3[[#This Row],[Report Heading]],Table8[Report Heading],0)),Table10[Segment],0),MATCH(Table3[[#This Row],[Question set]],Table10[#Headers],0)),0),0.01/COUNTIFS(Table3[Question set],INDEX(Table1[Evaluator Question Set],MATCH(Sector,Table1[BC Hydro Sector Allocation],0)),Table3[Diagnostic Heading],Table3[[#This Row],[Diagnostic Heading]],Table3[Selected],TRUE)) ->  | P13: 1 | Q13: 0.1 | R13: =Table3[[#This Row],[a]]*Table3[[#This Row],[b]]*Table3[[#This Row],[c]] ->  | S13: =Table3[[#This Row],[ES Percent]]*AnnEgyCons ->  | T13: TRUE | U13: https://www.nrel.gov/docs/fy12osti/55162.pdf
A14: =INDEX(Table7[Q],MATCH(Table3[[#This Row],[Question set]],Table7[Question Set],0))&"."&INDEX(Table5[S],MATCH(Table3[[#This Row],[Diagnostic Heading]],Table5[Diagnostic Heading],0))&"."&Table3[[#This Row],[Q]] -> 1.4.3 | B14: Education | C14: Energy Efficient Equipment | D14: 3 | E14: Office equipment | F14: no | H14: Have you assessed the opportunity to install power management software on computers to control when computers shut down or sleep. | I14: Install / activated power management software on computers to control when computers shut down or sleep. | J14: https://www.energystar.gov/products/low_carbon_it_campaign/power_management_computer | K14: =INDEX(Table1[Evaluator Question Set],MATCH(Sector,Table1[BC Hydro Sector Allocation],0))=Table3[[#This Row],[Question set]] ->  | L14: =IF(Table3[[#This Row],[Selected]],INDIRECT("'"&INDEX(Table5[SheetName],MATCH(Table3[[#This Row],[Diagnostic Heading]],Table5[Diagnostic Heading],0))&"'"&"!C"&11+Table3[[#This Row],[Q]]),"") ->  | M14: =IFERROR(AND(Table3[[#This Row],[BCH Funded]]="Yes",Table3[[#This Row],[Answer]]="No"),"") ->  | N14: =IFERROR(AND(Table3[[#This Row],[BCH Funded]]="no",Table3[[#This Row],[Answer]]="No"),"") ->  | O14: =IFERROR(IF(Table3[[#This Row],[Answer]]="No",INDEX(Table10[],MATCH(INDEX(Table8[CPR Type],MATCH(Table3[[#This Row],[Report Heading]],Table8[Report Heading],0)),Table10[Segment],0),MATCH(Table3[[#This Row],[Question set]],Table10[#Headers],0)),0),0.01/COUNTIFS(Table3[Question set],INDEX(Table1[Evaluator Question Set],MATCH(Sector,Table1[BC Hydro Sector Allocation],0)),Table3[Diagnostic Heading],Table3[[#This Row],[Diagnostic Heading]],Table3[Selected],TRUE)) ->  | P14: 1 | Q14: 0.35 | R14: =Table3[[#This Row],[a]]*Table3[[#This Row],[b]]*Table3[[#This Row],[c]] ->  | S14: =Table3[[#This Row],[ES Percent]]*AnnEgyCons ->  | T14: TRUE | U14: https://www.energystar.gov/products/low_carbon_it_campaign/implementation_resources_enterprises/commercial_software
A15: =INDEX(Table7[Q],MATCH(Table3[[#This Row],[Question set]],Table7[Question Set],0))&"."&INDEX(Table5[S],MATCH(Table3[[#This Row],[Diagnostic Heading]],Table5[Diagnostic Heading],0))&"."&Table3[[#This Row],[Q]] -> 1.4.4 | B15: Education | C15: Energy Efficient Equipment | D15: 4 | E15: Vending Machines | F15: no | H15: We purchase vending machines, which are registered with Energy Star® | I15: Refrigerated beverage vending machines that have earned the Energy Star® are 50% more energy-efficient than standard machine models. | J15: https://www.energystar.gov/products/other/vending_machines | K15: =INDEX(Table1[Evaluator Question Set],MATCH(Sector,Table1[BC Hydro Sector Allocation],0))=Table3[[#This Row],[Question set]] ->  | L15: =IF(Table3[[#This Row],[Selected]],INDIRECT("'"&INDEX(Table5[SheetName],MATCH(Table3[[#This Row],[Diagnostic Heading]],Table5[Diagnostic Heading],0))&"'"&"!C"&11+Table3[[#This Row],[Q]]),"") ->  | M15: =IFERROR(AND(Table3[[#This Row],[BCH Funded]]="Yes",Table3[[#This Row],[Answer]]="No"),"") ->  | N15: =IFERROR(AND(Table3[[#This Row],[BCH Funded]]="no",Table3[[#This Row],[Answer]]="No"),"") ->  | O15: =IFERROR(IF(Table3[[#This Row],[Answer]]="No",INDEX(Table10[],MATCH(INDEX(Table8[CPR Type],MATCH(Table3[[#This Row],[Report Heading]],Table8[Report Heading],0)),Table10[Segment],0),MATCH(Table3[[#This Row],[Question set]],Table10[#Headers],0)),0),0.01/COUNTIFS(Table3[Question set],INDEX(Table1[Evaluator Question Set],MATCH(Sector,Table1[BC Hydro Sector Allocation],0)),Table3[Diagnostic Heading],Table3[[#This Row],[Diagnostic Heading]],Table3[Selected],TRUE)) ->  | P15: 1 | Q15: 0.02 | R15: =Table3[[#This Row],[a]]*Table3[[#This Row],[b]]*Table3[[#This Row],[c]] ->  | S15: =Table3[[#This Row],[ES Percent]]*AnnEgyCons ->  | T15: TRUE
A16: =INDEX(Table7[Q],MATCH(Table3[[#This Row],[Question set]],Table7[Question Set],0))&"."&INDEX(Table5[S],MATCH(Table3[[#This Row],[Diagnostic Heading]],Table5[Diagnostic Heading],0))&"."&Table3[[#This Row],[Q]] -> 1.5.1 | B16: Education | C16: Operating and Maintenance Practices | D16: 1 | E16: Hot water control | F16: no | H16: We have explored how to reduce hot water temperature while still maintaining required conditions. | I16: Look into the possibility of reducing your hot water temperature while still maintaining required sanitary conditions. You'll be surprised at what can be saved through reducing hot water temperature without degrading the use. Learn more about water heating and usage through the link below. | J16: https://www.bchydro.com/powersmart/business/technologies-equipment/heating-cooling.html | K16: =INDEX(Table1[Evaluator Question Set],MATCH(Sector,Table1[BC Hydro Sector Allocation],0))=Table3[[#This Row],[Question set]] ->  | L16: =IF(Table3[[#This Row],[Selected]],INDIRECT("'"&INDEX(Table5[SheetName],MATCH(Table3[[#This Row],[Diagnostic Heading]],Table5[Diagnostic Heading],0))&"'"&"!C"&11+Table3[[#This Row],[Q]]),"") ->  | M16: =IFERROR(AND(Table3[[#This Row],[BCH Funded]]="Yes",Table3[[#This Row],[Answer]]="No"),"") ->  | N16: =IFERROR(AND(Table3[[#This Row],[BCH Funded]]="no",Table3[[#This Row],[Answer]]="No"),"") ->  | O16: =IFERROR(IF(Table3[[#This Row],[Answer]]="No",INDEX(Table10[],MATCH(INDEX(Table8[CPR Type],MATCH(Table3[[#This Row],[Report Heading]],Table8[Report Heading],0)),Table10[Segment],0),MATCH(Table3[[#This Row],[Question set]],Table10[#Headers],0)),0),0.01/COUNTIFS(Table3[Question set],INDEX(Table1[Evaluator Question Set],MATCH(Sector,Table1[BC Hydro Sector Allocation],0)),Table3[Diagnostic Heading],Table3[[#This Row],[Diagnostic Heading]],Table3[Selected],TRUE)) ->  | P16: 1 | Q16: 1 | R16: =Table3[[#This Row],[a]]*Table3[[#This Row],[b]]*Table3[[#This Row],[c]] ->  | S16: =Table3[[#This Row],[ES Percent]]*AnnEgyCons ->  | T16: TRUE
A17: =INDEX(Table7[Q],MATCH(Table3[[#This Row],[Question set]],Table7[Question Set],0))&"."&INDEX(Table5[S],MATCH(Table3[[#This Row],[Diagnostic Heading]],Table5[Diagnostic Heading],0))&"."&Table3[[#This Row],[Q]] -> 1.5.2 | B17: Education | C17: Operating and Maintenance Practices | D17: 2 | E17: Staff operating procedures | F17: no | H17: Our staff turns off equipment when not needed (e.g., turns off lights and equipment when not in use, after hours and on weekends). | I17: The most important tip for your business is “turn it off!!”. Introduce procedures to encourage staff to turn off equipment when not needed (e.g. turn off lights and office equipment when not in use, after hours and on weekends). Find more tips and information about how and when to turn off equipment through the link below. | J17: https://www.bchydro.com/powersmart/business/technologies-equipment/lighting-systems.html#1 | K17: =INDEX(Table1[Evaluator Question Set],MATCH(Sector,Table1[BC Hydro Sector Allocation],0))=Table3[[#This Row],[Question set]] ->  | L17: =IF(Table3[[#This Row],[Selected]],INDIRECT("'"&INDEX(Table5[SheetName],MATCH(Table3[[#This Row],[Diagnostic Heading]],Table5[Diagnostic Heading],0))&"'"&"!C"&11+Table3[[#This Row],[Q]]),"") ->  | M17: =IFERROR(AND(Table3[[#This Row],[BCH Funded]]="Yes",Table3[[#This Row],[Answer]]="No"),"") ->  | N17: =IFERROR(AND(Table3[[#This Row],[BCH Funded]]="no",Table3[[#This Row],[Answer]]="No"),"") ->  | O17: =IFERROR(IF(Table3[[#This Row],[Answer]]="No",INDEX(Table10[],MATCH(INDEX(Table8[CPR Type],MATCH(Table3[[#This Row],[Report Heading]],Table8[Report Heading],0)),Table10[Segment],0),MATCH(Table3[[#This Row],[Question set]],Table10[#Headers],0)),0),0.01/COUNTIFS(Table3[Question set],INDEX(Table1[Evaluator Question Set],MATCH(Sector,Table1[BC Hydro Sector Allocation],0)),Table3[Diagnostic Heading],Table3[[#This Row],[Diagnostic Heading]],Table3[Selected],TRUE)) ->  | P17: 1 | Q17: 1 | R17: =Table3[[#This Row],[a]]*Table3[[#This Row],[b]]*Table3[[#This Row],[c]] ->  | S17: =Table3[[#This Row],[ES Percent]]*AnnEgyCons ->  | T17: TRUE
A18: =INDEX(Table7[Q],MATCH(Table3[[#This Row],[Question set]],Table7[Question Set],0))&"."&INDEX(Table5[S],MATCH(Table3[[#This Row],[Diagnostic Heading]],Table5[Diagnostic Heading],0))&"."&Table3[[#This Row],[Q]] -> 1.5.3 | B18: Education | C18: Operating and Maintenance Practices | D18: 3 | E18: Maintenance practices | F18: no | H18: We conduct regular maintenance on our heating, ventilation & air conditioning system (e.g. cleaning condenser coils, changing filters, checking operation of economizer). | I18: Modify your maintenance procedures on your heating, ventilation & air conditioning system to include regular energy efficiency checks (e.g. cleaning condenser coils, changing filters, checking operation of economizers). Heating, ventilation and air conditioning systems are at their most efficient when they are well maintained. Learn more about maintenance procedures through the link below. | J18: https://www.bchydro.com/powersmart/business/technologies-equipment/heating-cooling.html#d | K18: =INDEX(Table1[Evaluator Question Set],MATCH(Sector,Table1[BC Hydro Sector Allocation],0))=Table3[[#This Row],[Question set]] ->  | L18: =IF(Table3[[#This Row],[Selected]],INDIRECT("'"&INDEX(Table5[SheetName],MATCH(Table3[[#This Row],[Diagnostic Heading]],Table5[Diagnostic Heading],0))&"'"&"!C"&11+Table3[[#This Row],[Q]]),"") ->  | M18: =IFERROR(AND(Table3[[#This Row],[BCH Funded]]="Yes",Table3[[#This Row],[Answer]]="No"),"") ->  | N18: =IFERROR(AND(Table3[[#This Row],[BCH Funded]]="no",Table3[[#This Row],[Answer]]="No"),"") ->  | O18: =IFERROR(IF(Table3[[#This Row],[Answer]]="No",INDEX(Table10[],MATCH(INDEX(Table8[CPR Type],MATCH(Table3[[#This Row],[Report Heading]],Table8[Report Heading],0)),Table10[Segment],0),MATCH(Table3[[#This Row],[Question set]],Table10[#Headers],0)),0),0.01/COUNTIFS(Table3[Question set],INDEX(Table1[Evaluator Question Set],MATCH(Sector,Table1[BC Hydro Sector Allocation],0)),Table3[Diagnostic Heading],Table3[[#This Row],[Diagnostic Heading]],Table3[Selected],TRUE)) ->  | P18: 1 | Q18: 1 | R18: =Table3[[#This Row],[a]]*Table3[[#This Row],[b]]*Table3[[#This Row],[c]] ->  | S18: =Table3[[#This Row],[ES Percent]]*AnnEgyCons ->  | T18: TRUE
A19: =INDEX(Table7[Q],MATCH(Table3[[#This Row],[Question set]],Table7[Question Set],0))&"."&INDEX(Table5[S],MATCH(Table3[[#This Row],[Diagnostic Heading]],Table5[Diagnostic Heading],0))&"."&Table3[[#This Row],[Q]] -> 1.5.4 | B19: Education | C19: Operating and Maintenance Practices | D19: 4 | E19: Energy saving tips | F19: no | H19: We have a list of energy saving tips for our type of business. | I19: Prepare a list of energy saving tips for your type of business. BC Hydro Power Smart has tips available. Find energy saving tips through the link below. | J19: https://www.bchydro.com/powersmart/business/technologies-equipment.html?WT.mc_id=rd_oldgreenyourbusiness | K19: =INDEX(Table1[Evaluator Question Set],MATCH(Sector,Table1[BC Hydro Sector Allocation],0))=Table3[[#This Row],[Question set]] ->  | L19: =IF(Table3[[#This Row],[Selected]],INDIRECT("'"&INDEX(Table5[SheetName],MATCH(Table3[[#This Row],[Diagnostic Heading]],Table5[Diagnostic Heading],0))&"'"&"!C"&11+Table3[[#This Row],[Q]]),"") ->  | M19: =IFERROR(AND(Table3[[#This Row],[BCH Funded]]="Yes",Table3[[#This Row],[Answer]]="No"),"") ->  | N19: =IFERROR(AND(Table3[[#This Row],[BCH Funded]]="no",Table3[[#This Row],[Answer]]="No"),"") ->  | O19: =IFERROR(IF(Table3[[#This Row],[Answer]]="No",INDEX(Table10[],MATCH(INDEX(Table8[CPR Type],MATCH(Table3[[#This Row],[Report Heading]],Table8[Report Heading],0)),Table10[Segment],0),MATCH(Table3[[#This Row],[Question set]],Table10[#Headers],0)),0),0.01/COUNTIFS(Table3[Question set],INDEX(Table1[Evaluator Question Set],MATCH(Sector,Table1[BC Hydro Sector Allocation],0)),Table3[Diagnostic Heading],Table3[[#This Row],[Diagnostic Heading]],Table3[Selected],TRUE)) ->  | P19: 1 | Q19: 1 | R19: =Table3[[#This Row],[a]]*Table3[[#This Row],[b]]*Table3[[#This Row],[c]] ->  | S19: =Table3[[#This Row],[ES Percent]]*AnnEgyCons ->  | T19: TRUE
A20: =INDEX(Table7[Q],MATCH(Table3[[#This Row],[Question set]],Table7[Question Set],0))&"."&INDEX(Table5[S],MATCH(Table3[[#This Row],[Diagnostic Heading]],Table5[Diagnostic Heading],0))&"."&Table3[[#This Row],[Q]] -> 1.5.5 | B20: Education | C20: Operating and Maintenance Practices | D20: 5 | E20: Staff Awareness | F20: no | H20: We have conducted energy conservation awareness activities (e.g. signage, newsletters, competitions). | I20: Conduct energy conservation awareness activities with your staff (e.g. signage, newsletters, competitions). Find tips and information on workplace conservation activities through the link below. | J20: https://www.bchydro.com/powersmart/business/programs/workplace-conservation.html?WT.mc_id=rd_oldworkplaceconservationawareness | K20: =INDEX(Table1[Evaluator Question Set],MATCH(Sector,Table1[BC Hydro Sector Allocation],0))=Table3[[#This Row],[Question set]] ->  | L20: =IF(Table3[[#This Row],[Selected]],INDIRECT("'"&INDEX(Table5[SheetName],MATCH(Table3[[#This Row],[Diagnostic Heading]],Table5[Diagnostic Heading],0))&"'"&"!C"&11+Table3[[#This Row],[Q]]),"") ->  | M20: =IFERROR(AND(Table3[[#This Row],[BCH Funded]]="Yes",Table3[[#This Row],[Answer]]="No"),"") ->  | N20: =IFERROR(AND(Table3[[#This Row],[BCH Funded]]="no",Table3[[#This Row],[Answer]]="No"),"") ->  | O20: =IFERROR(IF(Table3[[#This Row],[Answer]]="No",INDEX(Table10[],MATCH(INDEX(Table8[CPR Type],MATCH(Table3[[#This Row],[Report Heading]],Table8[Report Heading],0)),Table10[Segment],0),MATCH(Table3[[#This Row],[Question set]],Table10[#Headers],0)),0),0.01/COUNTIFS(Table3[Question set],INDEX(Table1[Evaluator Question Set],MATCH(Sector,Table1[BC Hydro Sector Allocation],0)),Table3[Diagnostic Heading],Table3[[#This Row],[Diagnostic Heading]],Table3[Selected],TRUE)) ->  | P20: 1 | Q20: 1 | R20: =Table3[[#This Row],[a]]*Table3[[#This Row],[b]]*Table3[[#This Row],[c]] ->  | S20: =Table3[[#This Row],[ES Percent]]*AnnEgyCons ->  | T20: TRUE
A21: =INDEX(Table7[Q],MATCH(Table3[[#This Row],[Question set]],Table7[Question Set],0))&"."&INDEX(Table5[S],MATCH(Table3[[#This Row],[Diagnostic Heading]],Table5[Diagnostic Heading],0))&"."&Table3[[#This Row],[Q]] -> 1.6.1 | B21: Education | C21: Management Practice | D21: 1 | E21: Effective management of energy data | F21: no | H21: We regularly go to bchydro.com and use MyHydro to track our energy usage. | I21: Develop a process for managing energy bills and metered energy use information centrally. For example in a spreadsheet, database, or other online tool for ready access. Sign up to see your BC Hydro account information online using the link below. | J21: https://www.bchydro.com/account/UI/Login?realm=bch-ps&goto=https%3A%2F%2Fwww.bchydro.com%3A443%2FBCHCustomerPortal%2Fweb%2Flogin.html | K21: =INDEX(Table1[Evaluator Question Set],MATCH(Sector,Table1[BC Hydro Sector Allocation],0))=Table3[[#This Row],[Question set]] ->  | L21: =IF(Table3[[#This Row],[Selected]],INDIRECT("'"&INDEX(Table5[SheetName],MATCH(Table3[[#This Row],[Diagnostic Heading]],Table5[Diagnostic Heading],0))&"'"&"!C"&11+Table3[[#This Row],[Q]]),"") ->  | M21: =IFERROR(AND(Table3[[#This Row],[BCH Funded]]="Yes",Table3[[#This Row],[Answer]]="No"),"") ->  | N21: =IFERROR(AND(Table3[[#This Row],[BCH Funded]]="no",Table3[[#This Row],[Answer]]="No"),"") ->  | O21: =IFERROR(IF(Table3[[#This Row],[Answer]]="No",INDEX(Table10[],MATCH(INDEX(Table8[CPR Type],MATCH(Table3[[#This Row],[Report Heading]],Table8[Report Heading],0)),Table10[Segment],0),MATCH(Table3[[#This Row],[Question set]],Table10[#Headers],0)),0),0.01/COUNTIFS(Table3[Question set],INDEX(Table1[Evaluator Question Set],MATCH(Sector,Table1[BC Hydro Sector Allocation],0)),Table3[Diagnostic Heading],Table3[[#This Row],[Diagnostic Heading]],Table3[Selected],TRUE)) ->  | P21: 1 | Q21: 1 | R21: =Table3[[#This Row],[a]]*Table3[[#This Row],[b]]*Table3[[#This Row],[c]] ->  | S21: =Table3[[#This Row],[ES Percent]]*AnnEgyCons ->  | T21: TRUE
A22: =INDEX(Table7[Q],MATCH(Table3[[#This Row],[Question set]],Table7[Question Set],0))&"."&INDEX(Table5[S],MATCH(Table3[[#This Row],[Diagnostic Heading]],Table5[Diagnostic Heading],0))&"."&Table3[[#This Row],[Q]] -> 1.6.2 | B22: Education | C22: Management Practice | D22: 2 | E22: Reporting systems for energy use | F22: no | H22: We periodically report energy use for our business to relevant staff. | I22: Establish a process to regularly report your energy efficiency to management and staff. Learn more about managing energy costs and consumption in your business through the link below. | J22: https://www.bchydro.com/powersmart/business/types-of-business-customers.html | K22: =INDEX(Table1[Evaluator Question Set],MATCH(Sector,Table1[BC Hydro Sector Allocation],0))=Table3[[#This Row],[Question set]] ->  | L22: =IF(Table3[[#This Row],[Selected]],INDIRECT("'"&INDEX(Table5[SheetName],MATCH(Table3[[#This Row],[Diagnostic Heading]],Table5[Diagnostic Heading],0))&"'"&"!C"&11+Table3[[#This Row],[Q]]),"") ->  | M22: =IFERROR(AND(Table3[[#This Row],[BCH Funded]]="Yes",Table3[[#This Row],[Answer]]="No"),"") ->  | N22: =IFERROR(AND(Table3[[#This Row],[BCH Funded]]="no",Table3[[#This Row],[Answer]]="No"),"") ->  | O22: =IFERROR(IF(Table3[[#This Row],[Answer]]="No",INDEX(Table10[],MATCH(INDEX(Table8[CPR Type],MATCH(Table3[[#This Row],[Report Heading]],Table8[Report Heading],0)),Table10[Segment],0),MATCH(Table3[[#This Row],[Question set]],Table10[#Headers],0)),0),0.01/COUNTIFS(Table3[Question set],INDEX(Table1[Evaluator Question Set],MATCH(Sector,Table1[BC Hydro Sector Allocation],0)),Table3[Diagnostic Heading],Table3[[#This Row],[Diagnostic Heading]],Table3[Selected],TRUE)) ->  | P22: 1 | Q22: 1 | R22: =Table3[[#This Row],[a]]*Table3[[#This Row],[b]]*Table3[[#This Row],[c]] ->  | S22: =Table3[[#This Row],[ES Percent]]*AnnEgyCons ->  | T22: TRUE
A23: =INDEX(Table7[Q],MATCH(Table3[[#This Row],[Question set]],Table7[Question Set],0))&"."&INDEX(Table5[S],MATCH(Table3[[#This Row],[Diagnostic Heading]],Table5[Diagnostic Heading],0))&"."&Table3[[#This Row],[Q]] -> 1.6.3 | B23: Education | C23: Management Practice | D23: 3 | E23: Targets and Planning | F23: no | H23: We have a target and action plan to reduce energy costs for the next year (e.g. kWh/sq. ft. by 10%). | I23: Create a realistic target and action plan to reduce energy costs for the next year (e.g. kWh/sq. ft. by 10%). Find out how to manage your energy costs and consumption in your business through the link below. | J23: https://www.bchydro.com/news/conservation/2014/myhydro-to-manage-energy-and-profitability.html | K23: =INDEX(Table1[Evaluator Question Set],MATCH(Sector,Table1[BC Hydro Sector Allocation],0))=Table3[[#This Row],[Question set]] ->  | L23: =IF(Table3[[#This Row],[Selected]],INDIRECT("'"&INDEX(Table5[SheetName],MATCH(Table3[[#This Row],[Diagnostic Heading]],Table5[Diagnostic Heading],0))&"'"&"!C"&11+Table3[[#This Row],[Q]]),"") ->  | M23: =IFERROR(AND(Table3[[#This Row],[BCH Funded]]="Yes",Table3[[#This Row],[Answer]]="No"),"") ->  | N23: =IFERROR(AND(Table3[[#This Row],[BCH Funded]]="no",Table3[[#This Row],[Answer]]="No"),"") ->  | O23: =IFERROR(IF(Table3[[#This Row],[Answer]]="No",INDEX(Table10[],MATCH(INDEX(Table8[CPR Type],MATCH(Table3[[#This Row],[Report Heading]],Table8[Report Heading],0)),Table10[Segment],0),MATCH(Table3[[#This Row],[Question set]],Table10[#Headers],0)),0),0.01/COUNTIFS(Table3[Question set],INDEX(Table1[Evaluator Question Set],MATCH(Sector,Table1[BC Hydro Sector Allocation],0)),Table3[Diagnostic Heading],Table3[[#This Row],[Diagnostic Heading]],Table3[Selected],TRUE)) ->  | P23: 1 | Q23: 1 | R23: =Table3[[#This Row],[a]]*Table3[[#This Row],[b]]*Table3[[#This Row],[c]] ->  | S23: =Table3[[#This Row],[ES Percent]]*AnnEgyCons ->  | T23: TRUE
A24: =INDEX(Table7[Q],MATCH(Table3[[#This Row],[Question set]],Table7[Question Set],0))&"."&INDEX(Table5[S],MATCH(Table3[[#This Row],[Diagnostic Heading]],Table5[Diagnostic Heading],0))&"."&Table3[[#This Row],[Q]] -> 1.6.4 | B24: Education | C24: Management Practice | D24: 4 | E24: Understanding of energy performance and opportunities | F24: no | H24: We have completed an energy audit, which has quantified costs and savings opportunities. | I24: Conduct an energy audit to quantify costs and identify savings opportunities. Learn how to do an energy audit and build a business case for energy efficiency through the link below. | J24: http://www.bchydro.com/powersmart/business/business-energy-advisors.html?WT.mc_id=rd_bea | K24: =INDEX(Table1[Evaluator Question Set],MATCH(Sector,Table1[BC Hydro Sector Allocation],0))=Table3[[#This Row],[Question set]] ->  | L24: =IF(Table3[[#This Row],[Selected]],INDIRECT("'"&INDEX(Table5[SheetName],MATCH(Table3[[#This Row],[Diagnostic Heading]],Table5[Diagnostic Heading],0))&"'"&"!C"&11+Table3[[#This Row],[Q]]),"") ->  | M24: =IFERROR(AND(Table3[[#This Row],[BCH Funded]]="Yes",Table3[[#This Row],[Answer]]="No"),"") ->  | N24: =IFERROR(AND(Table3[[#This Row],[BCH Funded]]="no",Table3[[#This Row],[Answer]]="No"),"") ->  | O24: =IFERROR(IF(Table3[[#This Row],[Answer]]="No",INDEX(Table10[],MATCH(INDEX(Table8[CPR Type],MATCH(Table3[[#This Row],[Report Heading]],Table8[Report Heading],0)),Table10[Segment],0),MATCH(Table3[[#This Row],[Question set]],Table10[#Headers],0)),0),0.01/COUNTIFS(Table3[Question set],INDEX(Table1[Evaluator Question Set],MATCH(Sector,Table1[BC Hydro Sector Allocation],0)),Table3[Diagnostic Heading],Table3[[#This Row],[Diagnostic Heading]],Table3[Selected],TRUE)) ->  | P24: 1 | Q24: 1 | R24: =Table3[[#This Row],[a]]*Table3[[#This Row],[b]]*Table3[[#This Row],[c]] ->  | S24: =Table3[[#This Row],[ES Percent]]*AnnEgyCons ->  | T24: TRUE
A25: =INDEX(Table7[Q],MATCH(Table3[[#This Row],[Question set]],Table7[Question Set],0))&"."&INDEX(Table5[S],MATCH(Table3[[#This Row],[Diagnostic Heading]],Table5[Diagnostic Heading],0))&"."&Table3[[#This Row],[Q]] -> 1.6.5 | B25: Education | C25: Management Practice | D25: 5 | E25: Purchasing | F25: no | H25: We use energy efficient guidelines and product catalogues when buying equipment or specify standards in our procurement process. | I25: Use Power Smart buying guides and product catalogues when buying equipment or specify energy efficiency standards in your procurement process. Visit the link below for BC Hydro Power Smart buying guides. | J25: https://www.bchydro.com/powersmart/business/technologies-equipment.html https://www.energystar.gov/products?s=mega | K25: =INDEX(Table1[Evaluator Question Set],MATCH(Sector,Table1[BC Hydro Sector Allocation],0))=Table3[[#This Row],[Question set]] ->  | L25: =IF(Table3[[#This Row],[Selected]],INDIRECT("'"&INDEX(Table5[SheetName],MATCH(Table3[[#This Row],[Diagnostic Heading]],Table5[Diagnostic Heading],0))&"'"&"!C"&11+Table3[[#This Row],[Q]]),"") ->  | M25: =IFERROR(AND(Table3[[#This Row],[BCH Funded]]="Yes",Table3[[#This Row],[Answer]]="No"),"") ->  | N25: =IFERROR(AND(Table3[[#This Row],[BCH Funded]]="no",Table3[[#This Row],[Answer]]="No"),"") ->  | O25: =IFERROR(IF(Table3[[#This Row],[Answer]]="No",INDEX(Table10[],MATCH(INDEX(Table8[CPR Type],MATCH(Table3[[#This Row],[Report Heading]],Table8[Report Heading],0)),Table10[Segment],0),MATCH(Table3[[#This Row],[Question set]],Table10[#Headers],0)),0),0.01/COUNTIFS(Table3[Question set],INDEX(Table1[Evaluator Question Set],MATCH(Sector,Table1[BC Hydro Sector Allocation],0)),Table3[Diagnostic Heading],Table3[[#This Row],[Diagnostic Heading]],Table3[Selected],TRUE)) ->  | P25: 1 | Q25: 1 | R25: =Table3[[#This Row],[a]]*Table3[[#This Row],[b]]*Table3[[#This Row],[c]] ->  | S25: =Table3[[#This Row],[ES Percent]]*AnnEgyCons ->  | T25: TRUE
A26: =INDEX(Table7[Q],MATCH(Table3[[#This Row],[Question set]],Table7[Question Set],0))&"."&INDEX(Table5[S],MATCH(Table3[[#This Row],[Diagnostic Heading]],Table5[Diagnostic Heading],0))&"."&Table3[[#This Row],[Q]] -> 2.1.1 | B26: Retail (non-food) | C26: Lighting | D26: 1 | E26: LED Lighting | F26: yes | G26: Average incentive of 50% of product cost | H26: We have upgraded our incandescent lighting to energy efficient LED lamps. | I26: BC Hydro funding is available. Assess the cost effectiveness of upgrading your incandescent lighting to energy efficient LEDs. LEDs use at least 75% less energy than a standard incandescent and last about 15 to 20 times longer than incandescent lighting, and about three times longer than CFLs. Learn more about LEDs by clicking the link below. | J26: http://www.bchydro.com/news/conservation/2014/led-lighting-increasingly-popular.html | K26: =INDEX(Table1[Evaluator Question Set],MATCH(Sector,Table1[BC Hydro Sector Allocation],0))=Table3[[#This Row],[Question set]] ->  | L26: =IF(Table3[[#This Row],[Selected]],INDIRECT("'"&INDEX(Table5[SheetName],MATCH(Table3[[#This Row],[Diagnostic Heading]],Table5[Diagnostic Heading],0))&"'"&"!C"&11+Table3[[#This Row],[Q]]),"") ->  | M26: =IFERROR(AND(Table3[[#This Row],[BCH Funded]]="Yes",Table3[[#This Row],[Answer]]="No"),"") ->  | N26: =IFERROR(AND(Table3[[#This Row],[BCH Funded]]="no",Table3[[#This Row],[Answer]]="No"),"") ->  | O26: =IFERROR(IF(Table3[[#This Row],[Answer]]="No",INDEX(Table10[],MATCH(INDEX(Table8[CPR Type],MATCH(Table3[[#This Row],[Report Heading]],Table8[Report Heading],0)),Table10[Segment],0),MATCH(Table3[[#This Row],[Question set]],Table10[#Headers],0)),0),0.01/COUNTIFS(Table3[Question set],INDEX(Table1[Evaluator Question Set],MATCH(Sector,Table1[BC Hydro Sector Allocation],0)),Table3[Diagnostic Heading],Table3[[#This Row],[Diagnostic Heading]],Table3[Selected],TRUE)) ->  | P26: 0.5 | Q26: 0.75 | R26: =Table3[[#This Row],[a]]*Table3[[#This Row],[b]]*Table3[[#This Row],[c]] ->  | S26: =Table3[[#This Row],[ES Percent]]*AnnEgyCons ->  | T26: TRUE | U26: Cristian Suvagau
A27: =INDEX(Table7[Q],MATCH(Table3[[#This Row],[Question set]],Table7[Question Set],0))&"."&INDEX(Table5[S],MATCH(Table3[[#This Row],[Diagnostic Heading]],Table5[Diagnostic Heading],0))&"."&Table3[[#This Row],[Q]] -> 2.1.2 | B27: Retail (non-food) | C27: Lighting | D27: 2 | E27: Fluorescent lighting | F27: yes | G27: Average incentive of 25% of project cost when upgrading to LED | H27: Our fluorescent lighting uses energy efficient T8 or T5 tubes. | I27: Consider upgrading your fluorescent lighting to energy efficient T8 lamps. If you currently have T12 lamps, upgrading to the latest T8 lamps and electronic ballasts could reduce your lighting costs by up to 40%. Also consider upgrading to LEDs to increase your savings by up to 60% and be eligible for BC Hydro incentives. | J27: https://www.bchydro.com/ecatalog/eCatServlet?cmd=all_psp_incentives&existId=&energyId=13&p=1&sb=3&dir=1&ip=50 | K27: =INDEX(Table1[Evaluator Question Set],MATCH(Sector,Table1[BC Hydro Sector Allocation],0))=Table3[[#This Row],[Question set]] ->  | L27: =IF(Table3[[#This Row],[Selected]],INDIRECT("'"&INDEX(Table5[SheetName],MATCH(Table3[[#This Row],[Diagnostic Heading]],Table5[Diagnostic Heading],0))&"'"&"!C"&11+Table3[[#This Row],[Q]]),"") ->  | M27: =IFERROR(AND(Table3[[#This Row],[BCH Funded]]="Yes",Table3[[#This Row],[Answer]]="No"),"") ->  | N27: =IFERROR(AND(Table3[[#This Row],[BCH Funded]]="no",Table3[[#This Row],[Answer]]="No"),"") ->  | O27: =IFERROR(IF(Table3[[#This Row],[Answer]]="No",INDEX(Table10[],MATCH(INDEX(Table8[CPR Type],MATCH(Table3[[#This Row],[Report Heading]],Table8[Report Heading],0)),Table10[Segment],0),MATCH(Table3[[#This Row],[Question set]],Table10[#Headers],0)),0),0.01/COUNTIFS(Table3[Question set],INDEX(Table1[Evaluator Question Set],MATCH(Sector,Table1[BC Hydro Sector Allocation],0)),Table3[Diagnostic Heading],Table3[[#This Row],[Diagnostic Heading]],Table3[Selected],TRUE)) ->  | P27: 0.4 | Q27: 0.3 | R27: =Table3[[#This Row],[a]]*Table3[[#This Row],[b]]*Table3[[#This Row],[c]] ->  | S27: =Table3[[#This Row],[ES Percent]]*AnnEgyCons ->  | T27: TRUE | U27: Cristian Suvagau
A28: =INDEX(Table7[Q],MATCH(Table3[[#This Row],[Question set]],Table7[Question Set],0))&"."&INDEX(Table5[S],MATCH(Table3[[#This Row],[Diagnostic Heading]],Table5[Diagnostic Heading],0))&"."&Table3[[#This Row],[Q]] -> 2.1.3 | B28: Retail (non-food) | C28: Lighting | D28: 3 | E28: LED Exit lighting | F28: no | H28: We have replaced incandescent exit signs with energy efficient LED exit signs. | I28: Did you know that exit signs are now legislated by the federal government? | J28: http://www.nrcan.gc.ca/energy/regulations-codes-standards/18419 | K28: =INDEX(Table1[Evaluator Question Set],MATCH(Sector,Table1[BC Hydro Sector Allocation],0))=Table3[[#This Row],[Question set]] ->  | L28: =IF(Table3[[#This Row],[Selected]],INDIRECT("'"&INDEX(Table5[SheetName],MATCH(Table3[[#This Row],[Diagnostic Heading]],Table5[Diagnostic Heading],0))&"'"&"!C"&11+Table3[[#This Row],[Q]]),"") ->  | M28: =IFERROR(AND(Table3[[#This Row],[BCH Funded]]="Yes",Table3[[#This Row],[Answer]]="No"),"") ->  | N28: =IFERROR(AND(Table3[[#This Row],[BCH Funded]]="no",Table3[[#This Row],[Answer]]="No"),"") ->  | O28: =IFERROR(IF(Table3[[#This Row],[Answer]]="No",INDEX(Table10[],MATCH(INDEX(Table8[CPR Type],MATCH(Table3[[#This Row],[Report Heading]],Table8[Report Heading],0)),Table10[Segment],0),MATCH(Table3[[#This Row],[Question set]],Table10[#Headers],0)),0),0.01/COUNTIFS(Table3[Question set],INDEX(Table1[Evaluator Question Set],MATCH(Sector,Table1[BC Hydro Sector Allocation],0)),Table3[Diagnostic Heading],Table3[[#This Row],[Diagnostic Heading]],Table3[Selected],TRUE)) ->  | P28: 0.02 | Q28: 0.9 | R28: =Table3[[#This Row],[a]]*Table3[[#This Row],[b]]*Table3[[#This Row],[c]] ->  | S28: =Table3[[#This Row],[ES Percent]]*AnnEgyCons ->  | T28: TRUE | U28: Cristian Suvagau
A29: =INDEX(Table7[Q],MATCH(Table3[[#This Row],[Question set]],Table7[Question Set],0))&"."&INDEX(Table5[S],MATCH(Table3[[#This Row],[Diagnostic Heading]],Table5[Diagnostic Heading],0))&"."&Table3[[#This Row],[Q]] -> 2.1.4 | B29: Retail (non-food) | C29: Lighting | D29: 4 | E29: Exterior Lighting | F29: yes | G29: Average incentive of 25% of project cost | H29: We have upgraded our exterior lighting to energy efficient lamps and fixtures that reduce glare, light pollution and lighting costs (e.g. in parking lots). | I29: Consider upgrading your exterior lighting (e.g. in parking lots) to T8 fluorescent or LED (incentives available for specific LED technologies). These will provide savings and you can get your return even quicker with incentives. | J29: https://www.bchydro.com/ecatalog/eCatServlet?cmd=all_psp_incentives&existId=&energyId=13&p=1&sb=3&dir=1&ip=50 | K29: =INDEX(Table1[Evaluator Question Set],MATCH(Sector,Table1[BC Hydro Sector Allocation],0))=Table3[[#This Row],[Question set]] ->  | L29: =IF(Table3[[#This Row],[Selected]],INDIRECT("'"&INDEX(Table5[SheetName],MATCH(Table3[[#This Row],[Diagnostic Heading]],Table5[Diagnostic Heading],0))&"'"&"!C"&11+Table3[[#This Row],[Q]]),"") ->  | M29: =IFERROR(AND(Table3[[#This Row],[BCH Funded]]="Yes",Table3[[#This Row],[Answer]]="No"),"") ->  | N29: =IFERROR(AND(Table3[[#This Row],[BCH Funded]]="no",Table3[[#This Row],[Answer]]="No"),"") ->  | O29: =IFERROR(IF(Table3[[#This Row],[Answer]]="No",INDEX(Table10[],MATCH(INDEX(Table8[CPR Type],MATCH(Table3[[#This Row],[Report Heading]],Table8[Report Heading],0)),Table10[Segment],0),MATCH(Table3[[#This Row],[Question set]],Table10[#Headers],0)),0),0.01/COUNTIFS(Table3[Question set],INDEX(Table1[Evaluator Question Set],MATCH(Sector,Table1[BC Hydro Sector Allocation],0)),Table3[Diagnostic Heading],Table3[[#This Row],[Diagnostic Heading]],Table3[Selected],TRUE)) ->  | P29: 1 | Q29: 0.5 | R29: =Table3[[#This Row],[a]]*Table3[[#This Row],[b]]*Table3[[#This Row],[c]] ->  | S29: =Table3[[#This Row],[ES Percent]]*AnnEgyCons ->  | T29: TRUE | U29: Cristian Suvagau
A30: =INDEX(Table7[Q],MATCH(Table3[[#This Row],[Question set]],Table7[Question Set],0))&"."&INDEX(Table5[S],MATCH(Table3[[#This Row],[Diagnostic Heading]],Table5[Diagnostic Heading],0))&"."&Table3[[#This Row],[Q]] -> 2.1.5 | B30: Retail (non-food) | C30: Lighting | D30: 5 | E30: Lighting control | F30: No | H30: We have installed controls on lighting to turn off when not required (e.g. timers or occupancy sensors in offices and meeting rooms, daylight harvesting in offices). | I30: Lighting controls can provide you with energy savings and better management of your lighting systems. Adding lighting controls may be eligible for additional incentive funding when completing a lighting retrofit as not all controls energy savings are recognized by BC Hydro. | J30: https://www.bchydro.com/ecatalog/eCatServlet?cmd=all_psp_incentives&existId=&energyId=14 | K30: =INDEX(Table1[Evaluator Question Set],MATCH(Sector,Table1[BC Hydro Sector Allocation],0))=Table3[[#This Row],[Question set]] ->  | L30: =IF(Table3[[#This Row],[Selected]],INDIRECT("'"&INDEX(Table5[SheetName],MATCH(Table3[[#This Row],[Diagnostic Heading]],Table5[Diagnostic Heading],0))&"'"&"!C"&11+Table3[[#This Row],[Q]]),"") ->  | M30: =IFERROR(AND(Table3[[#This Row],[BCH Funded]]="Yes",Table3[[#This Row],[Answer]]="No"),"") ->  | N30: =IFERROR(AND(Table3[[#This Row],[BCH Funded]]="no",Table3[[#This Row],[Answer]]="No"),"") ->  | O30: =IFERROR(IF(Table3[[#This Row],[Answer]]="No",INDEX(Table10[],MATCH(INDEX(Table8[CPR Type],MATCH(Table3[[#This Row],[Report Heading]],Table8[Report Heading],0)),Table10[Segment],0),MATCH(Table3[[#This Row],[Question set]],Table10[#Headers],0)),0),0.01/COUNTIFS(Table3[Question set],INDEX(Table1[Evaluator Question Set],MATCH(Sector,Table1[BC Hydro Sector Allocation],0)),Table3[Diagnostic Heading],Table3[[#This Row],[Diagnostic Heading]],Table3[Selected],TRUE)) ->  | P30: 0.15 | Q30: 0.3 | R30: =Table3[[#This Row],[a]]*Table3[[#This Row],[b]]*Table3[[#This Row],[c]] ->  | S30: =Table3[[#This Row],[ES Percent]]*AnnEgyCons ->  | T30: TRUE | U30: Cristian Suvagau
A31: =INDEX(Table7[Q],MATCH(Table3[[#This Row],[Question set]],Table7[Question Set],0))&"."&INDEX(Table5[S],MATCH(Table3[[#This Row],[Diagnostic Heading]],Table5[Diagnostic Heading],0))&"."&Table3[[#This Row],[Q]] -> 2.2.1 | B31: Retail (non-food) | C31: Heating, Ventilation, Air Conditioning / Refrigeration | D31: 1 | E31: Refrigeration | F31: no | H31: We have installed anti-sweat heater controls, or doors requiring low/no sweat heat on refrigerated display cases. | I31: Assess the cost effectiveness of installing anti-sweat heater controls, or doors requiring low/no sweat heat on refrigerated display cases. | J31: https://www.bchydro.com/ecatalog/eCatServlet?cmd=all_psp_incentives&existId=24&energyId=16 | K31: =INDEX(Table1[Evaluator Question Set],MATCH(Sector,Table1[BC Hydro Sector Allocation],0))=Table3[[#This Row],[Question set]] ->  | L31: =IF(Table3[[#This Row],[Selected]],INDIRECT("'"&INDEX(Table5[SheetName],MATCH(Table3[[#This Row],[Diagnostic Heading]],Table5[Diagnostic Heading],0))&"'"&"!C"&11+Table3[[#This Row],[Q]]),"") ->  | M31: =IFERROR(AND(Table3[[#This Row],[BCH Funded]]="Yes",Table3[[#This Row],[Answer]]="No"),"") ->  | N31: =IFERROR(AND(Table3[[#This Row],[BCH Funded]]="no",Table3[[#This Row],[Answer]]="No"),"") ->  | O31: =IFERROR(IF(Table3[[#This Row],[Answer]]="No",INDEX(Table10[],MATCH(INDEX(Table8[CPR Type],MATCH(Table3[[#This Row],[Report Heading]],Table8[Report Heading],0)),Table10[Segment],0),MATCH(Table3[[#This Row],[Question set]],Table10[#Headers],0)),0),0.01/COUNTIFS(Table3[Question set],INDEX(Table1[Evaluator Question Set],MATCH(Sector,Table1[BC Hydro Sector Allocation],0)),Table3[Diagnostic Heading],Table3[[#This Row],[Diagnostic Heading]],Table3[Selected],TRUE)) ->  | P31: 1 | Q31: 0.24 | R31: =Table3[[#This Row],[a]]*Table3[[#This Row],[b]]*Table3[[#This Row],[c]] ->  | S31: =Table3[[#This Row],[ES Percent]]*AnnEgyCons ->  | T31: TRUE | U31: https://www.bchydro.com/powersmart/business/technologies-equipment.html
A32: =INDEX(Table7[Q],MATCH(Table3[[#This Row],[Question set]],Table7[Question Set],0))&"."&INDEX(Table5[S],MATCH(Table3[[#This Row],[Diagnostic Heading]],Table5[Diagnostic Heading],0))&"."&Table3[[#This Row],[Q]] -> 2.2.2 | B32: Retail (non-food) | C32: Heating, Ventilation, Air Conditioning / Refrigeration | D32: 2 | E32: Refrigeration | F32: no | H32: Our cool room/freezer is insulated and includes a strip curtain and/or auto-closing door. | I32: Dollars are leaking out! Add strip curtains to walk-in coolers to reduce the amount of energy lost to the surrounding air. Strip curtains used in busy kitchens can cut your refrigeration costs significantly! As an added bonus, these curtains repel windborne contaminants like dust and pollutants. Auto closers will ensure coolers and freezers do not remain open. Learn more about strip curtains from the case study link below. | J32: https://www.bchydro.com/powersmart/business/success-stories/donalds-market-success.html | K32: =INDEX(Table1[Evaluator Question Set],MATCH(Sector,Table1[BC Hydro Sector Allocation],0))=Table3[[#This Row],[Question set]] ->  | L32: =IF(Table3[[#This Row],[Selected]],INDIRECT("'"&INDEX(Table5[SheetName],MATCH(Table3[[#This Row],[Diagnostic Heading]],Table5[Diagnostic Heading],0))&"'"&"!C"&11+Table3[[#This Row],[Q]]),"") ->  | M32: =IFERROR(AND(Table3[[#This Row],[BCH Funded]]="Yes",Table3[[#This Row],[Answer]]="No"),"") ->  | N32: =IFERROR(AND(Table3[[#This Row],[BCH Funded]]="no",Table3[[#This Row],[Answer]]="No"),"") ->  | O32: =IFERROR(IF(Table3[[#This Row],[Answer]]="No",INDEX(Table10[],MATCH(INDEX(Table8[CPR Type],MATCH(Table3[[#This Row],[Report Heading]],Table8[Report Heading],0)),Table10[Segment],0),MATCH(Table3[[#This Row],[Question set]],Table10[#Headers],0)),0),0.01/COUNTIFS(Table3[Question set],INDEX(Table1[Evaluator Question Set],MATCH(Sector,Table1[BC Hydro Sector Allocation],0)),Table3[Diagnostic Heading],Table3[[#This Row],[Diagnostic Heading]],Table3[Selected],TRUE)) ->  | P32: 1 | Q32: 0.24 | R32: =Table3[[#This Row],[a]]*Table3[[#This Row],[b]]*Table3[[#This Row],[c]] ->  | S32: =Table3[[#This Row],[ES Percent]]*AnnEgyCons ->  | T32: TRUE | U32: https://www.bchydro.com/powersmart/business/technologies-equipment.html
A33: =INDEX(Table7[Q],MATCH(Table3[[#This Row],[Question set]],Table7[Question Set],0))&"."&INDEX(Table5[S],MATCH(Table3[[#This Row],[Diagnostic Heading]],Table5[Diagnostic Heading],0))&"."&Table3[[#This Row],[Q]] -> 2.2.3 | B33: Retail (non-food) | C33: Heating, Ventilation, Air Conditioning / Refrigeration | D33: 3 | E33: Air tightness | F33: no | H33: We have examined ways to improve the air-tightness of air-conditioned spaces (e.g. closing doors, windows and installing air curtains). | I33: Stretch your legs. Have a walk around and look for where you could improve the air-tightness of air-conditioned spaces (e.g. closing doors, windows, installing air curtains). Learn more about air leakage control in your building through the link below. | J33: http://www.energycodes.gov/sites/default/files/documents/BECP_Buidling%20Energy%20Code%20Resource%20Guide%20Air%20Leakage%20Guide_Sept2011_v00_lores.pdf | K33: =INDEX(Table1[Evaluator Question Set],MATCH(Sector,Table1[BC Hydro Sector Allocation],0))=Table3[[#This Row],[Question set]] ->  | L33: =IF(Table3[[#This Row],[Selected]],INDIRECT("'"&INDEX(Table5[SheetName],MATCH(Table3[[#This Row],[Diagnostic Heading]],Table5[Diagnostic Heading],0))&"'"&"!C"&11+Table3[[#This Row],[Q]]),"") ->  | M33: =IFERROR(AND(Table3[[#This Row],[BCH Funded]]="Yes",Table3[[#This Row],[Answer]]="No"),"") ->  | N33: =IFERROR(AND(Table3[[#This Row],[BCH Funded]]="no",Table3[[#This Row],[Answer]]="No"),"") ->  | O33: =IFERROR(IF(Table3[[#This Row],[Answer]]="No",INDEX(Table10[],MATCH(INDEX(Table8[CPR Type],MATCH(Table3[[#This Row],[Report Heading]],Table8[Report Heading],0)),Table10[Segment],0),MATCH(Table3[[#This Row],[Question set]],Table10[#Headers],0)),0),0.01/COUNTIFS(Table3[Question set],INDEX(Table1[Evaluator Question Set],MATCH(Sector,Table1[BC Hydro Sector Allocation],0)),Table3[Diagnostic Heading],Table3[[#This Row],[Diagnostic Heading]],Table3[Selected],TRUE)) ->  | P33: 1 | Q33: 0.02 | R33: =Table3[[#This Row],[a]]*Table3[[#This Row],[b]]*Table3[[#This Row],[c]] ->  | S33: =Table3[[#This Row],[ES Percent]]*AnnEgyCons ->  | T33: TRUE | U33: ASHRAE- Simulation of the Impact of Commercial Building Envelope Airtightness on Building Energy Utilization
A34: =INDEX(Table7[Q],MATCH(Table3[[#This Row],[Question set]],Table7[Question Set],0))&"."&INDEX(Table5[S],MATCH(Table3[[#This Row],[Diagnostic Heading]],Table5[Diagnostic Heading],0))&"."&Table3[[#This Row],[Q]] -> 2.2.4 | B34: Retail (non-food) | C34: Heating, Ventilation, Air Conditioning / Refrigeration | D34: 4 | E34: Heating / cooling controls | F34: yes | G34: Average incentive of 20% of project cost | H34: We have upgraded our heating, ventilation & air conditioning system to include variable frequency drives on fans and pumps and/or variable speed ECM pumps. | I34: BC Hydro funding is available. Consider upgrading your heating, ventilation & air conditioning system to include variable frequency drives on fans and pumps and/or variable speed ECM pumps. | J34: https://www.bchydro.com/ecatalog/ | K34: =INDEX(Table1[Evaluator Question Set],MATCH(Sector,Table1[BC Hydro Sector Allocation],0))=Table3[[#This Row],[Question set]] ->  | L34: =IF(Table3[[#This Row],[Selected]],INDIRECT("'"&INDEX(Table5[SheetName],MATCH(Table3[[#This Row],[Diagnostic Heading]],Table5[Diagnostic Heading],0))&"'"&"!C"&11+Table3[[#This Row],[Q]]),"") ->  | M34: =IFERROR(AND(Table3[[#This Row],[BCH Funded]]="Yes",Table3[[#This Row],[Answer]]="No"),"") ->  | N34: =IFERROR(AND(Table3[[#This Row],[BCH Funded]]="no",Table3[[#This Row],[Answer]]="No"),"") ->  | O34: =IFERROR(IF(Table3[[#This Row],[Answer]]="No",INDEX(Table10[],MATCH(INDEX(Table8[CPR Type],MATCH(Table3[[#This Row],[Report Heading]],Table8[Report Heading],0)),Table10[Segment],0),MATCH(Table3[[#This Row],[Question set]],Table10[#Headers],0)),0),0.01/COUNTIFS(Table3[Question set],INDEX(Table1[Evaluator Question Set],MATCH(Sector,Table1[BC Hydro Sector Allocation],0)),Table3[Diagnostic Heading],Table3[[#This Row],[Diagnostic Heading]],Table3[Selected],TRUE)) ->  | P34: 1 | Q34: 0.2 | R34: =Table3[[#This Row],[a]]*Table3[[#This Row],[b]]*Table3[[#This Row],[c]] ->  | S34: =Table3[[#This Row],[ES Percent]]*AnnEgyCons ->  | T34: TRUE | U34: Past commercial incentives
A35: =INDEX(Table7[Q],MATCH(Table3[[#This Row],[Question set]],Table7[Question Set],0))&"."&INDEX(Table5[S],MATCH(Table3[[#This Row],[Diagnostic Heading]],Table5[Diagnostic Heading],0))&"."&Table3[[#This Row],[Q]] -> 2.2.5 | B35: Retail (non-food) | C35: Heating, Ventilation, Air Conditioning / Refrigeration | D35: 5 | E35: Heating and cooling temperature set points | F35: no | H35: We have adjusted temperature settings for heating and cooling to minimize energy use. | I35: Work with your staff to have them adjust temperature settings for heating and cooling to minimize energy use. Learn more about operating your refrigeration units efficiently through the link below. | J35: https://www.bchydro.com/powersmart/business/technologies-equipment/heating-cooling.html | K35: =INDEX(Table1[Evaluator Question Set],MATCH(Sector,Table1[BC Hydro Sector Allocation],0))=Table3[[#This Row],[Question set]] ->  | L35: =IF(Table3[[#This Row],[Selected]],INDIRECT("'"&INDEX(Table5[SheetName],MATCH(Table3[[#This Row],[Diagnostic Heading]],Table5[Diagnostic Heading],0))&"'"&"!C"&11+Table3[[#This Row],[Q]]),"") ->  | M35: =IFERROR(AND(Table3[[#This Row],[BCH Funded]]="Yes",Table3[[#This Row],[Answer]]="No"),"") ->  | N35: =IFERROR(AND(Table3[[#This Row],[BCH Funded]]="no",Table3[[#This Row],[Answer]]="No"),"") ->  | O35: =IFERROR(IF(Table3[[#This Row],[Answer]]="No",INDEX(Table10[],MATCH(INDEX(Table8[CPR Type],MATCH(Table3[[#This Row],[Report Heading]],Table8[Report Heading],0)),Table10[Segment],0),MATCH(Table3[[#This Row],[Question set]],Table10[#Headers],0)),0),0.01/COUNTIFS(Table3[Question set],INDEX(Table1[Evaluator Question Set],MATCH(Sector,Table1[BC Hydro Sector Allocation],0)),Table3[Diagnostic Heading],Table3[[#This Row],[Diagnostic Heading]],Table3[Selected],TRUE)) ->  | P35: 1 | Q35: 0.05 | R35: =Table3[[#This Row],[a]]*Table3[[#This Row],[b]]*Table3[[#This Row],[c]] ->  | S35: =Table3[[#This Row],[ES Percent]]*AnnEgyCons ->  | T35: TRUE | U35: Past commercial incentives
A36: =INDEX(Table7[Q],MATCH(Table3[[#This Row],[Question set]],Table7[Question Set],0))&"."&INDEX(Table5[S],MATCH(Table3[[#This Row],[Diagnostic Heading]],Table5[Diagnostic Heading],0))&"."&Table3[[#This Row],[Q]] -> 2.4.1 | B36: Retail (non-food) | C36: Energy Efficient Equipment | D36: 1 | E36: LED case light | F36: no | H36: We have assessed the cost effectiveness of installing LED case light occupancy sensors to reduce our energy costs. | I36: Assess the cost effectiveness of installing LED case light occupancy sensors to reduce your energy costs. | J36: https://www.bchydro.com/ecatalog/ | K36: =INDEX(Table1[Evaluator Question Set],MATCH(Sector,Table1[BC Hydro Sector Allocation],0))=Table3[[#This Row],[Question set]] ->  | L36: =IF(Table3[[#This Row],[Selected]],INDIRECT("'"&INDEX(Table5[SheetName],MATCH(Table3[[#This Row],[Diagnostic Heading]],Table5[Diagnostic Heading],0))&"'"&"!C"&11+Table3[[#This Row],[Q]]),"") ->  | M36: =IFERROR(AND(Table3[[#This Row],[BCH Funded]]="Yes",Table3[[#This Row],[Answer]]="No"),"") ->  | N36: =IFERROR(AND(Table3[[#This Row],[BCH Funded]]="no",Table3[[#This Row],[Answer]]="No"),"") ->  | O36: =IFERROR(IF(Table3[[#This Row],[Answer]]="No",INDEX(Table10[],MATCH(INDEX(Table8[CPR Type],MATCH(Table3[[#This Row],[Report Heading]],Table8[Report Heading],0)),Table10[Segment],0),MATCH(Table3[[#This Row],[Question set]],Table10[#Headers],0)),0),0.01/COUNTIFS(Table3[Question set],INDEX(Table1[Evaluator Question Set],MATCH(Sector,Table1[BC Hydro Sector Allocation],0)),Table3[Diagnostic Heading],Table3[[#This Row],[Diagnostic Heading]],Table3[Selected],TRUE)) ->  | P36: 1 | Q36: 0.24 | R36: =Table3[[#This Row],[a]]*Table3[[#This Row],[b]]*Table3[[#This Row],[c]] ->  | S36: =Table3[[#This Row],[ES Percent]]*AnnEgyCons ->  | T36: TRUE | U36: https://www.bchydro.com/powersmart/business/technologies-equipment.html
A37: =INDEX(Table7[Q],MATCH(Table3[[#This Row],[Question set]],Table7[Question Set],0))&"."&INDEX(Table5[S],MATCH(Table3[[#This Row],[Diagnostic Heading]],Table5[Diagnostic Heading],0))&"."&Table3[[#This Row],[Q]] -> 2.4.2 | B37: Retail (non-food) | C37: Energy Efficient Equipment | D37: 2 | E37: Programmable thermostat | F37: no | H37: We have upgraded the controls on our HVAC system to include a programmable thermostat (which reduces energy costs by turning down heating or cooling systems when facilities are unoccupied). | I37: Assess the cost and savings available when you upgrade the controls on your HVAC system to include a programmable thermostat. It reduces energy costs by turning down heating or cooling systems when facilities are unoccupied. Learn more about programmable thermostats in the link below. | J37: https://www.bchydro.com/powersmart/business/technologies-equipment/heating-cooling.html | K37: =INDEX(Table1[Evaluator Question Set],MATCH(Sector,Table1[BC Hydro Sector Allocation],0))=Table3[[#This Row],[Question set]] ->  | L37: =IF(Table3[[#This Row],[Selected]],INDIRECT("'"&INDEX(Table5[SheetName],MATCH(Table3[[#This Row],[Diagnostic Heading]],Table5[Diagnostic Heading],0))&"'"&"!C"&11+Table3[[#This Row],[Q]]),"") ->  | M37: =IFERROR(AND(Table3[[#This Row],[BCH Funded]]="Yes",Table3[[#This Row],[Answer]]="No"),"") ->  | N37: =IFERROR(AND(Table3[[#This Row],[BCH Funded]]="no",Table3[[#This Row],[Answer]]="No"),"") ->  | O37: =IFERROR(IF(Table3[[#This Row],[Answer]]="No",INDEX(Table10[],MATCH(INDEX(Table8[CPR Type],MATCH(Table3[[#This Row],[Report Heading]],Table8[Report Heading],0)),Table10[Segment],0),MATCH(Table3[[#This Row],[Question set]],Table10[#Headers],0)),0),0.01/COUNTIFS(Table3[Question set],INDEX(Table1[Evaluator Question Set],MATCH(Sector,Table1[BC Hydro Sector Allocation],0)),Table3[Diagnostic Heading],Table3[[#This Row],[Diagnostic Heading]],Table3[Selected],TRUE)) ->  | P37: 1 | Q37: 0.02 | R37: =Table3[[#This Row],[a]]*Table3[[#This Row],[b]]*Table3[[#This Row],[c]] ->  | S37: =Table3[[#This Row],[ES Percent]]*AnnEgyCons ->  | T37: TRUE | U37: ASHRAE- Simulation of the Impact of Commercial Building Envelope Airtightness on Building Energy Utilization
A38: =INDEX(Table7[Q],MATCH(Table3[[#This Row],[Question set]],Table7[Question Set],0))&"."&INDEX(Table5[S],MATCH(Table3[[#This Row],[Diagnostic Heading]],Table5[Diagnostic Heading],0))&"."&Table3[[#This Row],[Q]] -> 2.4.3 | B38: Retail (non-food) | C38: Energy Efficient Equipment | D38: 3 | E38: Economizer sensor | F38: yes | G38: Average incentive of 20% of project cost | H38: We have assessed opportunities to upgrade to an efficient economizer controller sensor on our rooftop heating, ventilation & air conditioning system. | I38: BC Hydro funding is available. Assess the cost effectiveness of upgrading your rooftop heating, ventilation & air conditioning system with an efficient economizer controller sensor. | J38: https://www.bchydro.com/ecatalog/ | K38: =INDEX(Table1[Evaluator Question Set],MATCH(Sector,Table1[BC Hydro Sector Allocation],0))=Table3[[#This Row],[Question set]] ->  | L38: =IF(Table3[[#This Row],[Selected]],INDIRECT("'"&INDEX(Table5[SheetName],MATCH(Table3[[#This Row],[Diagnostic Heading]],Table5[Diagnostic Heading],0))&"'"&"!C"&11+Table3[[#This Row],[Q]]),"") ->  | M38: =IFERROR(AND(Table3[[#This Row],[BCH Funded]]="Yes",Table3[[#This Row],[Answer]]="No"),"") ->  | N38: =IFERROR(AND(Table3[[#This Row],[BCH Funded]]="no",Table3[[#This Row],[Answer]]="No"),"") ->  | O38: =IFERROR(IF(Table3[[#This Row],[Answer]]="No",INDEX(Table10[],MATCH(INDEX(Table8[CPR Type],MATCH(Table3[[#This Row],[Report Heading]],Table8[Report Heading],0)),Table10[Segment],0),MATCH(Table3[[#This Row],[Question set]],Table10[#Headers],0)),0),0.01/COUNTIFS(Table3[Question set],INDEX(Table1[Evaluator Question Set],MATCH(Sector,Table1[BC Hydro Sector Allocation],0)),Table3[Diagnostic Heading],Table3[[#This Row],[Diagnostic Heading]],Table3[Selected],TRUE)) ->  | P38: 1 | Q38: 0.1 | R38: =Table3[[#This Row],[a]]*Table3[[#This Row],[b]]*Table3[[#This Row],[c]] ->  | S38: =Table3[[#This Row],[ES Percent]]*AnnEgyCons ->  | T38: TRUE | U38: Stan Ma: past experience
A39: =INDEX(Table7[Q],MATCH(Table3[[#This Row],[Question set]],Table7[Question Set],0))&"."&INDEX(Table5[S],MATCH(Table3[[#This Row],[Diagnostic Heading]],Table5[Diagnostic Heading],0))&"."&Table3[[#This Row],[Q]] -> 2.4.4 | B39: Retail (non-food) | C39: Energy Efficient Equipment | D39: 4 | E39: Office Equipment | F39: no | H39: We have upgraded our power bars to energy efficient power bars. | I39: Consider upgrading the power bars on your office equipment to the latest current-sensing power bars. Learn more about BC Hydro’s financial incentives for this technology through the link below. | J39: https://www.energystar.gov/products/low_carbon_it_campaign/more_it_energy_saving_tips | K39: =INDEX(Table1[Evaluator Question Set],MATCH(Sector,Table1[BC Hydro Sector Allocation],0))=Table3[[#This Row],[Question set]] ->  | L39: =IF(Table3[[#This Row],[Selected]],INDIRECT("'"&INDEX(Table5[SheetName],MATCH(Table3[[#This Row],[Diagnostic Heading]],Table5[Diagnostic Heading],0))&"'"&"!C"&11+Table3[[#This Row],[Q]]),"") ->  | M39: =IFERROR(AND(Table3[[#This Row],[BCH Funded]]="Yes",Table3[[#This Row],[Answer]]="No"),"") ->  | N39: =IFERROR(AND(Table3[[#This Row],[BCH Funded]]="no",Table3[[#This Row],[Answer]]="No"),"") ->  | O39: =IFERROR(IF(Table3[[#This Row],[Answer]]="No",INDEX(Table10[],MATCH(INDEX(Table8[CPR Type],MATCH(Table3[[#This Row],[Report Heading]],Table8[Report Heading],0)),Table10[Segment],0),MATCH(Table3[[#This Row],[Question set]],Table10[#Headers],0)),0),0.01/COUNTIFS(Table3[Question set],INDEX(Table1[Evaluator Question Set],MATCH(Sector,Table1[BC Hydro Sector Allocation],0)),Table3[Diagnostic Heading],Table3[[#This Row],[Diagnostic Heading]],Table3[Selected],TRUE)) ->  | P39: 1 | Q39: 0.05 | R39: =Table3[[#This Row],[a]]*Table3[[#This Row],[b]]*Table3[[#This Row],[c]] ->  | S39: =Table3[[#This Row],[ES Percent]]*AnnEgyCons ->  | T39: TRUE | U39: Past commercial incentives
A40: =INDEX(Table7[Q],MATCH(Table3[[#This Row],[Question set]],Table7[Question Set],0))&"."&INDEX(Table5[S],MATCH(Table3[[#This Row],[Diagnostic Heading]],Table5[Diagnostic Heading],0))&"."&Table3[[#This Row],[Q]] -> 2.5.1 | B40: Retail (non-food) | C40: Operating and Maintenance Practices | D40: 1 | E40: Hot water control | F40: no | H40: We have explored how to reduce hot water temperature while still maintaining required sanitary conditions. | I40: Look into the possibility of reducing your hot water temperature while still maintaining required sanitary conditions. You'll be surprised at what can be saved through reducing hot water temperature without degrading the use. Learn more about water heating and usage through the link below. | J40: https://www.bchydro.com/powersmart/business/technologies-equipment/heating-cooling.html | K40: =INDEX(Table1[Evaluator Question Set],MATCH(Sector,Table1[BC Hydro Sector Allocation],0))=Table3[[#This Row],[Question set]] ->  | L40: =IF(Table3[[#This Row],[Selected]],INDIRECT("'"&INDEX(Table5[SheetName],MATCH(Table3[[#This Row],[Diagnostic Heading]],Table5[Diagnostic Heading],0))&"'"&"!C"&11+Table3[[#This Row],[Q]]),"") ->  | M40: =IFERROR(AND(Table3[[#This Row],[BCH Funded]]="Yes",Table3[[#This Row],[Answer]]="No"),"") ->  | N40: =IFERROR(AND(Table3[[#This Row],[BCH Funded]]="no",Table3[[#This Row],[Answer]]="No"),"") ->  | O40: =IFERROR(IF(Table3[[#This Row],[Answer]]="No",INDEX(Table10[],MATCH(INDEX(Table8[CPR Type],MATCH(Table3[[#This Row],[Report Heading]],Table8[Report Heading],0)),Table10[Segment],0),MATCH(Table3[[#This Row],[Question set]],Table10[#Headers],0)),0),0.01/COUNTIFS(Table3[Question set],INDEX(Table1[Evaluator Question Set],MATCH(Sector,Table1[BC Hydro Sector Allocation],0)),Table3[Diagnostic Heading],Table3[[#This Row],[Diagnostic Heading]],Table3[Selected],TRUE)) ->  | P40: 1 | Q40: 1 | R40: =Table3[[#This Row],[a]]*Table3[[#This Row],[b]]*Table3[[#This Row],[c]] ->  | S40: =Table3[[#This Row],[ES Percent]]*AnnEgyCons ->  | T40: TRUE
A41: =INDEX(Table7[Q],MATCH(Table3[[#This Row],[Question set]],Table7[Question Set],0))&"."&INDEX(Table5[S],MATCH(Table3[[#This Row],[Diagnostic Heading]],Table5[Diagnostic Heading],0))&"."&Table3[[#This Row],[Q]] -> 2.5.2 | B41: Retail (non-food) | C41: Operating and Maintenance Practices | D41: 2 | E41: Staff operating procedures | F41: no | H41: Our staff turns off equipment when not needed (e.g., turns off lights and equipment when not in use, after hours and on weekends). | I41: The most important tip for your business is “turn it off!!”. Introduce procedures to encourage staff to turn off equipment when not needed (e.g. turn off lights and office equipment when not in use, after hours and on weekends). Find more tips and information about how and when to turn off equipment through the link below. | J41: https://www.bchydro.com/powersmart/business/technologies-equipment/lighting-systems.html#1 | K41: =INDEX(Table1[Evaluator Question Set],MATCH(Sector,Table1[BC Hydro Sector Allocation],0))=Table3[[#This Row],[Question set]] ->  | L41: =IF(Table3[[#This Row],[Selected]],INDIRECT("'"&INDEX(Table5[SheetName],MATCH(Table3[[#This Row],[Diagnostic Heading]],Table5[Diagnostic Heading],0))&"'"&"!C"&11+Table3[[#This Row],[Q]]),"") ->  | M41: =IFERROR(AND(Table3[[#This Row],[BCH Funded]]="Yes",Table3[[#This Row],[Answer]]="No"),"") ->  | N41: =IFERROR(AND(Table3[[#This Row],[BCH Funded]]="no",Table3[[#This Row],[Answer]]="No"),"") ->  | O41: =IFERROR(IF(Table3[[#This Row],[Answer]]="No",INDEX(Table10[],MATCH(INDEX(Table8[CPR Type],MATCH(Table3[[#This Row],[Report Heading]],Table8[Report Heading],0)),Table10[Segment],0),MATCH(Table3[[#This Row],[Question set]],Table10[#Headers],0)),0),0.01/COUNTIFS(Table3[Question set],INDEX(Table1[Evaluator Question Set],MATCH(Sector,Table1[BC Hydro Sector Allocation],0)),Table3[Diagnostic Heading],Table3[[#This Row],[Diagnostic Heading]],Table3[Selected],TRUE)) ->  | P41: 1 | Q41: 1 | R41: =Table3[[#This Row],[a]]*Table3[[#This Row],[b]]*Table3[[#This Row],[c]] ->  | S41: =Table3[[#This Row],[ES Percent]]*AnnEgyCons ->  | T41: TRUE
A42: =INDEX(Table7[Q],MATCH(Table3[[#This Row],[Question set]],Table7[Question Set],0))&"."&INDEX(Table5[S],MATCH(Table3[[#This Row],[Diagnostic Heading]],Table5[Diagnostic Heading],0))&"."&Table3[[#This Row],[Q]] -> 2.5.3 | B42: Retail (non-food) | C42: Operating and Maintenance Practices | D42: 3 | E42: Maintenance practices | F42: no | H42: We conduct regular maintenance on our HVAC system (e.g. cleaning condenser coils, changing filters, checking operation of economizer). | I42: Modify your maintenance procedures on your heating, ventilation & air conditioning system to include regular energy efficiency checks (e.g. cleaning condenser coils, changing filters, checking operation of economizers). HVAC systems are at their most efficient when they are well maintained. Learn more about maintenance procedures through the link below. | J42: https://www.bchydro.com/powersmart/business/technologies-equipment/heating-cooling.html#d | K42: =INDEX(Table1[Evaluator Question Set],MATCH(Sector,Table1[BC Hydro Sector Allocation],0))=Table3[[#This Row],[Question set]] ->  | L42: =IF(Table3[[#This Row],[Selected]],INDIRECT("'"&INDEX(Table5[SheetName],MATCH(Table3[[#This Row],[Diagnostic Heading]],Table5[Diagnostic Heading],0))&"'"&"!C"&11+Table3[[#This Row],[Q]]),"") ->  | M42: =IFERROR(AND(Table3[[#This Row],[BCH Funded]]="Yes",Table3[[#This Row],[Answer]]="No"),"") ->  | N42: =IFERROR(AND(Table3[[#This Row],[BCH Funded]]="no",Table3[[#This Row],[Answer]]="No"),"") ->  | O42: =IFERROR(IF(Table3[[#This Row],[Answer]]="No",INDEX(Table10[],MATCH(INDEX(Table8[CPR Type],MATCH(Table3[[#This Row],[Report Heading]],Table8[Report Heading],0)),Table10[Segment],0),MATCH(Table3[[#This Row],[Question set]],Table10[#Headers],0)),0),0.01/COUNTIFS(Table3[Question set],INDEX(Table1[Evaluator Question Set],MATCH(Sector,Table1[BC Hydro Sector Allocation],0)),Table3[Diagnostic Heading],Table3[[#This Row],[Diagnostic Heading]],Table3[Selected],TRUE)) ->  | P42: 1 | Q42: 1 | R42: =Table3[[#This Row],[a]]*Table3[[#This Row],[b]]*Table3[[#This Row],[c]] ->  | S42: =Table3[[#This Row],[ES Percent]]*AnnEgyCons ->  | T42: TRUE
A43: =INDEX(Table7[Q],MATCH(Table3[[#This Row],[Question set]],Table7[Question Set],0))&"."&INDEX(Table5[S],MATCH(Table3[[#This Row],[Diagnostic Heading]],Table5[Diagnostic Heading],0))&"."&Table3[[#This Row],[Q]] -> 2.5.4 | B43: Retail (non-food) | C43: Operating and Maintenance Practices | D43: 4 | E43: Energy saving tips | F43: no | H43: We have a list of energy saving tips for our type of business. | I43: Prepare a list of energy saving tips for your type of business. BC Hydro Power Smart has tips available. Find energy saving tips through the link below. | J43: https://www.bchydro.com/powersmart/business/technologies-equipment.html?WT.mc_id=rd_oldgreenyourbusiness | K43: =INDEX(Table1[Evaluator Question Set],MATCH(Sector,Table1[BC Hydro Sector Allocation],0))=Table3[[#This Row],[Question set]] ->  | L43: =IF(Table3[[#This Row],[Selected]],INDIRECT("'"&INDEX(Table5[SheetName],MATCH(Table3[[#This Row],[Diagnostic Heading]],Table5[Diagnostic Heading],0))&"'"&"!C"&11+Table3[[#This Row],[Q]]),"") ->  | M43: =IFERROR(AND(Table3[[#This Row],[BCH Funded]]="Yes",Table3[[#This Row],[Answer]]="No"),"") ->  | N43: =IFERROR(AND(Table3[[#This Row],[BCH Funded]]="no",Table3[[#This Row],[Answer]]="No"),"") ->  | O43: =IFERROR(IF(Table3[[#This Row],[Answer]]="No",INDEX(Table10[],MATCH(INDEX(Table8[CPR Type],MATCH(Table3[[#This Row],[Report Heading]],Table8[Report Heading],0)),Table10[Segment],0),MATCH(Table3[[#This Row],[Question set]],Table10[#Headers],0)),0),0.01/COUNTIFS(Table3[Question set],INDEX(Table1[Evaluator Question Set],MATCH(Sector,Table1[BC Hydro Sector Allocation],0)),Table3[Diagnostic Heading],Table3[[#This Row],[Diagnostic Heading]],Table3[Selected],TRUE)) ->  | P43: 1 | Q43: 1 | R43: =Table3[[#This Row],[a]]*Table3[[#This Row],[b]]*Table3[[#This Row],[c]] ->  | S43: =Table3[[#This Row],[ES Percent]]*AnnEgyCons ->  | T43: TRUE
A44: =INDEX(Table7[Q],MATCH(Table3[[#This Row],[Question set]],Table7[Question Set],0))&"."&INDEX(Table5[S],MATCH(Table3[[#This Row],[Diagnostic Heading]],Table5[Diagnostic Heading],0))&"."&Table3[[#This Row],[Q]] -> 2.5.5 | B44: Retail (non-food) | C44: Operating and Maintenance Practices | D44: 5 | E44: Staff Awareness | F44: no | H44: We have conducted energy conservation awareness activities (e.g. signage, newsletters, competitions). | I44: Conduct energy conservation awareness activities with your staff (e.g. signage, newsletters, competitions). Find tips and information on workplace conservation activities through the link below. | J44: https://www.bchydro.com/powersmart/business/programs/workplace-conservation.html?WT.mc_id=rd_oldworkplaceconservationawareness | K44: =INDEX(Table1[Evaluator Question Set],MATCH(Sector,Table1[BC Hydro Sector Allocation],0))=Table3[[#This Row],[Question set]] ->  | L44: =IF(Table3[[#This Row],[Selected]],INDIRECT("'"&INDEX(Table5[SheetName],MATCH(Table3[[#This Row],[Diagnostic Heading]],Table5[Diagnostic Heading],0))&"'"&"!C"&11+Table3[[#This Row],[Q]]),"") ->  | M44: =IFERROR(AND(Table3[[#This Row],[BCH Funded]]="Yes",Table3[[#This Row],[Answer]]="No"),"") ->  | N44: =IFERROR(AND(Table3[[#This Row],[BCH Funded]]="no",Table3[[#This Row],[Answer]]="No"),"") ->  | O44: =IFERROR(IF(Table3[[#This Row],[Answer]]="No",INDEX(Table10[],MATCH(INDEX(Table8[CPR Type],MATCH(Table3[[#This Row],[Report Heading]],Table8[Report Heading],0)),Table10[Segment],0),MATCH(Table3[[#This Row],[Question set]],Table10[#Headers],0)),0),0.01/COUNTIFS(Table3[Question set],INDEX(Table1[Evaluator Question Set],MATCH(Sector,Table1[BC Hydro Sector Allocation],0)),Table3[Diagnostic Heading],Table3[[#This Row],[Diagnostic Heading]],Table3[Selected],TRUE)) ->  | P44: 1 | Q44: 1 | R44: =Table3[[#This Row],[a]]*Table3[[#This Row],[b]]*Table3[[#This Row],[c]] ->  | S44: =Table3[[#This Row],[ES Percent]]*AnnEgyCons ->  | T44: TRUE
A45: =INDEX(Table7[Q],MATCH(Table3[[#This Row],[Question set]],Table7[Question Set],0))&"."&INDEX(Table5[S],MATCH(Table3[[#This Row],[Diagnostic Heading]],Table5[Diagnostic Heading],0))&"."&Table3[[#This Row],[Q]] -> 2.6.1 | B45: Retail (non-food) | C45: Management Practice | D45: 1 | E45: Effective management of energy data | F45: no | H45: We regularly go to bchydro.com and use MyHydro to track our energy usage. | I45: Develop a process for managing energy bills and metered energy use information centrally. For example in a spreadsheet, database, or other online tool for ready access. Sign up to see your BC Hydro account information online using the link below. | J45: https://www.bchydro.com/account/UI/Login?realm=bch-ps&goto=https%3A%2F%2Fwww.bchydro.com%3A443%2FBCHCustomerPortal%2Fweb%2Flogin.html | K45: =INDEX(Table1[Evaluator Question Set],MATCH(Sector,Table1[BC Hydro Sector Allocation],0))=Table3[[#This Row],[Question set]] ->  | L45: =IF(Table3[[#This Row],[Selected]],INDIRECT("'"&INDEX(Table5[SheetName],MATCH(Table3[[#This Row],[Diagnostic Heading]],Table5[Diagnostic Heading],0))&"'"&"!C"&11+Table3[[#This Row],[Q]]),"") ->  | M45: =IFERROR(AND(Table3[[#This Row],[BCH Funded]]="Yes",Table3[[#This Row],[Answer]]="No"),"") ->  | N45: =IFERROR(AND(Table3[[#This Row],[BCH Funded]]="no",Table3[[#This Row],[Answer]]="No"),"") ->  | O45: =IFERROR(IF(Table3[[#This Row],[Answer]]="No",INDEX(Table10[],MATCH(INDEX(Table8[CPR Type],MATCH(Table3[[#This Row],[Report Heading]],Table8[Report Heading],0)),Table10[Segment],0),MATCH(Table3[[#This Row],[Question set]],Table10[#Headers],0)),0),0.01/COUNTIFS(Table3[Question set],INDEX(Table1[Evaluator Question Set],MATCH(Sector,Table1[BC Hydro Sector Allocation],0)),Table3[Diagnostic Heading],Table3[[#This Row],[Diagnostic Heading]],Table3[Selected],TRUE)) ->  | P45: 1 | Q45: 1 | R45: =Table3[[#This Row],[a]]*Table3[[#This Row],[b]]*Table3[[#This Row],[c]] ->  | S45: =Table3[[#This Row],[ES Percent]]*AnnEgyCons ->  | T45: TRUE
A46: =INDEX(Table7[Q],MATCH(Table3[[#This Row],[Question set]],Table7[Question Set],0))&"."&INDEX(Table5[S],MATCH(Table3[[#This Row],[Diagnostic Heading]],Table5[Diagnostic Heading],0))&"."&Table3[[#This Row],[Q]] -> 2.6.2 | B46: Retail (non-food) | C46: Management Practice | D46: 2 | E46: Reporting systems for energy use | F46: no | H46: We periodically report energy use for our business to relevant staff. | I46: Establish a process to regularly report your energy efficiency to management and staff. Learn more about managing energy costs and consumption in your business through the link below. | J46: https://www.bchydro.com/powersmart/business/types-of-business-customers.html | K46: =INDEX(Table1[Evaluator Question Set],MATCH(Sector,Table1[BC Hydro Sector Allocation],0))=Table3[[#This Row],[Question set]] ->  | L46: =IF(Table3[[#This Row],[Selected]],INDIRECT("'"&INDEX(Table5[SheetName],MATCH(Table3[[#This Row],[Diagnostic Heading]],Table5[Diagnostic Heading],0))&"'"&"!C"&11+Table3[[#This Row],[Q]]),"") ->  | M46: =IFERROR(AND(Table3[[#This Row],[BCH Funded]]="Yes",Table3[[#This Row],[Answer]]="No"),"") ->  | N46: =IFERROR(AND(Table3[[#This Row],[BCH Funded]]="no",Table3[[#This Row],[Answer]]="No"),"") ->  | O46: =IFERROR(IF(Table3[[#This Row],[Answer]]="No",INDEX(Table10[],MATCH(INDEX(Table8[CPR Type],MATCH(Table3[[#This Row],[Report Heading]],Table8[Report Heading],0)),Table10[Segment],0),MATCH(Table3[[#This Row],[Question set]],Table10[#Headers],0)),0),0.01/COUNTIFS(Table3[Question set],INDEX(Table1[Evaluator Question Set],MATCH(Sector,Table1[BC Hydro Sector Allocation],0)),Table3[Diagnostic Heading],Table3[[#This Row],[Diagnostic Heading]],Table3[Selected],TRUE)) ->  | P46: 1 | Q46: 1 | R46: =Table3[[#This Row],[a]]*Table3[[#This Row],[b]]*Table3[[#This Row],[c]] ->  | S46: =Table3[[#This Row],[ES Percent]]*AnnEgyCons ->  | T46: TRUE
A47: =INDEX(Table7[Q],MATCH(Table3[[#This Row],[Question set]],Table7[Question Set],0))&"."&INDEX(Table5[S],MATCH(Table3[[#This Row],[Diagnostic Heading]],Table5[Diagnostic Heading],0))&"."&Table3[[#This Row],[Q]] -> 2.6.3 | B47: Retail (non-food) | C47: Management Practice | D47: 3 | E47: Targets and Planning | F47: no | H47: We have a target and action plan to reduce energy costs for the next year (e.g. kWh/sq. ft. by 10%). | I47: Create a realistic target and action plan to reduce energy costs for the next year (e.g. kWh/sq. ft. by 10%). Find out how to manage your energy costs and consumption in your business through the link below. | J47: https://www.bchydro.com/news/conservation/2014/myhydro-to-manage-energy-and-profitability.html | K47: =INDEX(Table1[Evaluator Question Set],MATCH(Sector,Table1[BC Hydro Sector Allocation],0))=Table3[[#This Row],[Question set]] ->  | L47: =IF(Table3[[#This Row],[Selected]],INDIRECT("'"&INDEX(Table5[SheetName],MATCH(Table3[[#This Row],[Diagnostic Heading]],Table5[Diagnostic Heading],0))&"'"&"!C"&11+Table3[[#This Row],[Q]]),"") ->  | M47: =IFERROR(AND(Table3[[#This Row],[BCH Funded]]="Yes",Table3[[#This Row],[Answer]]="No"),"") ->  | N47: =IFERROR(AND(Table3[[#This Row],[BCH Funded]]="no",Table3[[#This Row],[Answer]]="No"),"") ->  | O47: =IFERROR(IF(Table3[[#This Row],[Answer]]="No",INDEX(Table10[],MATCH(INDEX(Table8[CPR Type],MATCH(Table3[[#This Row],[Report Heading]],Table8[Report Heading],0)),Table10[Segment],0),MATCH(Table3[[#This Row],[Question set]],Table10[#Headers],0)),0),0.01/COUNTIFS(Table3[Question set],INDEX(Table1[Evaluator Question Set],MATCH(Sector,Table1[BC Hydro Sector Allocation],0)),Table3[Diagnostic Heading],Table3[[#This Row],[Diagnostic Heading]],Table3[Selected],TRUE)) ->  | P47: 1 | Q47: 1 | R47: =Table3[[#This Row],[a]]*Table3[[#This Row],[b]]*Table3[[#This Row],[c]] ->  | S47: =Table3[[#This Row],[ES Percent]]*AnnEgyCons ->  | T47: TRUE
A48: =INDEX(Table7[Q],MATCH(Table3[[#This Row],[Question set]],Table7[Question Set],0))&"."&INDEX(Table5[S],MATCH(Table3[[#This Row],[Diagnostic Heading]],Table5[Diagnostic Heading],0))&"."&Table3[[#This Row],[Q]] -> 2.6.4 | B48: Retail (non-food) | C48: Management Practice | D48: 4 | E48: Understanding of energy performance and opportunities | F48: no | H48: We have completed an energy audit, which has quantified costs and savings opportunities. | I48: Conduct an energy audit to quantify costs and identify savings opportunities. Learn how to do an energy audit and build a business case for energy efficiency through the link below. | J48: http://www.bchydro.com/powersmart/business/business-energy-advisors.html?WT.mc_id=rd_bea | K48: =INDEX(Table1[Evaluator Question Set],MATCH(Sector,Table1[BC Hydro Sector Allocation],0))=Table3[[#This Row],[Question set]] ->  | L48: =IF(Table3[[#This Row],[Selected]],INDIRECT("'"&INDEX(Table5[SheetName],MATCH(Table3[[#This Row],[Diagnostic Heading]],Table5[Diagnostic Heading],0))&"'"&"!C"&11+Table3[[#This Row],[Q]]),"") ->  | M48: =IFERROR(AND(Table3[[#This Row],[BCH Funded]]="Yes",Table3[[#This Row],[Answer]]="No"),"") ->  | N48: =IFERROR(AND(Table3[[#This Row],[BCH Funded]]="no",Table3[[#This Row],[Answer]]="No"),"") ->  | O48: =IFERROR(IF(Table3[[#This Row],[Answer]]="No",INDEX(Table10[],MATCH(INDEX(Table8[CPR Type],MATCH(Table3[[#This Row],[Report Heading]],Table8[Report Heading],0)),Table10[Segment],0),MATCH(Table3[[#This Row],[Question set]],Table10[#Headers],0)),0),0.01/COUNTIFS(Table3[Question set],INDEX(Table1[Evaluator Question Set],MATCH(Sector,Table1[BC Hydro Sector Allocation],0)),Table3[Diagnostic Heading],Table3[[#This Row],[Diagnostic Heading]],Table3[Selected],TRUE)) ->  | P48: 1 | Q48: 1 | R48: =Table3[[#This Row],[a]]*Table3[[#This Row],[b]]*Table3[[#This Row],[c]] ->  | S48: =Table3[[#This Row],[ES Percent]]*AnnEgyCons ->  | T48: TRUE
A49: =INDEX(Table7[Q],MATCH(Table3[[#This Row],[Question set]],Table7[Question Set],0))&"."&INDEX(Table5[S],MATCH(Table3[[#This Row],[Diagnostic Heading]],Table5[Diagnostic Heading],0))&"."&Table3[[#This Row],[Q]] -> 2.6.5 | B49: Retail (non-food) | C49: Management Practice | D49: 5 | E49: Purchasing | F49: no | H49: We use energy efficient guidelines and product catalogues when buying equipment or specify standards in our procurement process. | I49: Use Power Smart buying guides and product catalogues when buying equipment or specify energy efficiency standards in your procurement process. Visit the link below for BC Hydro Power Smart buying guides. | J49: https://www.bchydro.com/powersmart/business/technologies-equipment.html https://www.energystar.gov/products?s=mega | K49: =INDEX(Table1[Evaluator Question Set],MATCH(Sector,Table1[BC Hydro Sector Allocation],0))=Table3[[#This Row],[Question set]] ->  | L49: =IF(Table3[[#This Row],[Selected]],INDIRECT("'"&INDEX(Table5[SheetName],MATCH(Table3[[#This Row],[Diagnostic Heading]],Table5[Diagnostic Heading],0))&"'"&"!C"&11+Table3[[#This Row],[Q]]),"") ->  | M49: =IFERROR(AND(Table3[[#This Row],[BCH Funded]]="Yes",Table3[[#This Row],[Answer]]="No"),"") ->  | N49: =IFERROR(AND(Table3[[#This Row],[BCH Funded]]="no",Table3[[#This Row],[Answer]]="No"),"") ->  | O49: =IFERROR(IF(Table3[[#This Row],[Answer]]="No",INDEX(Table10[],MATCH(INDEX(Table8[CPR Type],MATCH(Table3[[#This Row],[Report Heading]],Table8[Report Heading],0)),Table10[Segment],0),MATCH(Table3[[#This Row],[Question set]],Table10[#Headers],0)),0),0.01/COUNTIFS(Table3[Question set],INDEX(Table1[Evaluator Question Set],MATCH(Sector,Table1[BC Hydro Sector Allocation],0)),Table3[Diagnostic Heading],Table3[[#This Row],[Diagnostic Heading]],Table3[Selected],TRUE)) ->  | P49: 1 | Q49: 1 | R49: =Table3[[#This Row],[a]]*Table3[[#This Row],[b]]*Table3[[#This Row],[c]] ->  | S49: =Table3[[#This Row],[ES Percent]]*AnnEgyCons ->  | T49: TRUE
A50: =INDEX(Table7[Q],MATCH(Table3[[#This Row],[Question set]],Table7[Question Set],0))&"."&INDEX(Table5[S],MATCH(Table3[[#This Row],[Diagnostic Heading]],Table5[Diagnostic Heading],0))&"."&Table3[[#This Row],[Q]] -> 3.1.1 | B50: Office | C50: Lighting | D50: 1 | E50: LED Lighting | F50: No | H50: We have upgraded our incandescent lighting to energy efficient LED lamps. | I50: BC Hydro funding is available. Assess the cost effectiveness of upgrading your incandescent lighting to energy efficient LEDs. LEDs use at least 75% less energy than a standard incandescent and last about 15 to 20 times longer than incandescent lighting, and about three times longer than CFLs. Learn more about LEDs by clicking the link below. | J50: http://www.bchydro.com/news/conservation/2014/led-lighting-increasingly-popular.html | K50: =INDEX(Table1[Evaluator Question Set],MATCH(Sector,Table1[BC Hydro Sector Allocation],0))=Table3[[#This Row],[Question set]] ->  | L50: =IF(Table3[[#This Row],[Selected]],INDIRECT("'"&INDEX(Table5[SheetName],MATCH(Table3[[#This Row],[Diagnostic Heading]],Table5[Diagnostic Heading],0))&"'"&"!C"&11+Table3[[#This Row],[Q]]),"") ->  | M50: =IFERROR(AND(Table3[[#This Row],[BCH Funded]]="Yes",Table3[[#This Row],[Answer]]="No"),"") ->  | N50: =IFERROR(AND(Table3[[#This Row],[BCH Funded]]="no",Table3[[#This Row],[Answer]]="No"),"") ->  | O50: =IFERROR(IF(Table3[[#This Row],[Answer]]="No",INDEX(Table10[],MATCH(INDEX(Table8[CPR Type],MATCH(Table3[[#This Row],[Report Heading]],Table8[Report Heading],0)),Table10[Segment],0),MATCH(Table3[[#This Row],[Question set]],Table10[#Headers],0)),0),0.01/COUNTIFS(Table3[Question set],INDEX(Table1[Evaluator Question Set],MATCH(Sector,Table1[BC Hydro Sector Allocation],0)),Table3[Diagnostic Heading],Table3[[#This Row],[Diagnostic Heading]],Table3[Selected],TRUE)) ->  | P50: 0.1 | Q50: 0.75 | R50: =Table3[[#This Row],[a]]*Table3[[#This Row],[b]]*Table3[[#This Row],[c]] ->  | S50: =Table3[[#This Row],[ES Percent]]*AnnEgyCons ->  | T50: TRUE | U50: Cristian Suvagau
A51: =INDEX(Table7[Q],MATCH(Table3[[#This Row],[Question set]],Table7[Question Set],0))&"."&INDEX(Table5[S],MATCH(Table3[[#This Row],[Diagnostic Heading]],Table5[Diagnostic Heading],0))&"."&Table3[[#This Row],[Q]] -> 3.1.2 | B51: Office | C51: Lighting | D51: 2 | E51: Fluorescent lighting | F51: yes | G51: Average incentive of 25% of project cost when upgrading to LED | H51: Our fluorescent lighting uses energy efficient T8 or T5 tubes. | I51: Consider upgrading your fluorescent lighting to energy efficient T8 lamps. If you currently have T12 lamps, upgrading to the latest T8 lamps and electronic ballasts could reduce your lighting costs by up to 40%. Also consider upgrading to LEDs to increase your savings by up to 60% and be eligible for BC Hydro incentives. | J51: https://www.bchydro.com/ecatalog/eCatServlet?cmd=all_psp_incentives&existId=&energyId=13&p=1&sb=3&dir=1&ip=50 | K51: =INDEX(Table1[Evaluator Question Set],MATCH(Sector,Table1[BC Hydro Sector Allocation],0))=Table3[[#This Row],[Question set]] ->  | L51: =IF(Table3[[#This Row],[Selected]],INDIRECT("'"&INDEX(Table5[SheetName],MATCH(Table3[[#This Row],[Diagnostic Heading]],Table5[Diagnostic Heading],0))&"'"&"!C"&11+Table3[[#This Row],[Q]]),"") ->  | M51: =IFERROR(AND(Table3[[#This Row],[BCH Funded]]="Yes",Table3[[#This Row],[Answer]]="No"),"") ->  | N51: =IFERROR(AND(Table3[[#This Row],[BCH Funded]]="no",Table3[[#This Row],[Answer]]="No"),"") ->  | O51: =IFERROR(IF(Table3[[#This Row],[Answer]]="No",INDEX(Table10[],MATCH(INDEX(Table8[CPR Type],MATCH(Table3[[#This Row],[Report Heading]],Table8[Report Heading],0)),Table10[Segment],0),MATCH(Table3[[#This Row],[Question set]],Table10[#Headers],0)),0),0.01/COUNTIFS(Table3[Question set],INDEX(Table1[Evaluator Question Set],MATCH(Sector,Table1[BC Hydro Sector Allocation],0)),Table3[Diagnostic Heading],Table3[[#This Row],[Diagnostic Heading]],Table3[Selected],TRUE)) ->  | P51: 0.8 | Q51: 0.3 | R51: =Table3[[#This Row],[a]]*Table3[[#This Row],[b]]*Table3[[#This Row],[c]] ->  | S51: =Table3[[#This Row],[ES Percent]]*AnnEgyCons ->  | T51: TRUE | U51: Cristian Suvagau
A52: =INDEX(Table7[Q],MATCH(Table3[[#This Row],[Question set]],Table7[Question Set],0))&"."&INDEX(Table5[S],MATCH(Table3[[#This Row],[Diagnostic Heading]],Table5[Diagnostic Heading],0))&"."&Table3[[#This Row],[Q]] -> 3.1.3 | B52: Office | C52: Lighting | D52: 3 | E52: LED Exit lighting | F52: no | H52: We have replaced incandescent exit signs with energy efficient LED exit signs. | I52: Did you know that exit signs are now legislated by the federal government? | J52: http://www.nrcan.gc.ca/energy/regulations-codes-standards/18419 | K52: =INDEX(Table1[Evaluator Question Set],MATCH(Sector,Table1[BC Hydro Sector Allocation],0))=Table3[[#This Row],[Question set]] ->  | L52: =IF(Table3[[#This Row],[Selected]],INDIRECT("'"&INDEX(Table5[SheetName],MATCH(Table3[[#This Row],[Diagnostic Heading]],Table5[Diagnostic Heading],0))&"'"&"!C"&11+Table3[[#This Row],[Q]]),"") ->  | M52: =IFERROR(AND(Table3[[#This Row],[BCH Funded]]="Yes",Table3[[#This Row],[Answer]]="No"),"") ->  | N52: =IFERROR(AND(Table3[[#This Row],[BCH Funded]]="no",Table3[[#This Row],[Answer]]="No"),"") ->  | O52: =IFERROR(IF(Table3[[#This Row],[Answer]]="No",INDEX(Table10[],MATCH(INDEX(Table8[CPR Type],MATCH(Table3[[#This Row],[Report Heading]],Table8[Report Heading],0)),Table10[Segment],0),MATCH(Table3[[#This Row],[Question set]],Table10[#Headers],0)),0),0.01/COUNTIFS(Table3[Question set],INDEX(Table1[Evaluator Question Set],MATCH(Sector,Table1[BC Hydro Sector Allocation],0)),Table3[Diagnostic Heading],Table3[[#This Row],[Diagnostic Heading]],Table3[Selected],TRUE)) ->  | P52: 0.05 | Q52: 0.9 | R52: =Table3[[#This Row],[a]]*Table3[[#This Row],[b]]*Table3[[#This Row],[c]] ->  | S52: =Table3[[#This Row],[ES Percent]]*AnnEgyCons ->  | T52: TRUE | U52: Cristian Suvagau
A53: =INDEX(Table7[Q],MATCH(Table3[[#This Row],[Question set]],Table7[Question Set],0))&"."&INDEX(Table5[S],MATCH(Table3[[#This Row],[Diagnostic Heading]],Table5[Diagnostic Heading],0))&"."&Table3[[#This Row],[Q]] -> 3.1.4 | B53: Office | C53: Lighting | D53: 4 | E53: Exterior Lighting | F53: yes | G53: Average incentive of 25% of project cost | H53: We have upgraded our exterior lighting to energy efficient lamps and fixtures that reduce glare, light pollution and lighting costs (e.g. in parking lots). | I53: Consider upgrading your exterior lighting (e.g. in parking lots) to T8 fluorescent or LED (incentives available for specific LED technologies). These will provide savings and you can get your return even quicker with incentives. | J53: https://www.bchydro.com/ecatalog/eCatServlet?cmd=all_psp_incentives&existId=&energyId=13&p=1&sb=3&dir=1&ip=50 | K53: =INDEX(Table1[Evaluator Question Set],MATCH(Sector,Table1[BC Hydro Sector Allocation],0))=Table3[[#This Row],[Question set]] ->  | L53: =IF(Table3[[#This Row],[Selected]],INDIRECT("'"&INDEX(Table5[SheetName],MATCH(Table3[[#This Row],[Diagnostic Heading]],Table5[Diagnostic Heading],0))&"'"&"!C"&11+Table3[[#This Row],[Q]]),"") ->  | M53: =IFERROR(AND(Table3[[#This Row],[BCH Funded]]="Yes",Table3[[#This Row],[Answer]]="No"),"") ->  | N53: =IFERROR(AND(Table3[[#This Row],[BCH Funded]]="no",Table3[[#This Row],[Answer]]="No"),"") ->  | O53: =IFERROR(IF(Table3[[#This Row],[Answer]]="No",INDEX(Table10[],MATCH(INDEX(Table8[CPR Type],MATCH(Table3[[#This Row],[Report Heading]],Table8[Report Heading],0)),Table10[Segment],0),MATCH(Table3[[#This Row],[Question set]],Table10[#Headers],0)),0),0.01/COUNTIFS(Table3[Question set],INDEX(Table1[Evaluator Question Set],MATCH(Sector,Table1[BC Hydro Sector Allocation],0)),Table3[Diagnostic Heading],Table3[[#This Row],[Diagnostic Heading]],Table3[Selected],TRUE)) ->  | P53: 1 | Q53: 0.5 | R53: =Table3[[#This Row],[a]]*Table3[[#This Row],[b]]*Table3[[#This Row],[c]] ->  | S53: =Table3[[#This Row],[ES Percent]]*AnnEgyCons ->  | T53: TRUE | U53: Cristian Suvagau
A54: =INDEX(Table7[Q],MATCH(Table3[[#This Row],[Question set]],Table7[Question Set],0))&"."&INDEX(Table5[S],MATCH(Table3[[#This Row],[Diagnostic Heading]],Table5[Diagnostic Heading],0))&"."&Table3[[#This Row],[Q]] -> 3.1.5 | B54: Office | C54: Lighting | D54: 5 | E54: Lighting control | F54: No | H54: We have installed controls on lighting to turn off when not required (e.g. timers or occupancy sensors in offices and meeting rooms, daylight harvesting in offices). | I54: Lighting controls can provide you with energy savings and better management of your lighting systems. Adding lighting controls may be eligible for additional incentive funding when completing a lighting retrofit as not all controls energy savings are recognized by BC Hydro. | J54: https://www.bchydro.com/ecatalog/eCatServlet?cmd=all_psp_incentives&existId=&energyId=14 | K54: =INDEX(Table1[Evaluator Question Set],MATCH(Sector,Table1[BC Hydro Sector Allocation],0))=Table3[[#This Row],[Question set]] ->  | L54: =IF(Table3[[#This Row],[Selected]],INDIRECT("'"&INDEX(Table5[SheetName],MATCH(Table3[[#This Row],[Diagnostic Heading]],Table5[Diagnostic Heading],0))&"'"&"!C"&11+Table3[[#This Row],[Q]]),"") ->  | M54: =IFERROR(AND(Table3[[#This Row],[BCH Funded]]="Yes",Table3[[#This Row],[Answer]]="No"),"") ->  | N54: =IFERROR(AND(Table3[[#This Row],[BCH Funded]]="no",Table3[[#This Row],[Answer]]="No"),"") ->  | O54: =IFERROR(IF(Table3[[#This Row],[Answer]]="No",INDEX(Table10[],MATCH(INDEX(Table8[CPR Type],MATCH(Table3[[#This Row],[Report Heading]],Table8[Report Heading],0)),Table10[Segment],0),MATCH(Table3[[#This Row],[Question set]],Table10[#Headers],0)),0),0.01/COUNTIFS(Table3[Question set],INDEX(Table1[Evaluator Question Set],MATCH(Sector,Table1[BC Hydro Sector Allocation],0)),Table3[Diagnostic Heading],Table3[[#This Row],[Diagnostic Heading]],Table3[Selected],TRUE)) ->  | P54: 0.3 | Q54: 0.3 | R54: =Table3[[#This Row],[a]]*Table3[[#This Row],[b]]*Table3[[#This Row],[c]] ->  | S54: =Table3[[#This Row],[ES Percent]]*AnnEgyCons ->  | T54: TRUE | U54: Cristian Suvagau
A55: =INDEX(Table7[Q],MATCH(Table3[[#This Row],[Question set]],Table7[Question Set],0))&"."&INDEX(Table5[S],MATCH(Table3[[#This Row],[Diagnostic Heading]],Table5[Diagnostic Heading],0))&"."&Table3[[#This Row],[Q]] -> 3.2.1 | B55: Office | C55: Heating, Ventilation, Air Conditioning / Refrigeration | D55: 1 | E55: Air tightness | F55: no | H55: We have examined ways to improve the air-tightness of air-conditioned spaces (e.g. closing doors, windows and installing air curtains). | I55: Stretch your legs. Have a walk around and look for where you could improve the air-tightness of air-conditioned spaces (e.g. closing doors, windows, installing air curtains). Learn more about air leakage control in your building through the link below. | J55: http://www.energycodes.gov/sites/default/files/documents/BECP_Buidling%20Energy%20Code%20Resource%20Guide%20Air%20Leakage%20Guide_Sept2011_v00_lores.pdf | K55: =INDEX(Table1[Evaluator Question Set],MATCH(Sector,Table1[BC Hydro Sector Allocation],0))=Table3[[#This Row],[Question set]] ->  | L55: =IF(Table3[[#This Row],[Selected]],INDIRECT("'"&INDEX(Table5[SheetName],MATCH(Table3[[#This Row],[Diagnostic Heading]],Table5[Diagnostic Heading],0))&"'"&"!C"&11+Table3[[#This Row],[Q]]),"") ->  | M55: =IFERROR(AND(Table3[[#This Row],[BCH Funded]]="Yes",Table3[[#This Row],[Answer]]="No"),"") ->  | N55: =IFERROR(AND(Table3[[#This Row],[BCH Funded]]="no",Table3[[#This Row],[Answer]]="No"),"") ->  | O55: =IFERROR(IF(Table3[[#This Row],[Answer]]="No",INDEX(Table10[],MATCH(INDEX(Table8[CPR Type],MATCH(Table3[[#This Row],[Report Heading]],Table8[Report Heading],0)),Table10[Segment],0),MATCH(Table3[[#This Row],[Question set]],Table10[#Headers],0)),0),0.01/COUNTIFS(Table3[Question set],INDEX(Table1[Evaluator Question Set],MATCH(Sector,Table1[BC Hydro Sector Allocation],0)),Table3[Diagnostic Heading],Table3[[#This Row],[Diagnostic Heading]],Table3[Selected],TRUE)) ->  | P55: 1 | Q55: 0.02 | R55: =Table3[[#This Row],[a]]*Table3[[#This Row],[b]]*Table3[[#This Row],[c]] ->  | S55: =Table3[[#This Row],[ES Percent]]*AnnEgyCons ->  | T55: TRUE | U55: ASHRAE- Simulation of the Impact of Commercial Building Envelope Airtightness on Building Energy Utilization
A56: =INDEX(Table7[Q],MATCH(Table3[[#This Row],[Question set]],Table7[Question Set],0))&"."&INDEX(Table5[S],MATCH(Table3[[#This Row],[Diagnostic Heading]],Table5[Diagnostic Heading],0))&"."&Table3[[#This Row],[Q]] -> 3.2.2 | B56: Office | C56: Heating, Ventilation, Air Conditioning / Refrigeration | D56: 2 | E56: Heating / cooling controls | F56: yes | G56: Average incentive of 20% of project cost | H56: We have upgraded our heating, ventilation & air conditioning system to include variable frequency drives on fans and pumps and/or variable speed ECM pumps. | I56: BC Hydro funding is available. Consider upgrading your heating, ventilation & air conditioning system to include variable frequency drives on fans and pumps and/or variable speed ECM pumps. | J56: https://www.bchydro.com/ecatalog/ | K56: =INDEX(Table1[Evaluator Question Set],MATCH(Sector,Table1[BC Hydro Sector Allocation],0))=Table3[[#This Row],[Question set]] ->  | L56: =IF(Table3[[#This Row],[Selected]],INDIRECT("'"&INDEX(Table5[SheetName],MATCH(Table3[[#This Row],[Diagnostic Heading]],Table5[Diagnostic Heading],0))&"'"&"!C"&11+Table3[[#This Row],[Q]]),"") ->  | M56: =IFERROR(AND(Table3[[#This Row],[BCH Funded]]="Yes",Table3[[#This Row],[Answer]]="No"),"") ->  | N56: =IFERROR(AND(Table3[[#This Row],[BCH Funded]]="no",Table3[[#This Row],[Answer]]="No"),"") ->  | O56: =IFERROR(IF(Table3[[#This Row],[Answer]]="No",INDEX(Table10[],MATCH(INDEX(Table8[CPR Type],MATCH(Table3[[#This Row],[Report Heading]],Table8[Report Heading],0)),Table10[Segment],0),MATCH(Table3[[#This Row],[Question set]],Table10[#Headers],0)),0),0.01/COUNTIFS(Table3[Question set],INDEX(Table1[Evaluator Question Set],MATCH(Sector,Table1[BC Hydro Sector Allocation],0)),Table3[Diagnostic Heading],Table3[[#This Row],[Diagnostic Heading]],Table3[Selected],TRUE)) ->  | P56: 1 | Q56: 0.2 | R56: =Table3[[#This Row],[a]]*Table3[[#This Row],[b]]*Table3[[#This Row],[c]] ->  | S56: =Table3[[#This Row],[ES Percent]]*AnnEgyCons ->  | T56: TRUE | U56: Past commercial incentives
A57: =INDEX(Table7[Q],MATCH(Table3[[#This Row],[Question set]],Table7[Question Set],0))&"."&INDEX(Table5[S],MATCH(Table3[[#This Row],[Diagnostic Heading]],Table5[Diagnostic Heading],0))&"."&Table3[[#This Row],[Q]] -> 3.2.3 | B57: Office | C57: Heating, Ventilation, Air Conditioning / Refrigeration | D57: 3 | E57: Heating and cooling temperature set points | F57: no | H57: We have adjusted temperature settings for heating and cooling to minimize energy use. | I57: Pay attention to your thermostat settings. Air conditioning thermostats should be set no lower than 25° C; each degree you raise your temperature setting can save on air conditioning costs. To achieve similar savings when heating, 20° C is the recommended temperature. Learn more about adjusting thermostats through the link below. | J57: https://www.bchydro.com/powersmart/business/technologies-equipment/heating-cooling.html | K57: =INDEX(Table1[Evaluator Question Set],MATCH(Sector,Table1[BC Hydro Sector Allocation],0))=Table3[[#This Row],[Question set]] ->  | L57: =IF(Table3[[#This Row],[Selected]],INDIRECT("'"&INDEX(Table5[SheetName],MATCH(Table3[[#This Row],[Diagnostic Heading]],Table5[Diagnostic Heading],0))&"'"&"!C"&11+Table3[[#This Row],[Q]]),"") ->  | M57: =IFERROR(AND(Table3[[#This Row],[BCH Funded]]="Yes",Table3[[#This Row],[Answer]]="No"),"") ->  | N57: =IFERROR(AND(Table3[[#This Row],[BCH Funded]]="no",Table3[[#This Row],[Answer]]="No"),"") ->  | O57: =IFERROR(IF(Table3[[#This Row],[Answer]]="No",INDEX(Table10[],MATCH(INDEX(Table8[CPR Type],MATCH(Table3[[#This Row],[Report Heading]],Table8[Report Heading],0)),Table10[Segment],0),MATCH(Table3[[#This Row],[Question set]],Table10[#Headers],0)),0),0.01/COUNTIFS(Table3[Question set],INDEX(Table1[Evaluator Question Set],MATCH(Sector,Table1[BC Hydro Sector Allocation],0)),Table3[Diagnostic Heading],Table3[[#This Row],[Diagnostic Heading]],Table3[Selected],TRUE)) ->  | P57: 1 | Q57: 0.05 | R57: =Table3[[#This Row],[a]]*Table3[[#This Row],[b]]*Table3[[#This Row],[c]] ->  | S57: =Table3[[#This Row],[ES Percent]]*AnnEgyCons ->  | T57: TRUE | U57: Past commercial incentives
A58: =INDEX(Table7[Q],MATCH(Table3[[#This Row],[Question set]],Table7[Question Set],0))&"."&INDEX(Table5[S],MATCH(Table3[[#This Row],[Diagnostic Heading]],Table5[Diagnostic Heading],0))&"."&Table3[[#This Row],[Q]] -> 3.2.4 | B58: Office | C58: Heating, Ventilation, Air Conditioning / Refrigeration | D58: 4 | E58: Economizer operation | F58: no | H58: We regularly check the operation of the economizer on our heating, ventilation & air conditioning system (an economizer is a vent controlled to use cooler outside air to reduce the heating, ventilation & air conditioning system energy use). | I58: Have your heating, ventilation and air conditioning economizer checked for correct operation (an economizer is a vent controlled to use cooler outside air to reduce the heating, ventilation and air conditioning system energy use). If the vent is not operating it can increase heating, ventilation and air conditioning system energy use by up to 50%. Learn more about economizers through the link below. | J58: https://www.bchydro.com/powersmart/business/technologies-equipment/heating-cooling.html | K58: =INDEX(Table1[Evaluator Question Set],MATCH(Sector,Table1[BC Hydro Sector Allocation],0))=Table3[[#This Row],[Question set]] ->  | L58: =IF(Table3[[#This Row],[Selected]],INDIRECT("'"&INDEX(Table5[SheetName],MATCH(Table3[[#This Row],[Diagnostic Heading]],Table5[Diagnostic Heading],0))&"'"&"!C"&11+Table3[[#This Row],[Q]]),"") ->  | M58: =IFERROR(AND(Table3[[#This Row],[BCH Funded]]="Yes",Table3[[#This Row],[Answer]]="No"),"") ->  | N58: =IFERROR(AND(Table3[[#This Row],[BCH Funded]]="no",Table3[[#This Row],[Answer]]="No"),"") ->  | O58: =IFERROR(IF(Table3[[#This Row],[Answer]]="No",INDEX(Table10[],MATCH(INDEX(Table8[CPR Type],MATCH(Table3[[#This Row],[Report Heading]],Table8[Report Heading],0)),Table10[Segment],0),MATCH(Table3[[#This Row],[Question set]],Table10[#Headers],0)),0),0.01/COUNTIFS(Table3[Question set],INDEX(Table1[Evaluator Question Set],MATCH(Sector,Table1[BC Hydro Sector Allocation],0)),Table3[Diagnostic Heading],Table3[[#This Row],[Diagnostic Heading]],Table3[Selected],TRUE)) ->  | P58: 1 | Q58: 0.2 | R58: =Table3[[#This Row],[a]]*Table3[[#This Row],[b]]*Table3[[#This Row],[c]] ->  | S58: =Table3[[#This Row],[ES Percent]]*AnnEgyCons ->  | T58: TRUE | U58: Stan Ma: Catalyst DEMO Richmond Center = 29%
A59: =INDEX(Table7[Q],MATCH(Table3[[#This Row],[Question set]],Table7[Question Set],0))&"."&INDEX(Table5[S],MATCH(Table3[[#This Row],[Diagnostic Heading]],Table5[Diagnostic Heading],0))&"."&Table3[[#This Row],[Q]] -> 3.2.5 | B59: Office | C59: Heating, Ventilation, Air Conditioning / Refrigeration | D59: 5 | E59: Economizer sensor | F59: yes | G59: Average incentive of 20% of project cost | H59: We have assessed opportunities to upgrade to an efficient economizer controller sensor on our rooftop heating, ventilation & air conditioning system. | I59: BC Hydro funding is available. Assess the cost effectiveness of upgrading your rooftop heating, ventilation & air conditioning system with an efficient economizer controller sensor. | J59: https://www.bchydro.com/ecatalog/ | K59: =INDEX(Table1[Evaluator Question Set],MATCH(Sector,Table1[BC Hydro Sector Allocation],0))=Table3[[#This Row],[Question set]] ->  | L59: =IF(Table3[[#This Row],[Selected]],INDIRECT("'"&INDEX(Table5[SheetName],MATCH(Table3[[#This Row],[Diagnostic Heading]],Table5[Diagnostic Heading],0))&"'"&"!C"&11+Table3[[#This Row],[Q]]),"") ->  | M59: =IFERROR(AND(Table3[[#This Row],[BCH Funded]]="Yes",Table3[[#This Row],[Answer]]="No"),"") ->  | N59: =IFERROR(AND(Table3[[#This Row],[BCH Funded]]="no",Table3[[#This Row],[Answer]]="No"),"") ->  | O59: =IFERROR(IF(Table3[[#This Row],[Answer]]="No",INDEX(Table10[],MATCH(INDEX(Table8[CPR Type],MATCH(Table3[[#This Row],[Report Heading]],Table8[Report Heading],0)),Table10[Segment],0),MATCH(Table3[[#This Row],[Question set]],Table10[#Headers],0)),0),0.01/COUNTIFS(Table3[Question set],INDEX(Table1[Evaluator Question Set],MATCH(Sector,Table1[BC Hydro Sector Allocation],0)),Table3[Diagnostic Heading],Table3[[#This Row],[Diagnostic Heading]],Table3[Selected],TRUE)) ->  | P59: 1 | Q59: 0.1 | R59: =Table3[[#This Row],[a]]*Table3[[#This Row],[b]]*Table3[[#This Row],[c]] ->  | S59: =Table3[[#This Row],[ES Percent]]*AnnEgyCons ->  | T59: TRUE | U59: Stan Ma: past experience
A60: =INDEX(Table7[Q],MATCH(Table3[[#This Row],[Question set]],Table7[Question Set],0))&"."&INDEX(Table5[S],MATCH(Table3[[#This Row],[Diagnostic Heading]],Table5[Diagnostic Heading],0))&"."&Table3[[#This Row],[Q]] -> 3.4.1 | B60: Office | C60: Energy Efficient Equipment | D60: 1 | E60: Office equipment | F60: no | H60: We have checked to ensure that the energy saver mode is enabled on our office equipment (e.g. computers, copiers, printers). | I60: Check to confirm that the Energy Star® mode is enabled on your office equipment (e.g. computers, copiers and printers). Energy Star® is a low-power sleep mode that saves energy when the equipment is not used for a period. It is included in most office equipment, but often not enabled. Learn more about operating your office equipment efficiently through the link below. Learn more about operating your office equipment efficiently through the link below. | J60: https://www.energystar.gov/products/office_equipment | K60: =INDEX(Table1[Evaluator Question Set],MATCH(Sector,Table1[BC Hydro Sector Allocation],0))=Table3[[#This Row],[Question set]] ->  | L60: =IF(Table3[[#This Row],[Selected]],INDIRECT("'"&INDEX(Table5[SheetName],MATCH(Table3[[#This Row],[Diagnostic Heading]],Table5[Diagnostic Heading],0))&"'"&"!C"&11+Table3[[#This Row],[Q]]),"") ->  | M60: =IFERROR(AND(Table3[[#This Row],[BCH Funded]]="Yes",Table3[[#This Row],[Answer]]="No"),"") ->  | N60: =IFERROR(AND(Table3[[#This Row],[BCH Funded]]="no",Table3[[#This Row],[Answer]]="No"),"") ->  | O60: =IFERROR(IF(Table3[[#This Row],[Answer]]="No",INDEX(Table10[],MATCH(INDEX(Table8[CPR Type],MATCH(Table3[[#This Row],[Report Heading]],Table8[Report Heading],0)),Table10[Segment],0),MATCH(Table3[[#This Row],[Question set]],Table10[#Headers],0)),0),0.01/COUNTIFS(Table3[Question set],INDEX(Table1[Evaluator Question Set],MATCH(Sector,Table1[BC Hydro Sector Allocation],0)),Table3[Diagnostic Heading],Table3[[#This Row],[Diagnostic Heading]],Table3[Selected],TRUE)) ->  | P60: 1 | Q60: 0.35 | R60: =Table3[[#This Row],[a]]*Table3[[#This Row],[b]]*Table3[[#This Row],[c]] ->  | S60: =Table3[[#This Row],[ES Percent]]*AnnEgyCons ->  | T60: TRUE | U60: https://www.energystar.gov/products/low_carbon_it_campaign/implementation_resources_enterprises/commercial_software
A61: =INDEX(Table7[Q],MATCH(Table3[[#This Row],[Question set]],Table7[Question Set],0))&"."&INDEX(Table5[S],MATCH(Table3[[#This Row],[Diagnostic Heading]],Table5[Diagnostic Heading],0))&"."&Table3[[#This Row],[Q]] -> 3.4.2 | B61: Office | C61: Energy Efficient Equipment | D61: 2 | E61: Office Equipment | F61: no | H61: We have upgraded our power bars to energy efficient power bars. | I61: Consider upgrading the power bars on your office equipment to the latest current-sensing power bars. Learn more about BC Hydro’s financial incentives for this technology through the link below. | J61: https://www.energystar.gov/products/low_carbon_it_campaign/more_it_energy_saving_tips | K61: =INDEX(Table1[Evaluator Question Set],MATCH(Sector,Table1[BC Hydro Sector Allocation],0))=Table3[[#This Row],[Question set]] ->  | L61: =IF(Table3[[#This Row],[Selected]],INDIRECT("'"&INDEX(Table5[SheetName],MATCH(Table3[[#This Row],[Diagnostic Heading]],Table5[Diagnostic Heading],0))&"'"&"!C"&11+Table3[[#This Row],[Q]]),"") ->  | M61: =IFERROR(AND(Table3[[#This Row],[BCH Funded]]="Yes",Table3[[#This Row],[Answer]]="No"),"") ->  | N61: =IFERROR(AND(Table3[[#This Row],[BCH Funded]]="no",Table3[[#This Row],[Answer]]="No"),"") ->  | O61: =IFERROR(IF(Table3[[#This Row],[Answer]]="No",INDEX(Table10[],MATCH(INDEX(Table8[CPR Type],MATCH(Table3[[#This Row],[Report Heading]],Table8[Report Heading],0)),Table10[Segment],0),MATCH(Table3[[#This Row],[Question set]],Table10[#Headers],0)),0),0.01/COUNTIFS(Table3[Question set],INDEX(Table1[Evaluator Question Set],MATCH(Sector,Table1[BC Hydro Sector Allocation],0)),Table3[Diagnostic Heading],Table3[[#This Row],[Diagnostic Heading]],Table3[Selected],TRUE)) ->  | P61: 1 | Q61: 0.1 | R61: =Table3[[#This Row],[a]]*Table3[[#This Row],[b]]*Table3[[#This Row],[c]] ->  | S61: =Table3[[#This Row],[ES Percent]]*AnnEgyCons ->  | T61: TRUE | U61: https://www.nrel.gov/docs/fy12osti/55162.pdf
A62: =INDEX(Table7[Q],MATCH(Table3[[#This Row],[Question set]],Table7[Question Set],0))&"."&INDEX(Table5[S],MATCH(Table3[[#This Row],[Diagnostic Heading]],Table5[Diagnostic Heading],0))&"."&Table3[[#This Row],[Q]] -> 3.4.3 | B62: Office | C62: Energy Efficient Equipment | D62: 3 | E62: Office equipment | F62: no | H62: We have installed / activated power management software on computers to control when computers shut down or sleep. | I62: Assess the opportunity to install power management software on computers to control when computers shut down or sleep. | J62: https://www.energystar.gov/products/low_carbon_it_campaign/power_management_computer | K62: =INDEX(Table1[Evaluator Question Set],MATCH(Sector,Table1[BC Hydro Sector Allocation],0))=Table3[[#This Row],[Question set]] ->  | L62: =IF(Table3[[#This Row],[Selected]],INDIRECT("'"&INDEX(Table5[SheetName],MATCH(Table3[[#This Row],[Diagnostic Heading]],Table5[Diagnostic Heading],0))&"'"&"!C"&11+Table3[[#This Row],[Q]]),"") ->  | M62: =IFERROR(AND(Table3[[#This Row],[BCH Funded]]="Yes",Table3[[#This Row],[Answer]]="No"),"") ->  | N62: =IFERROR(AND(Table3[[#This Row],[BCH Funded]]="no",Table3[[#This Row],[Answer]]="No"),"") ->  | O62: =IFERROR(IF(Table3[[#This Row],[Answer]]="No",INDEX(Table10[],MATCH(INDEX(Table8[CPR Type],MATCH(Table3[[#This Row],[Report Heading]],Table8[Report Heading],0)),Table10[Segment],0),MATCH(Table3[[#This Row],[Question set]],Table10[#Headers],0)),0),0.01/COUNTIFS(Table3[Question set],INDEX(Table1[Evaluator Question Set],MATCH(Sector,Table1[BC Hydro Sector Allocation],0)),Table3[Diagnostic Heading],Table3[[#This Row],[Diagnostic Heading]],Table3[Selected],TRUE)) ->  | P62: 1 | Q62: 0.35 | R62: =Table3[[#This Row],[a]]*Table3[[#This Row],[b]]*Table3[[#This Row],[c]] ->  | S62: =Table3[[#This Row],[ES Percent]]*AnnEgyCons ->  | T62: TRUE | U62: https://www.energystar.gov/products/low_carbon_it_campaign/implementation_resources_enterprises/commercial_software
A63: =INDEX(Table7[Q],MATCH(Table3[[#This Row],[Question set]],Table7[Question Set],0))&"."&INDEX(Table5[S],MATCH(Table3[[#This Row],[Diagnostic Heading]],Table5[Diagnostic Heading],0))&"."&Table3[[#This Row],[Q]] -> 3.4.4 | B63: Office | C63: Energy Efficient Equipment | D63: 4 | E63: Vending Machines | F63: no | H63: We use vending machine controllers, which incorporate occupancy sensors, on our vending machines to adjust when the area is unoccupied. | I63: Ensure any vending machines purchased or installed, incorporate an occupancy sensor controller. | J63: https://www.energystar.gov/products/other/vending_machines | K63: =INDEX(Table1[Evaluator Question Set],MATCH(Sector,Table1[BC Hydro Sector Allocation],0))=Table3[[#This Row],[Question set]] ->  | L63: =IF(Table3[[#This Row],[Selected]],INDIRECT("'"&INDEX(Table5[SheetName],MATCH(Table3[[#This Row],[Diagnostic Heading]],Table5[Diagnostic Heading],0))&"'"&"!C"&11+Table3[[#This Row],[Q]]),"") ->  | M63: =IFERROR(AND(Table3[[#This Row],[BCH Funded]]="Yes",Table3[[#This Row],[Answer]]="No"),"") ->  | N63: =IFERROR(AND(Table3[[#This Row],[BCH Funded]]="no",Table3[[#This Row],[Answer]]="No"),"") ->  | O63: =IFERROR(IF(Table3[[#This Row],[Answer]]="No",INDEX(Table10[],MATCH(INDEX(Table8[CPR Type],MATCH(Table3[[#This Row],[Report Heading]],Table8[Report Heading],0)),Table10[Segment],0),MATCH(Table3[[#This Row],[Question set]],Table10[#Headers],0)),0),0.01/COUNTIFS(Table3[Question set],INDEX(Table1[Evaluator Question Set],MATCH(Sector,Table1[BC Hydro Sector Allocation],0)),Table3[Diagnostic Heading],Table3[[#This Row],[Diagnostic Heading]],Table3[Selected],TRUE)) ->  | P63: 1 | Q63: 0.1 | R63: =Table3[[#This Row],[a]]*Table3[[#This Row],[b]]*Table3[[#This Row],[c]] ->  | S63: =Table3[[#This Row],[ES Percent]]*AnnEgyCons ->  | T63: TRUE
A64: =INDEX(Table7[Q],MATCH(Table3[[#This Row],[Question set]],Table7[Question Set],0))&"."&INDEX(Table5[S],MATCH(Table3[[#This Row],[Diagnostic Heading]],Table5[Diagnostic Heading],0))&"."&Table3[[#This Row],[Q]] -> 3.5.1 | B64: Office | C64: Operating and Maintenance Practices | D64: 1 | E64: Hot water control | F64: no | H64: We have explored how to reduce hot water temperature while still maintaining required conditions. | I64: Look into the possibility of reducing your hot water temperature while still maintaining required sanitary conditions. You'll be surprised at what can be saved through reducing hot water temperature without degrading the use. Learn more about water heating and usage through the link below. | J64: https://www.bchydro.com/powersmart/business/technologies-equipment/heating-cooling.html | K64: =INDEX(Table1[Evaluator Question Set],MATCH(Sector,Table1[BC Hydro Sector Allocation],0))=Table3[[#This Row],[Question set]] ->  | L64: =IF(Table3[[#This Row],[Selected]],INDIRECT("'"&INDEX(Table5[SheetName],MATCH(Table3[[#This Row],[Diagnostic Heading]],Table5[Diagnostic Heading],0))&"'"&"!C"&11+Table3[[#This Row],[Q]]),"") ->  | M64: =IFERROR(AND(Table3[[#This Row],[BCH Funded]]="Yes",Table3[[#This Row],[Answer]]="No"),"") ->  | N64: =IFERROR(AND(Table3[[#This Row],[BCH Funded]]="no",Table3[[#This Row],[Answer]]="No"),"") ->  | O64: =IFERROR(IF(Table3[[#This Row],[Answer]]="No",INDEX(Table10[],MATCH(INDEX(Table8[CPR Type],MATCH(Table3[[#This Row],[Report Heading]],Table8[Report Heading],0)),Table10[Segment],0),MATCH(Table3[[#This Row],[Question set]],Table10[#Headers],0)),0),0.01/COUNTIFS(Table3[Question set],INDEX(Table1[Evaluator Question Set],MATCH(Sector,Table1[BC Hydro Sector Allocation],0)),Table3[Diagnostic Heading],Table3[[#This Row],[Diagnostic Heading]],Table3[Selected],TRUE)) ->  | P64: 1 | Q64: 1 | R64: =Table3[[#This Row],[a]]*Table3[[#This Row],[b]]*Table3[[#This Row],[c]] ->  | S64: =Table3[[#This Row],[ES Percent]]*AnnEgyCons ->  | T64: TRUE
A65: =INDEX(Table7[Q],MATCH(Table3[[#This Row],[Question set]],Table7[Question Set],0))&"."&INDEX(Table5[S],MATCH(Table3[[#This Row],[Diagnostic Heading]],Table5[Diagnostic Heading],0))&"."&Table3[[#This Row],[Q]] -> 3.5.2 | B65: Office | C65: Operating and Maintenance Practices | D65: 2 | E65: Staff operating procedures | F65: no | H65: Our staff turns off equipment when not needed (e.g., turns off lights and equipment when not in use, after hours and on weekends). | I65: The most important tip for your business is “turn it off!!”. Introduce procedures to encourage staff to turn off equipment when not needed (e.g. turn off lights and office equipment when not in use, after hours and on weekends). Find more tips and information about how and when to turn off equipment through the link below. | J65: https://www.bchydro.com/powersmart/business/technologies-equipment/lighting-systems.html#1 | K65: =INDEX(Table1[Evaluator Question Set],MATCH(Sector,Table1[BC Hydro Sector Allocation],0))=Table3[[#This Row],[Question set]] ->  | L65: =IF(Table3[[#This Row],[Selected]],INDIRECT("'"&INDEX(Table5[SheetName],MATCH(Table3[[#This Row],[Diagnostic Heading]],Table5[Diagnostic Heading],0))&"'"&"!C"&11+Table3[[#This Row],[Q]]),"") ->  | M65: =IFERROR(AND(Table3[[#This Row],[BCH Funded]]="Yes",Table3[[#This Row],[Answer]]="No"),"") ->  | N65: =IFERROR(AND(Table3[[#This Row],[BCH Funded]]="no",Table3[[#This Row],[Answer]]="No"),"") ->  | O65: =IFERROR(IF(Table3[[#This Row],[Answer]]="No",INDEX(Table10[],MATCH(INDEX(Table8[CPR Type],MATCH(Table3[[#This Row],[Report Heading]],Table8[Report Heading],0)),Table10[Segment],0),MATCH(Table3[[#This Row],[Question set]],Table10[#Headers],0)),0),0.01/COUNTIFS(Table3[Question set],INDEX(Table1[Evaluator Question Set],MATCH(Sector,Table1[BC Hydro Sector Allocation],0)),Table3[Diagnostic Heading],Table3[[#This Row],[Diagnostic Heading]],Table3[Selected],TRUE)) ->  | P65: 1 | Q65: 1 | R65: =Table3[[#This Row],[a]]*Table3[[#This Row],[b]]*Table3[[#This Row],[c]] ->  | S65: =Table3[[#This Row],[ES Percent]]*AnnEgyCons ->  | T65: TRUE
A66: =INDEX(Table7[Q],MATCH(Table3[[#This Row],[Question set]],Table7[Question Set],0))&"."&INDEX(Table5[S],MATCH(Table3[[#This Row],[Diagnostic Heading]],Table5[Diagnostic Heading],0))&"."&Table3[[#This Row],[Q]] -> 3.5.3 | B66: Office | C66: Operating and Maintenance Practices | D66: 3 | E66: Maintenance practices | F66: no | H66: We conduct regular maintenance on our heating, ventilation & air conditioning system (e.g. cleaning condenser coils, changing filters, checking operation of economizer). | I66: Modify your maintenance procedures on your heating, ventilation & air conditioning system to include regular energy efficiency checks (e.g. cleaning condenser coils, changing filters, checking operation of economizers). Heating, ventilation and air conditioning systems are at their most efficient when they are well maintained. Learn more about maintenance procedures through the link below. | J66: https://www.bchydro.com/powersmart/business/technologies-equipment/heating-cooling.html#d | K66: =INDEX(Table1[Evaluator Question Set],MATCH(Sector,Table1[BC Hydro Sector Allocation],0))=Table3[[#This Row],[Question set]] ->  | L66: =IF(Table3[[#This Row],[Selected]],INDIRECT("'"&INDEX(Table5[SheetName],MATCH(Table3[[#This Row],[Diagnostic Heading]],Table5[Diagnostic Heading],0))&"'"&"!C"&11+Table3[[#This Row],[Q]]),"") ->  | M66: =IFERROR(AND(Table3[[#This Row],[BCH Funded]]="Yes",Table3[[#This Row],[Answer]]="No"),"") ->  | N66: =IFERROR(AND(Table3[[#This Row],[BCH Funded]]="no",Table3[[#This Row],[Answer]]="No"),"") ->  | O66: =IFERROR(IF(Table3[[#This Row],[Answer]]="No",INDEX(Table10[],MATCH(INDEX(Table8[CPR Type],MATCH(Table3[[#This Row],[Report Heading]],Table8[Report Heading],0)),Table10[Segment],0),MATCH(Table3[[#This Row],[Question set]],Table10[#Headers],0)),0),0.01/COUNTIFS(Table3[Question set],INDEX(Table1[Evaluator Question Set],MATCH(Sector,Table1[BC Hydro Sector Allocation],0)),Table3[Diagnostic Heading],Table3[[#This Row],[Diagnostic Heading]],Table3[Selected],TRUE)) ->  | P66: 1 | Q66: 1 | R66: =Table3[[#This Row],[a]]*Table3[[#This Row],[b]]*Table3[[#This Row],[c]] ->  | S66: =Table3[[#This Row],[ES Percent]]*AnnEgyCons ->  | T66: TRUE
A67: =INDEX(Table7[Q],MATCH(Table3[[#This Row],[Question set]],Table7[Question Set],0))&"."&INDEX(Table5[S],MATCH(Table3[[#This Row],[Diagnostic Heading]],Table5[Diagnostic Heading],0))&"."&Table3[[#This Row],[Q]] -> 3.5.4 | B67: Office | C67: Operating and Maintenance Practices | D67: 4 | E67: Energy saving tips | F67: no | H67: We have a list of energy saving tips for our type of business. | I67: Prepare a list of energy saving tips for your type of business. BC Hydro Power Smart has tips available. Find energy saving tips through the link below. | J67: https://www.bchydro.com/powersmart/business/technologies-equipment.html?WT.mc_id=rd_oldgreenyourbusiness | K67: =INDEX(Table1[Evaluator Question Set],MATCH(Sector,Table1[BC Hydro Sector Allocation],0))=Table3[[#This Row],[Question set]] ->  | L67: =IF(Table3[[#This Row],[Selected]],INDIRECT("'"&INDEX(Table5[SheetName],MATCH(Table3[[#This Row],[Diagnostic Heading]],Table5[Diagnostic Heading],0))&"'"&"!C"&11+Table3[[#This Row],[Q]]),"") ->  | M67: =IFERROR(AND(Table3[[#This Row],[BCH Funded]]="Yes",Table3[[#This Row],[Answer]]="No"),"") ->  | N67: =IFERROR(AND(Table3[[#This Row],[BCH Funded]]="no",Table3[[#This Row],[Answer]]="No"),"") ->  | O67: =IFERROR(IF(Table3[[#This Row],[Answer]]="No",INDEX(Table10[],MATCH(INDEX(Table8[CPR Type],MATCH(Table3[[#This Row],[Report Heading]],Table8[Report Heading],0)),Table10[Segment],0),MATCH(Table3[[#This Row],[Question set]],Table10[#Headers],0)),0),0.01/COUNTIFS(Table3[Question set],INDEX(Table1[Evaluator Question Set],MATCH(Sector,Table1[BC Hydro Sector Allocation],0)),Table3[Diagnostic Heading],Table3[[#This Row],[Diagnostic Heading]],Table3[Selected],TRUE)) ->  | P67: 1 | Q67: 1 | R67: =Table3[[#This Row],[a]]*Table3[[#This Row],[b]]*Table3[[#This Row],[c]] ->  | S67: =Table3[[#This Row],[ES Percent]]*AnnEgyCons ->  | T67: TRUE
A68: =INDEX(Table7[Q],MATCH(Table3[[#This Row],[Question set]],Table7[Question Set],0))&"."&INDEX(Table5[S],MATCH(Table3[[#This Row],[Diagnostic Heading]],Table5[Diagnostic Heading],0))&"."&Table3[[#This Row],[Q]] -> 3.5.5 | B68: Office | C68: Operating and Maintenance Practices | D68: 5 | E68: Staff Awareness | F68: no | H68: We have conducted energy conservation awareness activities (e.g. signage, newsletters, competitions). | I68: Conduct energy conservation awareness activities with your staff (e.g. signage, newsletters, competitions). Find tips and information on workplace conservation activities through the link below. | J68: https://www.bchydro.com/powersmart/business/programs/workplace-conservation.html?WT.mc_id=rd_oldworkplaceconservationawareness | K68: =INDEX(Table1[Evaluator Question Set],MATCH(Sector,Table1[BC Hydro Sector Allocation],0))=Table3[[#This Row],[Question set]] ->  | L68: =IF(Table3[[#This Row],[Selected]],INDIRECT("'"&INDEX(Table5[SheetName],MATCH(Table3[[#This Row],[Diagnostic Heading]],Table5[Diagnostic Heading],0))&"'"&"!C"&11+Table3[[#This Row],[Q]]),"") ->  | M68: =IFERROR(AND(Table3[[#This Row],[BCH Funded]]="Yes",Table3[[#This Row],[Answer]]="No"),"") ->  | N68: =IFERROR(AND(Table3[[#This Row],[BCH Funded]]="no",Table3[[#This Row],[Answer]]="No"),"") ->  | O68: =IFERROR(IF(Table3[[#This Row],[Answer]]="No",INDEX(Table10[],MATCH(INDEX(Table8[CPR Type],MATCH(Table3[[#This Row],[Report Heading]],Table8[Report Heading],0)),Table10[Segment],0),MATCH(Table3[[#This Row],[Question set]],Table10[#Headers],0)),0),0.01/COUNTIFS(Table3[Question set],INDEX(Table1[Evaluator Question Set],MATCH(Sector,Table1[BC Hydro Sector Allocation],0)),Table3[Diagnostic Heading],Table3[[#This Row],[Diagnostic Heading]],Table3[Selected],TRUE)) ->  | P68: 1 | Q68: 1 | R68: =Table3[[#This Row],[a]]*Table3[[#This Row],[b]]*Table3[[#This Row],[c]] ->  | S68: =Table3[[#This Row],[ES Percent]]*AnnEgyCons ->  | T68: TRUE
A69: =INDEX(Table7[Q],MATCH(Table3[[#This Row],[Question set]],Table7[Question Set],0))&"."&INDEX(Table5[S],MATCH(Table3[[#This Row],[Diagnostic Heading]],Table5[Diagnostic Heading],0))&"."&Table3[[#This Row],[Q]] -> 3.6.1 | B69: Office | C69: Management Practice | D69: 1 | E69: Effective management of energy data | F69: no | H69: We regularly go to bchydro.com and use MyHydro to track our energy usage. | I69: Develop a process for managing energy bills and metered energy use information centrally. For example in a spreadsheet, database, or other online tool for ready access. Sign up to see your BC Hydro account information online using the link below. | J69: https://www.bchydro.com/account/UI/Login?realm=bch-ps&goto=https%3A%2F%2Fwww.bchydro.com%3A443%2FBCHCustomerPortal%2Fweb%2Flogin.html | K69: =INDEX(Table1[Evaluator Question Set],MATCH(Sector,Table1[BC Hydro Sector Allocation],0))=Table3[[#This Row],[Question set]] ->  | L69: =IF(Table3[[#This Row],[Selected]],INDIRECT("'"&INDEX(Table5[SheetName],MATCH(Table3[[#This Row],[Diagnostic Heading]],Table5[Diagnostic Heading],0))&"'"&"!C"&11+Table3[[#This Row],[Q]]),"") ->  | M69: =IFERROR(AND(Table3[[#This Row],[BCH Funded]]="Yes",Table3[[#This Row],[Answer]]="No"),"") ->  | N69: =IFERROR(AND(Table3[[#This Row],[BCH Funded]]="no",Table3[[#This Row],[Answer]]="No"),"") ->  | O69: =IFERROR(IF(Table3[[#This Row],[Answer]]="No",INDEX(Table10[],MATCH(INDEX(Table8[CPR Type],MATCH(Table3[[#This Row],[Report Heading]],Table8[Report Heading],0)),Table10[Segment],0),MATCH(Table3[[#This Row],[Question set]],Table10[#Headers],0)),0),0.01/COUNTIFS(Table3[Question set],INDEX(Table1[Evaluator Question Set],MATCH(Sector,Table1[BC Hydro Sector Allocation],0)),Table3[Diagnostic Heading],Table3[[#This Row],[Diagnostic Heading]],Table3[Selected],TRUE)) ->  | P69: 1 | Q69: 1 | R69: =Table3[[#This Row],[a]]*Table3[[#This Row],[b]]*Table3[[#This Row],[c]] ->  | S69: =Table3[[#This Row],[ES Percent]]*AnnEgyCons ->  | T69: TRUE
A70: =INDEX(Table7[Q],MATCH(Table3[[#This Row],[Question set]],Table7[Question Set],0))&"."&INDEX(Table5[S],MATCH(Table3[[#This Row],[Diagnostic Heading]],Table5[Diagnostic Heading],0))&"."&Table3[[#This Row],[Q]] -> 3.6.2 | B70: Office | C70: Management Practice | D70: 2 | E70: Reporting systems for energy use | F70: no | H70: We periodically report energy use for our business to relevant staff. | I70: Establish a process to regularly report your energy efficiency to management and staff. Learn more about managing energy costs and consumption in your business through the link below. | J70: https://www.bchydro.com/powersmart/business/types-of-business-customers.html | K70: =INDEX(Table1[Evaluator Question Set],MATCH(Sector,Table1[BC Hydro Sector Allocation],0))=Table3[[#This Row],[Question set]] ->  | L70: =IF(Table3[[#This Row],[Selected]],INDIRECT("'"&INDEX(Table5[SheetName],MATCH(Table3[[#This Row],[Diagnostic Heading]],Table5[Diagnostic Heading],0))&"'"&"!C"&11+Table3[[#This Row],[Q]]),"") ->  | M70: =IFERROR(AND(Table3[[#This Row],[BCH Funded]]="Yes",Table3[[#This Row],[Answer]]="No"),"") ->  | N70: =IFERROR(AND(Table3[[#This Row],[BCH Funded]]="no",Table3[[#This Row],[Answer]]="No"),"") ->  | O70: =IFERROR(IF(Table3[[#This Row],[Answer]]="No",INDEX(Table10[],MATCH(INDEX(Table8[CPR Type],MATCH(Table3[[#This Row],[Report Heading]],Table8[Report Heading],0)),Table10[Segment],0),MATCH(Table3[[#This Row],[Question set]],Table10[#Headers],0)),0),0.01/COUNTIFS(Table3[Question set],INDEX(Table1[Evaluator Question Set],MATCH(Sector,Table1[BC Hydro Sector Allocation],0)),Table3[Diagnostic Heading],Table3[[#This Row],[Diagnostic Heading]],Table3[Selected],TRUE)) ->  | P70: 1 | Q70: 1 | R70: =Table3[[#This Row],[a]]*Table3[[#This Row],[b]]*Table3[[#This Row],[c]] ->  | S70: =Table3[[#This Row],[ES Percent]]*AnnEgyCons ->  | T70: TRUE
A71: =INDEX(Table7[Q],MATCH(Table3[[#This Row],[Question set]],Table7[Question Set],0))&"."&INDEX(Table5[S],MATCH(Table3[[#This Row],[Diagnostic Heading]],Table5[Diagnostic Heading],0))&"."&Table3[[#This Row],[Q]] -> 3.6.3 | B71: Office | C71: Management Practice | D71: 3 | E71: Targets and Planning | F71: no | H71: We have a target and action plan to reduce energy costs for the next year (e.g. kWh/sq. ft. by 10%). | I71: Create a realistic target and action plan to reduce energy costs for the next year (e.g. kWh/sq. ft. by 10%). Find out how to manage your energy costs and consumption in your business through the link below. | J71: https://www.bchydro.com/news/conservation/2014/myhydro-to-manage-energy-and-profitability.html | K71: =INDEX(Table1[Evaluator Question Set],MATCH(Sector,Table1[BC Hydro Sector Allocation],0))=Table3[[#This Row],[Question set]] ->  | L71: =IF(Table3[[#This Row],[Selected]],INDIRECT("'"&INDEX(Table5[SheetName],MATCH(Table3[[#This Row],[Diagnostic Heading]],Table5[Diagnostic Heading],0))&"'"&"!C"&11+Table3[[#This Row],[Q]]),"") ->  | M71: =IFERROR(AND(Table3[[#This Row],[BCH Funded]]="Yes",Table3[[#This Row],[Answer]]="No"),"") ->  | N71: =IFERROR(AND(Table3[[#This Row],[BCH Funded]]="no",Table3[[#This Row],[Answer]]="No"),"") ->  | O71: =IFERROR(IF(Table3[[#This Row],[Answer]]="No",INDEX(Table10[],MATCH(INDEX(Table8[CPR Type],MATCH(Table3[[#This Row],[Report Heading]],Table8[Report Heading],0)),Table10[Segment],0),MATCH(Table3[[#This Row],[Question set]],Table10[#Headers],0)),0),0.01/COUNTIFS(Table3[Question set],INDEX(Table1[Evaluator Question Set],MATCH(Sector,Table1[BC Hydro Sector Allocation],0)),Table3[Diagnostic Heading],Table3[[#This Row],[Diagnostic Heading]],Table3[Selected],TRUE)) ->  | P71: 1 | Q71: 1 | R71: =Table3[[#This Row],[a]]*Table3[[#This Row],[b]]*Table3[[#This Row],[c]] ->  | S71: =Table3[[#This Row],[ES Percent]]*AnnEgyCons ->  | T71: TRUE
A72: =INDEX(Table7[Q],MATCH(Table3[[#This Row],[Question set]],Table7[Question Set],0))&"."&INDEX(Table5[S],MATCH(Table3[[#This Row],[Diagnostic Heading]],Table5[Diagnostic Heading],0))&"."&Table3[[#This Row],[Q]] -> 3.6.4 | B72: Office | C72: Management Practice | D72: 4 | E72: Understanding of energy performance and opportunities | F72: no | H72: We have completed an energy audit, which has quantified costs and savings opportunities. | I72: Conduct an energy audit to quantify costs and identify savings opportunities. Learn how to do an energy audit and build a business case for energy efficiency through the link below. | J72: http://www.bchydro.com/powersmart/business/business-energy-advisors.html?WT.mc_id=rd_bea | K72: =INDEX(Table1[Evaluator Question Set],MATCH(Sector,Table1[BC Hydro Sector Allocation],0))=Table3[[#This Row],[Question set]] ->  | L72: =IF(Table3[[#This Row],[Selected]],INDIRECT("'"&INDEX(Table5[SheetName],MATCH(Table3[[#This Row],[Diagnostic Heading]],Table5[Diagnostic Heading],0))&"'"&"!C"&11+Table3[[#This Row],[Q]]),"") ->  | M72: =IFERROR(AND(Table3[[#This Row],[BCH Funded]]="Yes",Table3[[#This Row],[Answer]]="No"),"") ->  | N72: =IFERROR(AND(Table3[[#This Row],[BCH Funded]]="no",Table3[[#This Row],[Answer]]="No"),"") ->  | O72: =IFERROR(IF(Table3[[#This Row],[Answer]]="No",INDEX(Table10[],MATCH(INDEX(Table8[CPR Type],MATCH(Table3[[#This Row],[Report Heading]],Table8[Report Heading],0)),Table10[Segment],0),MATCH(Table3[[#This Row],[Question set]],Table10[#Headers],0)),0),0.01/COUNTIFS(Table3[Question set],INDEX(Table1[Evaluator Question Set],MATCH(Sector,Table1[BC Hydro Sector Allocation],0)),Table3[Diagnostic Heading],Table3[[#This Row],[Diagnostic Heading]],Table3[Selected],TRUE)) ->  | P72: 1 | Q72: 1 | R72: =Table3[[#This Row],[a]]*Table3[[#This Row],[b]]*Table3[[#This Row],[c]] ->  | S72: =Table3[[#This Row],[ES Percent]]*AnnEgyCons ->  | T72: TRUE
A73: =INDEX(Table7[Q],MATCH(Table3[[#This Row],[Question set]],Table7[Question Set],0))&"."&INDEX(Table5[S],MATCH(Table3[[#This Row],[Diagnostic Heading]],Table5[Diagnostic Heading],0))&"."&Table3[[#This Row],[Q]] -> 3.6.5 | B73: Office | C73: Management Practice | D73: 5 | E73: Purchasing | F73: no | H73: We use energy efficient guidelines and product catalogues when buying equipment or specify standards in our procurement process. | I73: Use Power Smart buying guides and product catalogues when buying equipment or specify energy efficiency standards in your procurement process. Visit the link below for BC Hydro Power Smart buying guides. | J73: https://www.bchydro.com/powersmart/business/technologies-equipment.html https://www.energystar.gov/products?s=mega | K73: =INDEX(Table1[Evaluator Question Set],MATCH(Sector,Table1[BC Hydro Sector Allocation],0))=Table3[[#This Row],[Question set]] ->  | L73: =IF(Table3[[#This Row],[Selected]],INDIRECT("'"&INDEX(Table5[SheetName],MATCH(Table3[[#This Row],[Diagnostic Heading]],Table5[Diagnostic Heading],0))&"'"&"!C"&11+Table3[[#This Row],[Q]]),"") ->  | M73: =IFERROR(AND(Table3[[#This Row],[BCH Funded]]="Yes",Table3[[#This Row],[Answer]]="No"),"") ->  | N73: =IFERROR(AND(Table3[[#This Row],[BCH Funded]]="no",Table3[[#This Row],[Answer]]="No"),"") ->  | O73: =IFERROR(IF(Table3[[#This Row],[Answer]]="No",INDEX(Table10[],MATCH(INDEX(Table8[CPR Type],MATCH(Table3[[#This Row],[Report Heading]],Table8[Report Heading],0)),Table10[Segment],0),MATCH(Table3[[#This Row],[Question set]],Table10[#Headers],0)),0),0.01/COUNTIFS(Table3[Question set],INDEX(Table1[Evaluator Question Set],MATCH(Sector,Table1[BC Hydro Sector Allocation],0)),Table3[Diagnostic Heading],Table3[[#This Row],[Diagnostic Heading]],Table3[Selected],TRUE)) ->  | P73: 1 | Q73: 1 | R73: =Table3[[#This Row],[a]]*Table3[[#This Row],[b]]*Table3[[#This Row],[c]] ->  | S73: =Table3[[#This Row],[ES Percent]]*AnnEgyCons ->  | T73: TRUE
A74: =INDEX(Table7[Q],MATCH(Table3[[#This Row],[Question set]],Table7[Question Set],0))&"."&INDEX(Table5[S],MATCH(Table3[[#This Row],[Diagnostic Heading]],Table5[Diagnostic Heading],0))&"."&Table3[[#This Row],[Q]] -> 4.1.1 | B74: Hospitality | C74: Lighting | D74: 1 | E74: LED Lighting | F74: yes | G74: Average incentive of 50% of product cost | H74: We have upgraded our incandescent lighting to energy efficient LED lamps. | I74: BC Hydro funding is available. Assess the cost effectiveness of upgrading your incandescent lighting to energy efficient LEDs. LEDs use at least 75% less energy than a standard incandescent and last about 15 to 20 times longer than incandescent lighting, and about three times longer than CFLs. Learn more about LEDs by clicking the link below. | J74: http://www.bchydro.com/news/conservation/2014/led-lighting-increasingly-popular.html | K74: =INDEX(Table1[Evaluator Question Set],MATCH(Sector,Table1[BC Hydro Sector Allocation],0))=Table3[[#This Row],[Question set]] ->  | L74: =IF(Table3[[#This Row],[Selected]],INDIRECT("'"&INDEX(Table5[SheetName],MATCH(Table3[[#This Row],[Diagnostic Heading]],Table5[Diagnostic Heading],0))&"'"&"!C"&11+Table3[[#This Row],[Q]]),"") ->  | M74: =IFERROR(AND(Table3[[#This Row],[BCH Funded]]="Yes",Table3[[#This Row],[Answer]]="No"),"") ->  | N74: =IFERROR(AND(Table3[[#This Row],[BCH Funded]]="no",Table3[[#This Row],[Answer]]="No"),"") ->  | O74: =IFERROR(IF(Table3[[#This Row],[Answer]]="No",INDEX(Table10[],MATCH(INDEX(Table8[CPR Type],MATCH(Table3[[#This Row],[Report Heading]],Table8[Report Heading],0)),Table10[Segment],0),MATCH(Table3[[#This Row],[Question set]],Table10[#Headers],0)),0),0.01/COUNTIFS(Table3[Question set],INDEX(Table1[Evaluator Question Set],MATCH(Sector,Table1[BC Hydro Sector Allocation],0)),Table3[Diagnostic Heading],Table3[[#This Row],[Diagnostic Heading]],Table3[Selected],TRUE)) ->  | P74: 0.6 | Q74: 0.75 | R74: =Table3[[#This Row],[a]]*Table3[[#This Row],[b]]*Table3[[#This Row],[c]] ->  | S74: =Table3[[#This Row],[ES Percent]]*AnnEgyCons ->  | T74: TRUE | U74: Cristian Suvagau
A75: =INDEX(Table7[Q],MATCH(Table3[[#This Row],[Question set]],Table7[Question Set],0))&"."&INDEX(Table5[S],MATCH(Table3[[#This Row],[Diagnostic Heading]],Table5[Diagnostic Heading],0))&"."&Table3[[#This Row],[Q]] -> 4.1.2 | B75: Hospitality | C75: Lighting | D75: 2 | E75: Fluorescent lighting | F75: yes | G75: Average incentive of 25% of project cost when upgrading to LED | H75: Our fluorescent lighting uses energy efficient T8 or T5 tubes. | I75: Consider upgrading your fluorescent lighting to energy efficient T8 lamps. If you currently have T12 lamps, upgrading to the latest T8 lamps and electronic ballasts could reduce your lighting costs by up to 40%. Also consider upgrading to LEDs to increase your savings by up to 60% and be eligible for BC Hydro incentives. | J75: https://www.bchydro.com/ecatalog/eCatServlet?cmd=all_psp_incentives&existId=&energyId=13&p=1&sb=3&dir=1&ip=50 | K75: =INDEX(Table1[Evaluator Question Set],MATCH(Sector,Table1[BC Hydro Sector Allocation],0))=Table3[[#This Row],[Question set]] ->  | L75: =IF(Table3[[#This Row],[Selected]],INDIRECT("'"&INDEX(Table5[SheetName],MATCH(Table3[[#This Row],[Diagnostic Heading]],Table5[Diagnostic Heading],0))&"'"&"!C"&11+Table3[[#This Row],[Q]]),"") ->  | M75: =IFERROR(AND(Table3[[#This Row],[BCH Funded]]="Yes",Table3[[#This Row],[Answer]]="No"),"") ->  | N75: =IFERROR(AND(Table3[[#This Row],[BCH Funded]]="no",Table3[[#This Row],[Answer]]="No"),"") ->  | O75: =IFERROR(IF(Table3[[#This Row],[Answer]]="No",INDEX(Table10[],MATCH(INDEX(Table8[CPR Type],MATCH(Table3[[#This Row],[Report Heading]],Table8[Report Heading],0)),Table10[Segment],0),MATCH(Table3[[#This Row],[Question set]],Table10[#Headers],0)),0),0.01/COUNTIFS(Table3[Question set],INDEX(Table1[Evaluator Question Set],MATCH(Sector,Table1[BC Hydro Sector Allocation],0)),Table3[Diagnostic Heading],Table3[[#This Row],[Diagnostic Heading]],Table3[Selected],TRUE)) ->  | P75: 0.3 | Q75: 0.3 | R75: =Table3[[#This Row],[a]]*Table3[[#This Row],[b]]*Table3[[#This Row],[c]] ->  | S75: =Table3[[#This Row],[ES Percent]]*AnnEgyCons ->  | T75: TRUE | U75: Cristian Suvagau
A76: =INDEX(Table7[Q],MATCH(Table3[[#This Row],[Question set]],Table7[Question Set],0))&"."&INDEX(Table5[S],MATCH(Table3[[#This Row],[Diagnostic Heading]],Table5[Diagnostic Heading],0))&"."&Table3[[#This Row],[Q]] -> 4.1.3 | B76: Hospitality | C76: Lighting | D76: 3 | E76: LED Exit lighting | F76: no | H76: We have replaced incandescent exit signs with energy efficient LED exit signs. | I76: Did you know that exit signs are now legislated by the federal government? | J76: http://www.nrcan.gc.ca/energy/regulations-codes-standards/18419 | K76: =INDEX(Table1[Evaluator Question Set],MATCH(Sector,Table1[BC Hydro Sector Allocation],0))=Table3[[#This Row],[Question set]] ->  | L76: =IF(Table3[[#This Row],[Selected]],INDIRECT("'"&INDEX(Table5[SheetName],MATCH(Table3[[#This Row],[Diagnostic Heading]],Table5[Diagnostic Heading],0))&"'"&"!C"&11+Table3[[#This Row],[Q]]),"") ->  | M76: =IFERROR(AND(Table3[[#This Row],[BCH Funded]]="Yes",Table3[[#This Row],[Answer]]="No"),"") ->  | N76: =IFERROR(AND(Table3[[#This Row],[BCH Funded]]="no",Table3[[#This Row],[Answer]]="No"),"") ->  | O76: =IFERROR(IF(Table3[[#This Row],[Answer]]="No",INDEX(Table10[],MATCH(INDEX(Table8[CPR Type],MATCH(Table3[[#This Row],[Report Heading]],Table8[Report Heading],0)),Table10[Segment],0),MATCH(Table3[[#This Row],[Question set]],Table10[#Headers],0)),0),0.01/COUNTIFS(Table3[Question set],INDEX(Table1[Evaluator Question Set],MATCH(Sector,Table1[BC Hydro Sector Allocation],0)),Table3[Diagnostic Heading],Table3[[#This Row],[Diagnostic Heading]],Table3[Selected],TRUE)) ->  | P76: 0.04 | Q76: 0.9 | R76: =Table3[[#This Row],[a]]*Table3[[#This Row],[b]]*Table3[[#This Row],[c]] ->  | S76: =Table3[[#This Row],[ES Percent]]*AnnEgyCons ->  | T76: TRUE | U76: Cristian Suvagau
A77: =INDEX(Table7[Q],MATCH(Table3[[#This Row],[Question set]],Table7[Question Set],0))&"."&INDEX(Table5[S],MATCH(Table3[[#This Row],[Diagnostic Heading]],Table5[Diagnostic Heading],0))&"."&Table3[[#This Row],[Q]] -> 4.1.4 | B77: Hospitality | C77: Lighting | D77: 4 | E77: Exterior Lighting | F77: yes | G77: Average incentive of 25% of project cost | H77: We have upgraded our exterior lighting to energy efficient lamps and fixtures that reduce glare, light pollution and lighting costs (e.g. in parking lots). | I77: Consider upgrading your exterior lighting (e.g. in parking lots) to T8 fluorescent or LED (incentives available for specific LED technologies). These will provide savings and you can get your return even quicker with incentives. | J77: https://www.bchydro.com/ecatalog/eCatServlet?cmd=all_psp_incentives&existId=&energyId=13&p=1&sb=3&dir=1&ip=50 | K77: =INDEX(Table1[Evaluator Question Set],MATCH(Sector,Table1[BC Hydro Sector Allocation],0))=Table3[[#This Row],[Question set]] ->  | L77: =IF(Table3[[#This Row],[Selected]],INDIRECT("'"&INDEX(Table5[SheetName],MATCH(Table3[[#This Row],[Diagnostic Heading]],Table5[Diagnostic Heading],0))&"'"&"!C"&11+Table3[[#This Row],[Q]]),"") ->  | M77: =IFERROR(AND(Table3[[#This Row],[BCH Funded]]="Yes",Table3[[#This Row],[Answer]]="No"),"") ->  | N77: =IFERROR(AND(Table3[[#This Row],[BCH Funded]]="no",Table3[[#This Row],[Answer]]="No"),"") ->  | O77: =IFERROR(IF(Table3[[#This Row],[Answer]]="No",INDEX(Table10[],MATCH(INDEX(Table8[CPR Type],MATCH(Table3[[#This Row],[Report Heading]],Table8[Report Heading],0)),Table10[Segment],0),MATCH(Table3[[#This Row],[Question set]],Table10[#Headers],0)),0),0.01/COUNTIFS(Table3[Question set],INDEX(Table1[Evaluator Question Set],MATCH(Sector,Table1[BC Hydro Sector Allocation],0)),Table3[Diagnostic Heading],Table3[[#This Row],[Diagnostic Heading]],Table3[Selected],TRUE)) ->  | P77: 1 | Q77: 0.5 | R77: =Table3[[#This Row],[a]]*Table3[[#This Row],[b]]*Table3[[#This Row],[c]] ->  | S77: =Table3[[#This Row],[ES Percent]]*AnnEgyCons ->  | T77: TRUE | U77: Cristian Suvagau
A78: =INDEX(Table7[Q],MATCH(Table3[[#This Row],[Question set]],Table7[Question Set],0))&"."&INDEX(Table5[S],MATCH(Table3[[#This Row],[Diagnostic Heading]],Table5[Diagnostic Heading],0))&"."&Table3[[#This Row],[Q]] -> 4.1.5 | B78: Hospitality | C78: Lighting | D78: 5 | E78: Lighting control | F78: No | H78: We have installed controls on lighting to turn off when not required (e.g. timers or occupancy sensors in offices and meeting rooms, daylight harvesting in offices). | I78: Lighting controls can provide you with energy savings and better management of your lighting systems. Adding lighting controls may be eligible for additional incentive funding when completing a lighting retrofit as not all controls energy savings are recognized by BC Hydro. | J78: https://www.bchydro.com/ecatalog/eCatServlet?cmd=all_psp_incentives&existId=&energyId=14 | K78: =INDEX(Table1[Evaluator Question Set],MATCH(Sector,Table1[BC Hydro Sector Allocation],0))=Table3[[#This Row],[Question set]] ->  | L78: =IF(Table3[[#This Row],[Selected]],INDIRECT("'"&INDEX(Table5[SheetName],MATCH(Table3[[#This Row],[Diagnostic Heading]],Table5[Diagnostic Heading],0))&"'"&"!C"&11+Table3[[#This Row],[Q]]),"") ->  | M78: =IFERROR(AND(Table3[[#This Row],[BCH Funded]]="Yes",Table3[[#This Row],[Answer]]="No"),"") ->  | N78: =IFERROR(AND(Table3[[#This Row],[BCH Funded]]="no",Table3[[#This Row],[Answer]]="No"),"") ->  | O78: =IFERROR(IF(Table3[[#This Row],[Answer]]="No",INDEX(Table10[],MATCH(INDEX(Table8[CPR Type],MATCH(Table3[[#This Row],[Report Heading]],Table8[Report Heading],0)),Table10[Segment],0),MATCH(Table3[[#This Row],[Question set]],Table10[#Headers],0)),0),0.01/COUNTIFS(Table3[Question set],INDEX(Table1[Evaluator Question Set],MATCH(Sector,Table1[BC Hydro Sector Allocation],0)),Table3[Diagnostic Heading],Table3[[#This Row],[Diagnostic Heading]],Table3[Selected],TRUE)) ->  | P78: 0.4 | Q78: 0.3 | R78: =Table3[[#This Row],[a]]*Table3[[#This Row],[b]]*Table3[[#This Row],[c]] ->  | S78: =Table3[[#This Row],[ES Percent]]*AnnEgyCons ->  | T78: TRUE | U78: Cristian Suvagau
A79: =INDEX(Table7[Q],MATCH(Table3[[#This Row],[Question set]],Table7[Question Set],0))&"."&INDEX(Table5[S],MATCH(Table3[[#This Row],[Diagnostic Heading]],Table5[Diagnostic Heading],0))&"."&Table3[[#This Row],[Q]] -> 4.2.1 | B79: Hospitality | C79: Heating, Ventilation, Air Conditioning / Refrigeration | D79: 1 | E79: Air tightness | F79: no | H79: We have examined ways to improve the air-tightness of air-conditioned spaces (e.g. closing doors, windows and installing air curtains). | I79: Stretch your legs. Have a walk around and look for where you could improve the air-tightness of air-conditioned spaces (e.g. closing doors, windows, installing air curtains). Learn more about air leakage control in your building through the link below. | J79: http://www.energycodes.gov/sites/default/files/documents/BECP_Buidling%20Energy%20Code%20Resource%20Guide%20Air%20Leakage%20Guide_Sept2011_v00_lores.pdf | K79: =INDEX(Table1[Evaluator Question Set],MATCH(Sector,Table1[BC Hydro Sector Allocation],0))=Table3[[#This Row],[Question set]] ->  | L79: =IF(Table3[[#This Row],[Selected]],INDIRECT("'"&INDEX(Table5[SheetName],MATCH(Table3[[#This Row],[Diagnostic Heading]],Table5[Diagnostic Heading],0))&"'"&"!C"&11+Table3[[#This Row],[Q]]),"") ->  | M79: =IFERROR(AND(Table3[[#This Row],[BCH Funded]]="Yes",Table3[[#This Row],[Answer]]="No"),"") ->  | N79: =IFERROR(AND(Table3[[#This Row],[BCH Funded]]="no",Table3[[#This Row],[Answer]]="No"),"") ->  | O79: =IFERROR(IF(Table3[[#This Row],[Answer]]="No",INDEX(Table10[],MATCH(INDEX(Table8[CPR Type],MATCH(Table3[[#This Row],[Report Heading]],Table8[Report Heading],0)),Table10[Segment],0),MATCH(Table3[[#This Row],[Question set]],Table10[#Headers],0)),0),0.01/COUNTIFS(Table3[Question set],INDEX(Table1[Evaluator Question Set],MATCH(Sector,Table1[BC Hydro Sector Allocation],0)),Table3[Diagnostic Heading],Table3[[#This Row],[Diagnostic Heading]],Table3[Selected],TRUE)) ->  | P79: 1 | Q79: 0.02 | R79: =Table3[[#This Row],[a]]*Table3[[#This Row],[b]]*Table3[[#This Row],[c]] ->  | S79: =Table3[[#This Row],[ES Percent]]*AnnEgyCons ->  | T79: TRUE | U79: ASHRAE- Simulation of the Impact of Commercial Building Envelope Airtightness on Building Energy Utilization
A80: =INDEX(Table7[Q],MATCH(Table3[[#This Row],[Question set]],Table7[Question Set],0))&"."&INDEX(Table5[S],MATCH(Table3[[#This Row],[Diagnostic Heading]],Table5[Diagnostic Heading],0))&"."&Table3[[#This Row],[Q]] -> 4.2.2 | B80: Hospitality | C80: Heating, Ventilation, Air Conditioning / Refrigeration | D80: 2 | E80: Heating / cooling controls | F80: yes | G80: Average incentive of 20% of project cost | H80: We have upgraded our heating, ventilation & air conditioning system to include variable frequency drives on fans and pumps and/or variable speed ECM pumps. | I80: BC Hydro funding is available. Consider upgrading your heating, ventilation & air conditioning system to include variable frequency drives on fans and pumps and/or variable speed ECM pumps. | J80: https://www.bchydro.com/ecatalog/ | K80: =INDEX(Table1[Evaluator Question Set],MATCH(Sector,Table1[BC Hydro Sector Allocation],0))=Table3[[#This Row],[Question set]] ->  | L80: =IF(Table3[[#This Row],[Selected]],INDIRECT("'"&INDEX(Table5[SheetName],MATCH(Table3[[#This Row],[Diagnostic Heading]],Table5[Diagnostic Heading],0))&"'"&"!C"&11+Table3[[#This Row],[Q]]),"") ->  | M80: =IFERROR(AND(Table3[[#This Row],[BCH Funded]]="Yes",Table3[[#This Row],[Answer]]="No"),"") ->  | N80: =IFERROR(AND(Table3[[#This Row],[BCH Funded]]="no",Table3[[#This Row],[Answer]]="No"),"") ->  | O80: =IFERROR(IF(Table3[[#This Row],[Answer]]="No",INDEX(Table10[],MATCH(INDEX(Table8[CPR Type],MATCH(Table3[[#This Row],[Report Heading]],Table8[Report Heading],0)),Table10[Segment],0),MATCH(Table3[[#This Row],[Question set]],Table10[#Headers],0)),0),0.01/COUNTIFS(Table3[Question set],INDEX(Table1[Evaluator Question Set],MATCH(Sector,Table1[BC Hydro Sector Allocation],0)),Table3[Diagnostic Heading],Table3[[#This Row],[Diagnostic Heading]],Table3[Selected],TRUE)) ->  | P80: 1 | Q80: 0.2 | R80: =Table3[[#This Row],[a]]*Table3[[#This Row],[b]]*Table3[[#This Row],[c]] ->  | S80: =Table3[[#This Row],[ES Percent]]*AnnEgyCons ->  | T80: TRUE | U80: Past commercial incentives
A81: =INDEX(Table7[Q],MATCH(Table3[[#This Row],[Question set]],Table7[Question Set],0))&"."&INDEX(Table5[S],MATCH(Table3[[#This Row],[Diagnostic Heading]],Table5[Diagnostic Heading],0))&"."&Table3[[#This Row],[Q]] -> 4.2.3 | B81: Hospitality | C81: Heating, Ventilation, Air Conditioning / Refrigeration | D81: 3 | E81: Heating and cooling temperature set points | F81: no | H81: We have adjusted temperature settings for heating and cooling to minimize energy use. | I81: Pay attention to your thermostat settings. Air conditioning thermostats should be set no lower than 25° C; each degree you raise your temperature setting can save on air conditioning costs. To achieve similar savings when heating, 20° C is the recommended temperature. Learn more about adjusting thermostats through the link below. | J81: https://www.bchydro.com/powersmart/business/technologies-equipment/heating-cooling.html | K81: =INDEX(Table1[Evaluator Question Set],MATCH(Sector,Table1[BC Hydro Sector Allocation],0))=Table3[[#This Row],[Question set]] ->  | L81: =IF(Table3[[#This Row],[Selected]],INDIRECT("'"&INDEX(Table5[SheetName],MATCH(Table3[[#This Row],[Diagnostic Heading]],Table5[Diagnostic Heading],0))&"'"&"!C"&11+Table3[[#This Row],[Q]]),"") ->  | M81: =IFERROR(AND(Table3[[#This Row],[BCH Funded]]="Yes",Table3[[#This Row],[Answer]]="No"),"") ->  | N81: =IFERROR(AND(Table3[[#This Row],[BCH Funded]]="no",Table3[[#This Row],[Answer]]="No"),"") ->  | O81: =IFERROR(IF(Table3[[#This Row],[Answer]]="No",INDEX(Table10[],MATCH(INDEX(Table8[CPR Type],MATCH(Table3[[#This Row],[Report Heading]],Table8[Report Heading],0)),Table10[Segment],0),MATCH(Table3[[#This Row],[Question set]],Table10[#Headers],0)),0),0.01/COUNTIFS(Table3[Question set],INDEX(Table1[Evaluator Question Set],MATCH(Sector,Table1[BC Hydro Sector Allocation],0)),Table3[Diagnostic Heading],Table3[[#This Row],[Diagnostic Heading]],Table3[Selected],TRUE)) ->  | P81: 1 | Q81: 0.05 | R81: =Table3[[#This Row],[a]]*Table3[[#This Row],[b]]*Table3[[#This Row],[c]] ->  | S81: =Table3[[#This Row],[ES Percent]]*AnnEgyCons ->  | T81: TRUE | U81: Past commercial incentives
A82: =INDEX(Table7[Q],MATCH(Table3[[#This Row],[Question set]],Table7[Question Set],0))&"."&INDEX(Table5[S],MATCH(Table3[[#This Row],[Diagnostic Heading]],Table5[Diagnostic Heading],0))&"."&Table3[[#This Row],[Q]] -> 4.2.4 | B82: Hospitality | C82: Heating, Ventilation, Air Conditioning / Refrigeration | D82: 4 | E82: Economizer operation | F82: no | H82: We regularly check the operation of the economizer on our heating, ventilation & air conditioning system (an economizer is a vent controlled to use cooler outside air to reduce the heating, ventilation & air conditioning system energy use). | I82: Have your heating, ventilation and air conditioning economizer checked for correct operation (an economizer is a vent controlled to use cooler outside air to reduce the heating, ventilation and air conditioning system energy use). If the vent is not operating it can increase heating, ventilation and air conditioning system energy use by up to 50%. Learn more about economizers through the link below. | J82: https://www.bchydro.com/powersmart/business/technologies-equipment/heating-cooling.html | K82: =INDEX(Table1[Evaluator Question Set],MATCH(Sector,Table1[BC Hydro Sector Allocation],0))=Table3[[#This Row],[Question set]] ->  | L82: =IF(Table3[[#This Row],[Selected]],INDIRECT("'"&INDEX(Table5[SheetName],MATCH(Table3[[#This Row],[Diagnostic Heading]],Table5[Diagnostic Heading],0))&"'"&"!C"&11+Table3[[#This Row],[Q]]),"") ->  | M82: =IFERROR(AND(Table3[[#This Row],[BCH Funded]]="Yes",Table3[[#This Row],[Answer]]="No"),"") ->  | N82: =IFERROR(AND(Table3[[#This Row],[BCH Funded]]="no",Table3[[#This Row],[Answer]]="No"),"") ->  | O82: =IFERROR(IF(Table3[[#This Row],[Answer]]="No",INDEX(Table10[],MATCH(INDEX(Table8[CPR Type],MATCH(Table3[[#This Row],[Report Heading]],Table8[Report Heading],0)),Table10[Segment],0),MATCH(Table3[[#This Row],[Question set]],Table10[#Headers],0)),0),0.01/COUNTIFS(Table3[Question set],INDEX(Table1[Evaluator Question Set],MATCH(Sector,Table1[BC Hydro Sector Allocation],0)),Table3[Diagnostic Heading],Table3[[#This Row],[Diagnostic Heading]],Table3[Selected],TRUE)) ->  | P82: 1 | Q82: 0.2 | R82: =Table3[[#This Row],[a]]*Table3[[#This Row],[b]]*Table3[[#This Row],[c]] ->  | S82: =Table3[[#This Row],[ES Percent]]*AnnEgyCons ->  | T82: TRUE | U82: Stan Ma: Catalyst DEMO Richmond Center = 29%
A83: =INDEX(Table7[Q],MATCH(Table3[[#This Row],[Question set]],Table7[Question Set],0))&"."&INDEX(Table5[S],MATCH(Table3[[#This Row],[Diagnostic Heading]],Table5[Diagnostic Heading],0))&"."&Table3[[#This Row],[Q]] -> 4.2.5 | B83: Hospitality | C83: Heating, Ventilation, Air Conditioning / Refrigeration | D83: 5 | E83: Economizer sensor | F83: yes | G83: Average incentive of 20% of project cost | H83: We have assessed opportunities to upgrade to an efficient economizer controller sensor on our rooftop heating, ventilation & air conditioning system. | I83: BC Hydro funding is available. Assess the cost effectiveness of upgrading your rooftop heating, ventilation & air conditioning system with an efficient economizer controller sensor. | J83: https://www.bchydro.com/ecatalog/ | K83: =INDEX(Table1[Evaluator Question Set],MATCH(Sector,Table1[BC Hydro Sector Allocation],0))=Table3[[#This Row],[Question set]] ->  | L83: =IF(Table3[[#This Row],[Selected]],INDIRECT("'"&INDEX(Table5[SheetName],MATCH(Table3[[#This Row],[Diagnostic Heading]],Table5[Diagnostic Heading],0))&"'"&"!C"&11+Table3[[#This Row],[Q]]),"") ->  | M83: =IFERROR(AND(Table3[[#This Row],[BCH Funded]]="Yes",Table3[[#This Row],[Answer]]="No"),"") ->  | N83: =IFERROR(AND(Table3[[#This Row],[BCH Funded]]="no",Table3[[#This Row],[Answer]]="No"),"") ->  | O83: =IFERROR(IF(Table3[[#This Row],[Answer]]="No",INDEX(Table10[],MATCH(INDEX(Table8[CPR Type],MATCH(Table3[[#This Row],[Report Heading]],Table8[Report Heading],0)),Table10[Segment],0),MATCH(Table3[[#This Row],[Question set]],Table10[#Headers],0)),0),0.01/COUNTIFS(Table3[Question set],INDEX(Table1[Evaluator Question Set],MATCH(Sector,Table1[BC Hydro Sector Allocation],0)),Table3[Diagnostic Heading],Table3[[#This Row],[Diagnostic Heading]],Table3[Selected],TRUE)) ->  | P83: 1 | Q83: 0.1 | R83: =Table3[[#This Row],[a]]*Table3[[#This Row],[b]]*Table3[[#This Row],[c]] ->  | S83: =Table3[[#This Row],[ES Percent]]*AnnEgyCons ->  | T83: TRUE | U83: Stan Ma: past experience
A84: =INDEX(Table7[Q],MATCH(Table3[[#This Row],[Question set]],Table7[Question Set],0))&"."&INDEX(Table5[S],MATCH(Table3[[#This Row],[Diagnostic Heading]],Table5[Diagnostic Heading],0))&"."&Table3[[#This Row],[Q]] -> 4.4.1 | B84: Hospitality | C84: Energy Efficient Equipment | D84: 1 | E84: Efficient equipment | F84: no | H84: We have installed equipment to manage and control large energy users (e.g. energy management system for lighting, water heaters, pools, laundry equipment). | I84: Familiarize yourself with equipment available to assist with managing and controlling large energy users (e.g., energy management system for lighting, water heaters, pools, laundry equipment). Learn more about managing your energy costs and consumption through the link below. | J84: https://www.bchydro.com/powersmart/business/technologies-equipment.html | K84: =INDEX(Table1[Evaluator Question Set],MATCH(Sector,Table1[BC Hydro Sector Allocation],0))=Table3[[#This Row],[Question set]] ->  | L84: =IF(Table3[[#This Row],[Selected]],INDIRECT("'"&INDEX(Table5[SheetName],MATCH(Table3[[#This Row],[Diagnostic Heading]],Table5[Diagnostic Heading],0))&"'"&"!C"&11+Table3[[#This Row],[Q]]),"") ->  | M84: =IFERROR(AND(Table3[[#This Row],[BCH Funded]]="Yes",Table3[[#This Row],[Answer]]="No"),"") ->  | N84: =IFERROR(AND(Table3[[#This Row],[BCH Funded]]="no",Table3[[#This Row],[Answer]]="No"),"") ->  | O84: =IFERROR(IF(Table3[[#This Row],[Answer]]="No",INDEX(Table10[],MATCH(INDEX(Table8[CPR Type],MATCH(Table3[[#This Row],[Report Heading]],Table8[Report Heading],0)),Table10[Segment],0),MATCH(Table3[[#This Row],[Question set]],Table10[#Headers],0)),0),0.01/COUNTIFS(Table3[Question set],INDEX(Table1[Evaluator Question Set],MATCH(Sector,Table1[BC Hydro Sector Allocation],0)),Table3[Diagnostic Heading],Table3[[#This Row],[Diagnostic Heading]],Table3[Selected],TRUE)) ->  | P84: 1 | Q84: 0.05 | R84: =Table3[[#This Row],[a]]*Table3[[#This Row],[b]]*Table3[[#This Row],[c]] ->  | S84: =Table3[[#This Row],[ES Percent]]*AnnEgyCons ->  | T84: TRUE | U84: Typical EMIS program offer
A85: =INDEX(Table7[Q],MATCH(Table3[[#This Row],[Question set]],Table7[Question Set],0))&"."&INDEX(Table5[S],MATCH(Table3[[#This Row],[Diagnostic Heading]],Table5[Diagnostic Heading],0))&"."&Table3[[#This Row],[Q]] -> 4.4.2 | B85: Hospitality | C85: Energy Efficient Equipment | D85: 2 | E85: Energy Efficient Equipment | F85: no | H85: We have equipment and appliances (i.e. ice machines, commercial kitchens) to align with Energy Star®. | I85: Consider upgrading to a more efficient ice maker and benefit from an extra incentive. Learn more about BC Hydro’s financial incentives for this technology through the link below. | J85: https://www.bchydro.com/powersmart/business/programs/express.html | K85: =INDEX(Table1[Evaluator Question Set],MATCH(Sector,Table1[BC Hydro Sector Allocation],0))=Table3[[#This Row],[Question set]] ->  | L85: =IF(Table3[[#This Row],[Selected]],INDIRECT("'"&INDEX(Table5[SheetName],MATCH(Table3[[#This Row],[Diagnostic Heading]],Table5[Diagnostic Heading],0))&"'"&"!C"&11+Table3[[#This Row],[Q]]),"") ->  | M85: =IFERROR(AND(Table3[[#This Row],[BCH Funded]]="Yes",Table3[[#This Row],[Answer]]="No"),"") ->  | N85: =IFERROR(AND(Table3[[#This Row],[BCH Funded]]="no",Table3[[#This Row],[Answer]]="No"),"") ->  | O85: =IFERROR(IF(Table3[[#This Row],[Answer]]="No",INDEX(Table10[],MATCH(INDEX(Table8[CPR Type],MATCH(Table3[[#This Row],[Report Heading]],Table8[Report Heading],0)),Table10[Segment],0),MATCH(Table3[[#This Row],[Question set]],Table10[#Headers],0)),0),0.01/COUNTIFS(Table3[Question set],INDEX(Table1[Evaluator Question Set],MATCH(Sector,Table1[BC Hydro Sector Allocation],0)),Table3[Diagnostic Heading],Table3[[#This Row],[Diagnostic Heading]],Table3[Selected],TRUE)) ->  | P85: 1 | Q85: 0.25 | R85: =Table3[[#This Row],[a]]*Table3[[#This Row],[b]]*Table3[[#This Row],[c]] ->  | S85: =Table3[[#This Row],[ES Percent]]*AnnEgyCons ->  | T85: TRUE | U85: https://www1.eere.energy.gov/buildings/publications/pdfs/alliances/hea_plugloads.pdf
A86: =INDEX(Table7[Q],MATCH(Table3[[#This Row],[Question set]],Table7[Question Set],0))&"."&INDEX(Table5[S],MATCH(Table3[[#This Row],[Diagnostic Heading]],Table5[Diagnostic Heading],0))&"."&Table3[[#This Row],[Q]] -> 4.4.3 | B86: Hospitality | C86: Energy Efficient Equipment | D86: 3 | E86: Showerheads | F86: no | H86: We have upgraded our showers to low flow showerheads that reduce both energy and water costs. | I86: Assess the cost effectiveness of upgrading your showers to low flow showerheads that reduce both energy and water costs. Learn more about managing your energy costs and consumption through the link below. | J86: https://www.bchydro.com/powersmart/residential/savings-and-rebates/do-it-yourself-and-save/install-water-saving-showerheads-aerators.html | K86: =INDEX(Table1[Evaluator Question Set],MATCH(Sector,Table1[BC Hydro Sector Allocation],0))=Table3[[#This Row],[Question set]] ->  | L86: =IF(Table3[[#This Row],[Selected]],INDIRECT("'"&INDEX(Table5[SheetName],MATCH(Table3[[#This Row],[Diagnostic Heading]],Table5[Diagnostic Heading],0))&"'"&"!C"&11+Table3[[#This Row],[Q]]),"") ->  | M86: =IFERROR(AND(Table3[[#This Row],[BCH Funded]]="Yes",Table3[[#This Row],[Answer]]="No"),"") ->  | N86: =IFERROR(AND(Table3[[#This Row],[BCH Funded]]="no",Table3[[#This Row],[Answer]]="No"),"") ->  | O86: =IFERROR(IF(Table3[[#This Row],[Answer]]="No",INDEX(Table10[],MATCH(INDEX(Table8[CPR Type],MATCH(Table3[[#This Row],[Report Heading]],Table8[Report Heading],0)),Table10[Segment],0),MATCH(Table3[[#This Row],[Question set]],Table10[#Headers],0)),0),0.01/COUNTIFS(Table3[Question set],INDEX(Table1[Evaluator Question Set],MATCH(Sector,Table1[BC Hydro Sector Allocation],0)),Table3[Diagnostic Heading],Table3[[#This Row],[Diagnostic Heading]],Table3[Selected],TRUE)) ->  | P86: 1 | Q86: 0.2 | R86: =Table3[[#This Row],[a]]*Table3[[#This Row],[b]]*Table3[[#This Row],[c]] ->  | S86: =Table3[[#This Row],[ES Percent]]*AnnEgyCons ->  | T86: TRUE | U86: http://switch.bchydro.com/Shower_of_savings
A87: =INDEX(Table7[Q],MATCH(Table3[[#This Row],[Question set]],Table7[Question Set],0))&"."&INDEX(Table5[S],MATCH(Table3[[#This Row],[Diagnostic Heading]],Table5[Diagnostic Heading],0))&"."&Table3[[#This Row],[Q]] -> 4.4.4 | B87: Hospitality | C87: Energy Efficient Equipment | D87: 4 | E87: Vending Machines | F87: no | H87: We use vending machine controllers, which incorporate occupancy sensors, on our vending machines to adjust when the area is unoccupied. | I87: Ensure any vending machines purchased or installed, incorporate an occupancy sensor controller. | J87: https://www.energystar.gov/products/other/vending_machines | K87: =INDEX(Table1[Evaluator Question Set],MATCH(Sector,Table1[BC Hydro Sector Allocation],0))=Table3[[#This Row],[Question set]] ->  | L87: =IF(Table3[[#This Row],[Selected]],INDIRECT("'"&INDEX(Table5[SheetName],MATCH(Table3[[#This Row],[Diagnostic Heading]],Table5[Diagnostic Heading],0))&"'"&"!C"&11+Table3[[#This Row],[Q]]),"") ->  | M87: =IFERROR(AND(Table3[[#This Row],[BCH Funded]]="Yes",Table3[[#This Row],[Answer]]="No"),"") ->  | N87: =IFERROR(AND(Table3[[#This Row],[BCH Funded]]="no",Table3[[#This Row],[Answer]]="No"),"") ->  | O87: =IFERROR(IF(Table3[[#This Row],[Answer]]="No",INDEX(Table10[],MATCH(INDEX(Table8[CPR Type],MATCH(Table3[[#This Row],[Report Heading]],Table8[Report Heading],0)),Table10[Segment],0),MATCH(Table3[[#This Row],[Question set]],Table10[#Headers],0)),0),0.01/COUNTIFS(Table3[Question set],INDEX(Table1[Evaluator Question Set],MATCH(Sector,Table1[BC Hydro Sector Allocation],0)),Table3[Diagnostic Heading],Table3[[#This Row],[Diagnostic Heading]],Table3[Selected],TRUE)) ->  | P87: 1 | Q87: 0.1 | R87: =Table3[[#This Row],[a]]*Table3[[#This Row],[b]]*Table3[[#This Row],[c]] ->  | S87: =Table3[[#This Row],[ES Percent]]*AnnEgyCons ->  | T87: TRUE
A88: =INDEX(Table7[Q],MATCH(Table3[[#This Row],[Question set]],Table7[Question Set],0))&"."&INDEX(Table5[S],MATCH(Table3[[#This Row],[Diagnostic Heading]],Table5[Diagnostic Heading],0))&"."&Table3[[#This Row],[Q]] -> 4.4.5 | B88: Hospitality | C88: Energy Efficient Equipment | D88: 5 | E88: Refrigeration | F88: no | H88: Our cool room/freezer is insulated and includes a strip curtain and/or auto-closing door. | I88: Dollars are leaking out! Add strip curtains to walk-in coolers to reduce the amount of energy lost to the surrounding air. Strip curtains used in busy kitchens can cut your refrigeration costs significantly! As an added bonus, these curtains repel windborne contaminants like dust and pollutants. Auto closers will ensure coolers and freezers do not remain open. Learn more about strip curtains from the case study link below. | J88: https://www.bchydro.com/powersmart/business/success-stories/donalds-market-success.html | K88: =INDEX(Table1[Evaluator Question Set],MATCH(Sector,Table1[BC Hydro Sector Allocation],0))=Table3[[#This Row],[Question set]] ->  | L88: =IF(Table3[[#This Row],[Selected]],INDIRECT("'"&INDEX(Table5[SheetName],MATCH(Table3[[#This Row],[Diagnostic Heading]],Table5[Diagnostic Heading],0))&"'"&"!C"&11+Table3[[#This Row],[Q]]),"") ->  | M88: =IFERROR(AND(Table3[[#This Row],[BCH Funded]]="Yes",Table3[[#This Row],[Answer]]="No"),"") ->  | N88: =IFERROR(AND(Table3[[#This Row],[BCH Funded]]="no",Table3[[#This Row],[Answer]]="No"),"") ->  | O88: =IFERROR(IF(Table3[[#This Row],[Answer]]="No",INDEX(Table10[],MATCH(INDEX(Table8[CPR Type],MATCH(Table3[[#This Row],[Report Heading]],Table8[Report Heading],0)),Table10[Segment],0),MATCH(Table3[[#This Row],[Question set]],Table10[#Headers],0)),0),0.01/COUNTIFS(Table3[Question set],INDEX(Table1[Evaluator Question Set],MATCH(Sector,Table1[BC Hydro Sector Allocation],0)),Table3[Diagnostic Heading],Table3[[#This Row],[Diagnostic Heading]],Table3[Selected],TRUE)) ->  | P88: 1 | Q88: 0.24 | R88: =Table3[[#This Row],[a]]*Table3[[#This Row],[b]]*Table3[[#This Row],[c]] ->  | S88: =Table3[[#This Row],[ES Percent]]*AnnEgyCons ->  | T88: TRUE | U88: https://www.bchydro.com/powersmart/business/technologies-equipment.html
A89: =INDEX(Table7[Q],MATCH(Table3[[#This Row],[Question set]],Table7[Question Set],0))&"."&INDEX(Table5[S],MATCH(Table3[[#This Row],[Diagnostic Heading]],Table5[Diagnostic Heading],0))&"."&Table3[[#This Row],[Q]] -> 4.5.1 | B89: Hospitality | C89: Operating and Maintenance Practices | D89: 1 | E89: Hot water control | F89: no | H89: We have explored how to reduce hot water temperature while still maintaining required conditions. | I89: Look into the possibility of reducing your hot water temperature while still maintaining required sanitary conditions. You'll be surprised at what can be saved through reducing hot water temperature without degrading the use. Learn more about water heating and usage through the link below. | J89: https://www.bchydro.com/powersmart/business/technologies-equipment/heating-cooling.html | K89: =INDEX(Table1[Evaluator Question Set],MATCH(Sector,Table1[BC Hydro Sector Allocation],0))=Table3[[#This Row],[Question set]] ->  | L89: =IF(Table3[[#This Row],[Selected]],INDIRECT("'"&INDEX(Table5[SheetName],MATCH(Table3[[#This Row],[Diagnostic Heading]],Table5[Diagnostic Heading],0))&"'"&"!C"&11+Table3[[#This Row],[Q]]),"") ->  | M89: =IFERROR(AND(Table3[[#This Row],[BCH Funded]]="Yes",Table3[[#This Row],[Answer]]="No"),"") ->  | N89: =IFERROR(AND(Table3[[#This Row],[BCH Funded]]="no",Table3[[#This Row],[Answer]]="No"),"") ->  | O89: =IFERROR(IF(Table3[[#This Row],[Answer]]="No",INDEX(Table10[],MATCH(INDEX(Table8[CPR Type],MATCH(Table3[[#This Row],[Report Heading]],Table8[Report Heading],0)),Table10[Segment],0),MATCH(Table3[[#This Row],[Question set]],Table10[#Headers],0)),0),0.01/COUNTIFS(Table3[Question set],INDEX(Table1[Evaluator Question Set],MATCH(Sector,Table1[BC Hydro Sector Allocation],0)),Table3[Diagnostic Heading],Table3[[#This Row],[Diagnostic Heading]],Table3[Selected],TRUE)) ->  | P89: 1 | Q89: 1 | R89: =Table3[[#This Row],[a]]*Table3[[#This Row],[b]]*Table3[[#This Row],[c]] ->  | S89: =Table3[[#This Row],[ES Percent]]*AnnEgyCons ->  | T89: TRUE
A90: =INDEX(Table7[Q],MATCH(Table3[[#This Row],[Question set]],Table7[Question Set],0))&"."&INDEX(Table5[S],MATCH(Table3[[#This Row],[Diagnostic Heading]],Table5[Diagnostic Heading],0))&"."&Table3[[#This Row],[Q]] -> 4.5.2 | B90: Hospitality | C90: Operating and Maintenance Practices | D90: 2 | E90: Staff operating procedures | F90: no | H90: Our staff turns off equipment when not needed (e.g., turns off lights and equipment when not in use, after hours and on weekends). | I90: The most important tip for your business is “turn it off!!”. Introduce procedures to encourage staff to turn off equipment when not needed (e.g. turn off lights and office equipment when not in use, after hours and on weekends). Find more tips and information about how and when to turn off equipment through the link below. | J90: https://www.bchydro.com/powersmart/business/technologies-equipment/lighting-systems.html#1 | K90: =INDEX(Table1[Evaluator Question Set],MATCH(Sector,Table1[BC Hydro Sector Allocation],0))=Table3[[#This Row],[Question set]] ->  | L90: =IF(Table3[[#This Row],[Selected]],INDIRECT("'"&INDEX(Table5[SheetName],MATCH(Table3[[#This Row],[Diagnostic Heading]],Table5[Diagnostic Heading],0))&"'"&"!C"&11+Table3[[#This Row],[Q]]),"") ->  | M90: =IFERROR(AND(Table3[[#This Row],[BCH Funded]]="Yes",Table3[[#This Row],[Answer]]="No"),"") ->  | N90: =IFERROR(AND(Table3[[#This Row],[BCH Funded]]="no",Table3[[#This Row],[Answer]]="No"),"") ->  | O90: =IFERROR(IF(Table3[[#This Row],[Answer]]="No",INDEX(Table10[],MATCH(INDEX(Table8[CPR Type],MATCH(Table3[[#This Row],[Report Heading]],Table8[Report Heading],0)),Table10[Segment],0),MATCH(Table3[[#This Row],[Question set]],Table10[#Headers],0)),0),0.01/COUNTIFS(Table3[Question set],INDEX(Table1[Evaluator Question Set],MATCH(Sector,Table1[BC Hydro Sector Allocation],0)),Table3[Diagnostic Heading],Table3[[#This Row],[Diagnostic Heading]],Table3[Selected],TRUE)) ->  | P90: 1 | Q90: 1 | R90: =Table3[[#This Row],[a]]*Table3[[#This Row],[b]]*Table3[[#This Row],[c]] ->  | S90: =Table3[[#This Row],[ES Percent]]*AnnEgyCons ->  | T90: TRUE
A91: =INDEX(Table7[Q],MATCH(Table3[[#This Row],[Question set]],Table7[Question Set],0))&"."&INDEX(Table5[S],MATCH(Table3[[#This Row],[Diagnostic Heading]],Table5[Diagnostic Heading],0))&"."&Table3[[#This Row],[Q]] -> 4.5.3 | B91: Hospitality | C91: Operating and Maintenance Practices | D91: 3 | E91: Maintenance practices | F91: no | H91: We conduct regular maintenance on our heating, ventilation & air conditioning system (e.g. cleaning condenser coils, changing filters, checking operation of economizer). | I91: Modify your maintenance procedures on your heating, ventilation & air conditioning system to include regular energy efficiency checks (e.g. cleaning condenser coils, changing filters, checking operation of economizers). Heating, ventilation and air conditioning systems are at their most efficient when they are well maintained. Learn more about maintenance procedures through the link below. | J91: https://www.bchydro.com/powersmart/business/technologies-equipment/heating-cooling.html#d | K91: =INDEX(Table1[Evaluator Question Set],MATCH(Sector,Table1[BC Hydro Sector Allocation],0))=Table3[[#This Row],[Question set]] ->  | L91: =IF(Table3[[#This Row],[Selected]],INDIRECT("'"&INDEX(Table5[SheetName],MATCH(Table3[[#This Row],[Diagnostic Heading]],Table5[Diagnostic Heading],0))&"'"&"!C"&11+Table3[[#This Row],[Q]]),"") ->  | M91: =IFERROR(AND(Table3[[#This Row],[BCH Funded]]="Yes",Table3[[#This Row],[Answer]]="No"),"") ->  | N91: =IFERROR(AND(Table3[[#This Row],[BCH Funded]]="no",Table3[[#This Row],[Answer]]="No"),"") ->  | O91: =IFERROR(IF(Table3[[#This Row],[Answer]]="No",INDEX(Table10[],MATCH(INDEX(Table8[CPR Type],MATCH(Table3[[#This Row],[Report Heading]],Table8[Report Heading],0)),Table10[Segment],0),MATCH(Table3[[#This Row],[Question set]],Table10[#Headers],0)),0),0.01/COUNTIFS(Table3[Question set],INDEX(Table1[Evaluator Question Set],MATCH(Sector,Table1[BC Hydro Sector Allocation],0)),Table3[Diagnostic Heading],Table3[[#This Row],[Diagnostic Heading]],Table3[Selected],TRUE)) ->  | P91: 1 | Q91: 1 | R91: =Table3[[#This Row],[a]]*Table3[[#This Row],[b]]*Table3[[#This Row],[c]] ->  | S91: =Table3[[#This Row],[ES Percent]]*AnnEgyCons ->  | T91: TRUE
A92: =INDEX(Table7[Q],MATCH(Table3[[#This Row],[Question set]],Table7[Question Set],0))&"."&INDEX(Table5[S],MATCH(Table3[[#This Row],[Diagnostic Heading]],Table5[Diagnostic Heading],0))&"."&Table3[[#This Row],[Q]] -> 4.5.4 | B92: Hospitality | C92: Operating and Maintenance Practices | D92: 4 | E92: Energy saving tips | F92: no | H92: We have a list of energy saving tips for our type of business. | I92: Prepare a list of energy saving tips for your type of business. BC Hydro Power Smart has tips available. Find energy saving tips through the link below. | J92: https://www.bchydro.com/powersmart/business/technologies-equipment.html?WT.mc_id=rd_oldgreenyourbusiness | K92: =INDEX(Table1[Evaluator Question Set],MATCH(Sector,Table1[BC Hydro Sector Allocation],0))=Table3[[#This Row],[Question set]] ->  | L92: =IF(Table3[[#This Row],[Selected]],INDIRECT("'"&INDEX(Table5[SheetName],MATCH(Table3[[#This Row],[Diagnostic Heading]],Table5[Diagnostic Heading],0))&"'"&"!C"&11+Table3[[#This Row],[Q]]),"") ->  | M92: =IFERROR(AND(Table3[[#This Row],[BCH Funded]]="Yes",Table3[[#This Row],[Answer]]="No"),"") ->  | N92: =IFERROR(AND(Table3[[#This Row],[BCH Funded]]="no",Table3[[#This Row],[Answer]]="No"),"") ->  | O92: =IFERROR(IF(Table3[[#This Row],[Answer]]="No",INDEX(Table10[],MATCH(INDEX(Table8[CPR Type],MATCH(Table3[[#This Row],[Report Heading]],Table8[Report Heading],0)),Table10[Segment],0),MATCH(Table3[[#This Row],[Question set]],Table10[#Headers],0)),0),0.01/COUNTIFS(Table3[Question set],INDEX(Table1[Evaluator Question Set],MATCH(Sector,Table1[BC Hydro Sector Allocation],0)),Table3[Diagnostic Heading],Table3[[#This Row],[Diagnostic Heading]],Table3[Selected],TRUE)) ->  | P92: 1 | Q92: 1 | R92: =Table3[[#This Row],[a]]*Table3[[#This Row],[b]]*Table3[[#This Row],[c]] ->  | S92: =Table3[[#This Row],[ES Percent]]*AnnEgyCons ->  | T92: TRUE
A93: =INDEX(Table7[Q],MATCH(Table3[[#This Row],[Question set]],Table7[Question Set],0))&"."&INDEX(Table5[S],MATCH(Table3[[#This Row],[Diagnostic Heading]],Table5[Diagnostic Heading],0))&"."&Table3[[#This Row],[Q]] -> 4.5.5 | B93: Hospitality | C93: Operating and Maintenance Practices | D93: 5 | E93: Staff Awareness | F93: no | H93: We have conducted energy conservation awareness activities (e.g. signage, newsletters, competitions). | I93: Conduct energy conservation awareness activities with your staff (e.g. signage, newsletters, competitions). Find tips and information on workplace conservation activities through the link below. | J93: https://www.bchydro.com/powersmart/business/programs/workplace-conservation.html?WT.mc_id=rd_oldworkplaceconservationawareness | K93: =INDEX(Table1[Evaluator Question Set],MATCH(Sector,Table1[BC Hydro Sector Allocation],0))=Table3[[#This Row],[Question set]] ->  | L93: =IF(Table3[[#This Row],[Selected]],INDIRECT("'"&INDEX(Table5[SheetName],MATCH(Table3[[#This Row],[Diagnostic Heading]],Table5[Diagnostic Heading],0))&"'"&"!C"&11+Table3[[#This Row],[Q]]),"") ->  | M93: =IFERROR(AND(Table3[[#This Row],[BCH Funded]]="Yes",Table3[[#This Row],[Answer]]="No"),"") ->  | N93: =IFERROR(AND(Table3[[#This Row],[BCH Funded]]="no",Table3[[#This Row],[Answer]]="No"),"") ->  | O93: =IFERROR(IF(Table3[[#This Row],[Answer]]="No",INDEX(Table10[],MATCH(INDEX(Table8[CPR Type],MATCH(Table3[[#This Row],[Report Heading]],Table8[Report Heading],0)),Table10[Segment],0),MATCH(Table3[[#This Row],[Question set]],Table10[#Headers],0)),0),0.01/COUNTIFS(Table3[Question set],INDEX(Table1[Evaluator Question Set],MATCH(Sector,Table1[BC Hydro Sector Allocation],0)),Table3[Diagnostic Heading],Table3[[#This Row],[Diagnostic Heading]],Table3[Selected],TRUE)) ->  | P93: 1 | Q93: 1 | R93: =Table3[[#This Row],[a]]*Table3[[#This Row],[b]]*Table3[[#This Row],[c]] ->  | S93: =Table3[[#This Row],[ES Percent]]*AnnEgyCons ->  | T93: TRUE
A94: =INDEX(Table7[Q],MATCH(Table3[[#This Row],[Question set]],Table7[Question Set],0))&"."&INDEX(Table5[S],MATCH(Table3[[#This Row],[Diagnostic Heading]],Table5[Diagnostic Heading],0))&"."&Table3[[#This Row],[Q]] -> 4.6.1 | B94: Hospitality | C94: Management Practice | D94: 1 | E94: Effective management of energy data | F94: no | H94: We regularly go to bchydro.com and use MyHydro to track our energy usage. | I94: Develop a process for managing energy bills and metered energy use information centrally. For example in a spreadsheet, database, or other online tool for ready access. Sign up to see your BC Hydro account information online using the link below. | J94: https://www.bchydro.com/account/UI/Login?realm=bch-ps&goto=https%3A%2F%2Fwww.bchydro.com%3A443%2FBCHCustomerPortal%2Fweb%2Flogin.html | K94: =INDEX(Table1[Evaluator Question Set],MATCH(Sector,Table1[BC Hydro Sector Allocation],0))=Table3[[#This Row],[Question set]] ->  | L94: =IF(Table3[[#This Row],[Selected]],INDIRECT("'"&INDEX(Table5[SheetName],MATCH(Table3[[#This Row],[Diagnostic Heading]],Table5[Diagnostic Heading],0))&"'"&"!C"&11+Table3[[#This Row],[Q]]),"") ->  | M94: =IFERROR(AND(Table3[[#This Row],[BCH Funded]]="Yes",Table3[[#This Row],[Answer]]="No"),"") ->  | N94: =IFERROR(AND(Table3[[#This Row],[BCH Funded]]="no",Table3[[#This Row],[Answer]]="No"),"") ->  | O94: =IFERROR(IF(Table3[[#This Row],[Answer]]="No",INDEX(Table10[],MATCH(INDEX(Table8[CPR Type],MATCH(Table3[[#This Row],[Report Heading]],Table8[Report Heading],0)),Table10[Segment],0),MATCH(Table3[[#This Row],[Question set]],Table10[#Headers],0)),0),0.01/COUNTIFS(Table3[Question set],INDEX(Table1[Evaluator Question Set],MATCH(Sector,Table1[BC Hydro Sector Allocation],0)),Table3[Diagnostic Heading],Table3[[#This Row],[Diagnostic Heading]],Table3[Selected],TRUE)) ->  | P94: 1 | Q94: 1 | R94: =Table3[[#This Row],[a]]*Table3[[#This Row],[b]]*Table3[[#This Row],[c]] ->  | S94: =Table3[[#This Row],[ES Percent]]*AnnEgyCons ->  | T94: TRUE
A95: =INDEX(Table7[Q],MATCH(Table3[[#This Row],[Question set]],Table7[Question Set],0))&"."&INDEX(Table5[S],MATCH(Table3[[#This Row],[Diagnostic Heading]],Table5[Diagnostic Heading],0))&"."&Table3[[#This Row],[Q]] -> 4.6.2 | B95: Hospitality | C95: Management Practice | D95: 2 | E95: Reporting systems for energy use | F95: no | H95: We periodically report energy use for our business to relevant staff. | I95: Establish a process to regularly report your energy efficiency to management and staff. Learn more about managing energy costs and consumption in your business through the link below. | J95: https://www.bchydro.com/powersmart/business/types-of-business-customers.html | K95: =INDEX(Table1[Evaluator Question Set],MATCH(Sector,Table1[BC Hydro Sector Allocation],0))=Table3[[#This Row],[Question set]] ->  | L95: =IF(Table3[[#This Row],[Selected]],INDIRECT("'"&INDEX(Table5[SheetName],MATCH(Table3[[#This Row],[Diagnostic Heading]],Table5[Diagnostic Heading],0))&"'"&"!C"&11+Table3[[#This Row],[Q]]),"") ->  | M95: =IFERROR(AND(Table3[[#This Row],[BCH Funded]]="Yes",Table3[[#This Row],[Answer]]="No"),"") ->  | N95: =IFERROR(AND(Table3[[#This Row],[BCH Funded]]="no",Table3[[#This Row],[Answer]]="No"),"") ->  | O95: =IFERROR(IF(Table3[[#This Row],[Answer]]="No",INDEX(Table10[],MATCH(INDEX(Table8[CPR Type],MATCH(Table3[[#This Row],[Report Heading]],Table8[Report Heading],0)),Table10[Segment],0),MATCH(Table3[[#This Row],[Question set]],Table10[#Headers],0)),0),0.01/COUNTIFS(Table3[Question set],INDEX(Table1[Evaluator Question Set],MATCH(Sector,Table1[BC Hydro Sector Allocation],0)),Table3[Diagnostic Heading],Table3[[#This Row],[Diagnostic Heading]],Table3[Selected],TRUE)) ->  | P95: 1 | Q95: 1 | R95: =Table3[[#This Row],[a]]*Table3[[#This Row],[b]]*Table3[[#This Row],[c]] ->  | S95: =Table3[[#This Row],[ES Percent]]*AnnEgyCons ->  | T95: TRUE
A96: =INDEX(Table7[Q],MATCH(Table3[[#This Row],[Question set]],Table7[Question Set],0))&"."&INDEX(Table5[S],MATCH(Table3[[#This Row],[Diagnostic Heading]],Table5[Diagnostic Heading],0))&"."&Table3[[#This Row],[Q]] -> 4.6.3 | B96: Hospitality | C96: Management Practice | D96: 3 | E96: Targets and Planning | F96: no | H96: We have a target and action plan to reduce energy costs for the next year (e.g. kWh/sq. ft. by 10%). | I96: Create a realistic target and action plan to reduce energy costs for the next year (e.g. kWh/sq. ft. by 10%). Find out how to manage your energy costs and consumption in your business through the link below. | J96: https://www.bchydro.com/news/conservation/2014/myhydro-to-manage-energy-and-profitability.html | K96: =INDEX(Table1[Evaluator Question Set],MATCH(Sector,Table1[BC Hydro Sector Allocation],0))=Table3[[#This Row],[Question set]] ->  | L96: =IF(Table3[[#This Row],[Selected]],INDIRECT("'"&INDEX(Table5[SheetName],MATCH(Table3[[#This Row],[Diagnostic Heading]],Table5[Diagnostic Heading],0))&"'"&"!C"&11+Table3[[#This Row],[Q]]),"") ->  | M96: =IFERROR(AND(Table3[[#This Row],[BCH Funded]]="Yes",Table3[[#This Row],[Answer]]="No"),"") ->  | N96: =IFERROR(AND(Table3[[#This Row],[BCH Funded]]="no",Table3[[#This Row],[Answer]]="No"),"") ->  | O96: =IFERROR(IF(Table3[[#This Row],[Answer]]="No",INDEX(Table10[],MATCH(INDEX(Table8[CPR Type],MATCH(Table3[[#This Row],[Report Heading]],Table8[Report Heading],0)),Table10[Segment],0),MATCH(Table3[[#This Row],[Question set]],Table10[#Headers],0)),0),0.01/COUNTIFS(Table3[Question set],INDEX(Table1[Evaluator Question Set],MATCH(Sector,Table1[BC Hydro Sector Allocation],0)),Table3[Diagnostic Heading],Table3[[#This Row],[Diagnostic Heading]],Table3[Selected],TRUE)) ->  | P96: 1 | Q96: 1 | R96: =Table3[[#This Row],[a]]*Table3[[#This Row],[b]]*Table3[[#This Row],[c]] ->  | S96: =Table3[[#This Row],[ES Percent]]*AnnEgyCons ->  | T96: TRUE
A97: =INDEX(Table7[Q],MATCH(Table3[[#This Row],[Question set]],Table7[Question Set],0))&"."&INDEX(Table5[S],MATCH(Table3[[#This Row],[Diagnostic Heading]],Table5[Diagnostic Heading],0))&"."&Table3[[#This Row],[Q]] -> 4.6.4 | B97: Hospitality | C97: Management Practice | D97: 4 | E97: Understanding of energy performance and opportunities | F97: no | H97: We have completed an energy audit, which has quantified costs and savings opportunities. | I97: Conduct an energy audit to quantify costs and identify savings opportunities. Learn how to do an energy audit and build a business case for energy efficiency through the link below. | J97: http://www.bchydro.com/powersmart/business/business-energy-advisors.html?WT.mc_id=rd_bea | K97: =INDEX(Table1[Evaluator Question Set],MATCH(Sector,Table1[BC Hydro Sector Allocation],0))=Table3[[#This Row],[Question set]] ->  | L97: =IF(Table3[[#This Row],[Selected]],INDIRECT("'"&INDEX(Table5[SheetName],MATCH(Table3[[#This Row],[Diagnostic Heading]],Table5[Diagnostic Heading],0))&"'"&"!C"&11+Table3[[#This Row],[Q]]),"") ->  | M97: =IFERROR(AND(Table3[[#This Row],[BCH Funded]]="Yes",Table3[[#This Row],[Answer]]="No"),"") ->  | N97: =IFERROR(AND(Table3[[#This Row],[BCH Funded]]="no",Table3[[#This Row],[Answer]]="No"),"") ->  | O97: =IFERROR(IF(Table3[[#This Row],[Answer]]="No",INDEX(Table10[],MATCH(INDEX(Table8[CPR Type],MATCH(Table3[[#This Row],[Report Heading]],Table8[Report Heading],0)),Table10[Segment],0),MATCH(Table3[[#This Row],[Question set]],Table10[#Headers],0)),0),0.01/COUNTIFS(Table3[Question set],INDEX(Table1[Evaluator Question Set],MATCH(Sector,Table1[BC Hydro Sector Allocation],0)),Table3[Diagnostic Heading],Table3[[#This Row],[Diagnostic Heading]],Table3[Selected],TRUE)) ->  | P97: 1 | Q97: 1 | R97: =Table3[[#This Row],[a]]*Table3[[#This Row],[b]]*Table3[[#This Row],[c]] ->  | S97: =Table3[[#This Row],[ES Percent]]*AnnEgyCons ->  | T97: TRUE
A98: =INDEX(Table7[Q],MATCH(Table3[[#This Row],[Question set]],Table7[Question Set],0))&"."&INDEX(Table5[S],MATCH(Table3[[#This Row],[Diagnostic Heading]],Table5[Diagnostic Heading],0))&"."&Table3[[#This Row],[Q]] -> 4.6.5 | B98: Hospitality | C98: Management Practice | D98: 5 | E98: Purchasing | F98: no | H98: We use energy efficient guidelines and product catalogues when buying equipment or specify standards in our procurement process. | I98: Use Power Smart buying guides and product catalogues when buying equipment or specify energy efficiency standards in your procurement process. Visit the link below for BC Hydro Power Smart buying guides. | J98: https://www.bchydro.com/powersmart/business/technologies-equipment.html https://www.energystar.gov/products?s=mega | K98: =INDEX(Table1[Evaluator Question Set],MATCH(Sector,Table1[BC Hydro Sector Allocation],0))=Table3[[#This Row],[Question set]] ->  | L98: =IF(Table3[[#This Row],[Selected]],INDIRECT("'"&INDEX(Table5[SheetName],MATCH(Table3[[#This Row],[Diagnostic Heading]],Table5[Diagnostic Heading],0))&"'"&"!C"&11+Table3[[#This Row],[Q]]),"") ->  | M98: =IFERROR(AND(Table3[[#This Row],[BCH Funded]]="Yes",Table3[[#This Row],[Answer]]="No"),"") ->  | N98: =IFERROR(AND(Table3[[#This Row],[BCH Funded]]="no",Table3[[#This Row],[Answer]]="No"),"") ->  | O98: =IFERROR(IF(Table3[[#This Row],[Answer]]="No",INDEX(Table10[],MATCH(INDEX(Table8[CPR Type],MATCH(Table3[[#This Row],[Report Heading]],Table8[Report Heading],0)),Table10[Segment],0),MATCH(Table3[[#This Row],[Question set]],Table10[#Headers],0)),0),0.01/COUNTIFS(Table3[Question set],INDEX(Table1[Evaluator Question Set],MATCH(Sector,Table1[BC Hydro Sector Allocation],0)),Table3[Diagnostic Heading],Table3[[#This Row],[Diagnostic Heading]],Table3[Selected],TRUE)) ->  | P98: 1 | Q98: 1 | R98: =Table3[[#This Row],[a]]*Table3[[#This Row],[b]]*Table3[[#This Row],[c]] ->  | S98: =Table3[[#This Row],[ES Percent]]*AnnEgyCons ->  | T98: TRUE
A99: =INDEX(Table7[Q],MATCH(Table3[[#This Row],[Question set]],Table7[Question Set],0))&"."&INDEX(Table5[S],MATCH(Table3[[#This Row],[Diagnostic Heading]],Table5[Diagnostic Heading],0))&"."&Table3[[#This Row],[Q]] -> 5.1.1 | B99: Retail (food) | C99: Lighting | D99: 1 | E99: LED Lighting | F99: yes | G99: Average incentive of 50% of product cost | H99: We have upgraded our incandescent lighting to energy efficient LED lamps. | I99: BC Hydro funding is available. Assess the cost effectiveness of upgrading your incandescent lighting to energy efficient LEDs. LEDs use at least 75% less energy than a standard incandescent and last about 15 to 20 times longer than incandescent lighting, and about three times longer than CFLs. Learn more about LEDs by clicking the link below. | J99: http://www.bchydro.com/news/conservation/2014/led-lighting-increasingly-popular.html | K99: =INDEX(Table1[Evaluator Question Set],MATCH(Sector,Table1[BC Hydro Sector Allocation],0))=Table3[[#This Row],[Question set]] ->  | L99: =IF(Table3[[#This Row],[Selected]],INDIRECT("'"&INDEX(Table5[SheetName],MATCH(Table3[[#This Row],[Diagnostic Heading]],Table5[Diagnostic Heading],0))&"'"&"!C"&11+Table3[[#This Row],[Q]]),"") ->  | M99: =IFERROR(AND(Table3[[#This Row],[BCH Funded]]="Yes",Table3[[#This Row],[Answer]]="No"),"") ->  | N99: =IFERROR(AND(Table3[[#This Row],[BCH Funded]]="no",Table3[[#This Row],[Answer]]="No"),"") ->  | O99: =IFERROR(IF(Table3[[#This Row],[Answer]]="No",INDEX(Table10[],MATCH(INDEX(Table8[CPR Type],MATCH(Table3[[#This Row],[Report Heading]],Table8[Report Heading],0)),Table10[Segment],0),MATCH(Table3[[#This Row],[Question set]],Table10[#Headers],0)),0),0.01/COUNTIFS(Table3[Question set],INDEX(Table1[Evaluator Question Set],MATCH(Sector,Table1[BC Hydro Sector Allocation],0)),Table3[Diagnostic Heading],Table3[[#This Row],[Diagnostic Heading]],Table3[Selected],TRUE)) ->  | P99: 0.1 | Q99: 0.75 | R99: =Table3[[#This Row],[a]]*Table3[[#This Row],[b]]*Table3[[#This Row],[c]] ->  | S99: =Table3[[#This Row],[ES Percent]]*AnnEgyCons ->  | T99: TRUE | U99: Cristian Suvagau
A100: =INDEX(Table7[Q],MATCH(Table3[[#This Row],[Question set]],Table7[Question Set],0))&"."&INDEX(Table5[S],MATCH(Table3[[#This Row],[Diagnostic Heading]],Table5[Diagnostic Heading],0))&"."&Table3[[#This Row],[Q]] -> 5.1.2 | B100: Retail (food) | C100: Lighting | D100: 2 | E100: Fluorescent lighting | F100: yes | G100: Average incentive of 25% of project cost when upgrading to LED | H100: Our fluorescent lighting uses energy efficient T8 or T5 tubes. | I100: Consider upgrading your fluorescent lighting to energy efficient T8 lamps. If you currently have T12 lamps, upgrading to the latest T8 lamps and electronic ballasts could reduce your lighting costs by up to 40%. Also consider upgrading to LEDs to increase your savings by up to 60% and be eligible for BC Hydro incentives. | J100: https://www.bchydro.com/ecatalog/eCatServlet?cmd=all_psp_incentives&existId=&energyId=13&p=1&sb=3&dir=1&ip=50 | K100: =INDEX(Table1[Evaluator Question Set],MATCH(Sector,Table1[BC Hydro Sector Allocation],0))=Table3[[#This Row],[Question set]] ->  | L100: =IF(Table3[[#This Row],[Selected]],INDIRECT("'"&INDEX(Table5[SheetName],MATCH(Table3[[#This Row],[Diagnostic Heading]],Table5[Diagnostic Heading],0))&"'"&"!C"&11+Table3[[#This Row],[Q]]),"") ->  | M100: =IFERROR(AND(Table3[[#This Row],[BCH Funded]]="Yes",Table3[[#This Row],[Answer]]="No"),"") ->  | N100: =IFERROR(AND(Table3[[#This Row],[BCH Funded]]="no",Table3[[#This Row],[Answer]]="No"),"") ->  | O100: =IFERROR(IF(Table3[[#This Row],[Answer]]="No",INDEX(Table10[],MATCH(INDEX(Table8[CPR Type],MATCH(Table3[[#This Row],[Report Heading]],Table8[Report Heading],0)),Table10[Segment],0),MATCH(Table3[[#This Row],[Question set]],Table10[#Headers],0)),0),0.01/COUNTIFS(Table3[Question set],INDEX(Table1[Evaluator Question Set],MATCH(Sector,Table1[BC Hydro Sector Allocation],0)),Table3[Diagnostic Heading],Table3[[#This Row],[Diagnostic Heading]],Table3[Selected],TRUE)) ->  | P100: 0.9 | Q100: 0.3 | R100: =Table3[[#This Row],[a]]*Table3[[#This Row],[b]]*Table3[[#This Row],[c]] ->  | S100: =Table3[[#This Row],[ES Percent]]*AnnEgyCons ->  | T100: TRUE | U100: Cristian Suvagau
A101: =INDEX(Table7[Q],MATCH(Table3[[#This Row],[Question set]],Table7[Question Set],0))&"."&INDEX(Table5[S],MATCH(Table3[[#This Row],[Diagnostic Heading]],Table5[Diagnostic Heading],0))&"."&Table3[[#This Row],[Q]] -> 5.1.3 | B101: Retail (food) | C101: Lighting | D101: 3 | E101: LED Exit lighting | F101: No | H101: We have replaced incandescent exit signs with energy efficient LED exit signs. | I101: Did you know that exit signs are now legislated by the federal government? | J101: http://www.nrcan.gc.ca/energy/regulations-codes-standards/18419 | K101: =INDEX(Table1[Evaluator Question Set],MATCH(Sector,Table1[BC Hydro Sector Allocation],0))=Table3[[#This Row],[Question set]] ->  | L101: =IF(Table3[[#This Row],[Selected]],INDIRECT("'"&INDEX(Table5[SheetName],MATCH(Table3[[#This Row],[Diagnostic Heading]],Table5[Diagnostic Heading],0))&"'"&"!C"&11+Table3[[#This Row],[Q]]),"") ->  | M101: =IFERROR(AND(Table3[[#This Row],[BCH Funded]]="Yes",Table3[[#This Row],[Answer]]="No"),"") ->  | N101: =IFERROR(AND(Table3[[#This Row],[BCH Funded]]="no",Table3[[#This Row],[Answer]]="No"),"") ->  | O101: =IFERROR(IF(Table3[[#This Row],[Answer]]="No",INDEX(Table10[],MATCH(INDEX(Table8[CPR Type],MATCH(Table3[[#This Row],[Report Heading]],Table8[Report Heading],0)),Table10[Segment],0),MATCH(Table3[[#This Row],[Question set]],Table10[#Headers],0)),0),0.01/COUNTIFS(Table3[Question set],INDEX(Table1[Evaluator Question Set],MATCH(Sector,Table1[BC Hydro Sector Allocation],0)),Table3[Diagnostic Heading],Table3[[#This Row],[Diagnostic Heading]],Table3[Selected],TRUE)) ->  | P101: 0.02 | Q101: 0.9 | R101: =Table3[[#This Row],[a]]*Table3[[#This Row],[b]]*Table3[[#This Row],[c]] ->  | S101: =Table3[[#This Row],[ES Percent]]*AnnEgyCons ->  | T101: TRUE | U101: Cristian Suvagau
A102: =INDEX(Table7[Q],MATCH(Table3[[#This Row],[Question set]],Table7[Question Set],0))&"."&INDEX(Table5[S],MATCH(Table3[[#This Row],[Diagnostic Heading]],Table5[Diagnostic Heading],0))&"."&Table3[[#This Row],[Q]] -> 5.1.4 | B102: Retail (food) | C102: Lighting | D102: 4 | E102: Exterior Lighting | F102: yes | G102: Average incentive of 25% of project cost | H102: We have upgraded our exterior lighting to energy efficient lamps and fixtures that reduce glare, light pollution and lighting costs (e.g. in parking lots). | I102: Consider upgrading your exterior lighting (e.g. in parking lots) to T8 fluorescent or LED (incentives available for specific LED technologies). These will provide savings and you can get your return even quicker with incentives. | J102: https://www.bchydro.com/ecatalog/eCatServlet?cmd=all_psp_incentives&existId=&energyId=13&p=1&sb=3&dir=1&ip=50 | K102: =INDEX(Table1[Evaluator Question Set],MATCH(Sector,Table1[BC Hydro Sector Allocation],0))=Table3[[#This Row],[Question set]] ->  | L102: =IF(Table3[[#This Row],[Selected]],INDIRECT("'"&INDEX(Table5[SheetName],MATCH(Table3[[#This Row],[Diagnostic Heading]],Table5[Diagnostic Heading],0))&"'"&"!C"&11+Table3[[#This Row],[Q]]),"") ->  | M102: =IFERROR(AND(Table3[[#This Row],[BCH Funded]]="Yes",Table3[[#This Row],[Answer]]="No"),"") ->  | N102: =IFERROR(AND(Table3[[#This Row],[BCH Funded]]="no",Table3[[#This Row],[Answer]]="No"),"") ->  | O102: =IFERROR(IF(Table3[[#This Row],[Answer]]="No",INDEX(Table10[],MATCH(INDEX(Table8[CPR Type],MATCH(Table3[[#This Row],[Report Heading]],Table8[Report Heading],0)),Table10[Segment],0),MATCH(Table3[[#This Row],[Question set]],Table10[#Headers],0)),0),0.01/COUNTIFS(Table3[Question set],INDEX(Table1[Evaluator Question Set],MATCH(Sector,Table1[BC Hydro Sector Allocation],0)),Table3[Diagnostic Heading],Table3[[#This Row],[Diagnostic Heading]],Table3[Selected],TRUE)) ->  | P102: 1 | Q102: 0.5 | R102: =Table3[[#This Row],[a]]*Table3[[#This Row],[b]]*Table3[[#This Row],[c]] ->  | S102: =Table3[[#This Row],[ES Percent]]*AnnEgyCons ->  | T102: TRUE | U102: Cristian Suvagau
A103: =INDEX(Table7[Q],MATCH(Table3[[#This Row],[Question set]],Table7[Question Set],0))&"."&INDEX(Table5[S],MATCH(Table3[[#This Row],[Diagnostic Heading]],Table5[Diagnostic Heading],0))&"."&Table3[[#This Row],[Q]] -> 5.1.5 | B103: Retail (food) | C103: Lighting | D103: 5 | E103: Lighting control | F103: No | H103: We have installed controls on lighting to turn off when not required (e.g. timers or occupancy sensors in offices and meeting rooms, daylight harvesting in offices). | I103: Lighting controls can provide you with energy savings and better management of your lighting systems. Adding lighting controls may be eligible for additional incentive funding when completing a lighting retrofit as not all controls energy savings are recognized by BC Hydro. | J103: https://www.bchydro.com/ecatalog/eCatServlet?cmd=all_psp_incentives&existId=&energyId=14 | K103: =INDEX(Table1[Evaluator Question Set],MATCH(Sector,Table1[BC Hydro Sector Allocation],0))=Table3[[#This Row],[Question set]] ->  | L103: =IF(Table3[[#This Row],[Selected]],INDIRECT("'"&INDEX(Table5[SheetName],MATCH(Table3[[#This Row],[Diagnostic Heading]],Table5[Diagnostic Heading],0))&"'"&"!C"&11+Table3[[#This Row],[Q]]),"") ->  | M103: =IFERROR(AND(Table3[[#This Row],[BCH Funded]]="Yes",Table3[[#This Row],[Answer]]="No"),"") ->  | N103: =IFERROR(AND(Table3[[#This Row],[BCH Funded]]="no",Table3[[#This Row],[Answer]]="No"),"") ->  | O103: =IFERROR(IF(Table3[[#This Row],[Answer]]="No",INDEX(Table10[],MATCH(INDEX(Table8[CPR Type],MATCH(Table3[[#This Row],[Report Heading]],Table8[Report Heading],0)),Table10[Segment],0),MATCH(Table3[[#This Row],[Question set]],Table10[#Headers],0)),0),0.01/COUNTIFS(Table3[Question set],INDEX(Table1[Evaluator Question Set],MATCH(Sector,Table1[BC Hydro Sector Allocation],0)),Table3[Diagnostic Heading],Table3[[#This Row],[Diagnostic Heading]],Table3[Selected],TRUE)) ->  | P103: 0.2 | Q103: 0.3 | R103: =Table3[[#This Row],[a]]*Table3[[#This Row],[b]]*Table3[[#This Row],[c]] ->  | S103: =Table3[[#This Row],[ES Percent]]*AnnEgyCons ->  | T103: TRUE | U103: Cristian Suvagau
A104: =INDEX(Table7[Q],MATCH(Table3[[#This Row],[Question set]],Table7[Question Set],0))&"."&INDEX(Table5[S],MATCH(Table3[[#This Row],[Diagnostic Heading]],Table5[Diagnostic Heading],0))&"."&Table3[[#This Row],[Q]] -> 5.2.1 | B104: Retail (food) | C104: Heating, Ventilation, Air Conditioning / Refrigeration | D104: 1 | E104: Refrigeration | F104: no | H104: We have installed anti-sweat heater controls, or doors requiring low/no sweat heat on refrigerated display cases. | I104: Assess the cost effectiveness of installing anti-sweat heater controls, or doors requiring low/no sweat heat on refrigerated display cases. | J104: https://www.bchydro.com/ecatalog/eCatServlet?cmd=all_psp_incentives&existId=24&energyId=16 | K104: =INDEX(Table1[Evaluator Question Set],MATCH(Sector,Table1[BC Hydro Sector Allocation],0))=Table3[[#This Row],[Question set]] ->  | L104: =IF(Table3[[#This Row],[Selected]],INDIRECT("'"&INDEX(Table5[SheetName],MATCH(Table3[[#This Row],[Diagnostic Heading]],Table5[Diagnostic Heading],0))&"'"&"!C"&11+Table3[[#This Row],[Q]]),"") ->  | M104: =IFERROR(AND(Table3[[#This Row],[BCH Funded]]="Yes",Table3[[#This Row],[Answer]]="No"),"") ->  | N104: =IFERROR(AND(Table3[[#This Row],[BCH Funded]]="no",Table3[[#This Row],[Answer]]="No"),"") ->  | O104: =IFERROR(IF(Table3[[#This Row],[Answer]]="No",INDEX(Table10[],MATCH(INDEX(Table8[CPR Type],MATCH(Table3[[#This Row],[Report Heading]],Table8[Report Heading],0)),Table10[Segment],0),MATCH(Table3[[#This Row],[Question set]],Table10[#Headers],0)),0),0.01/COUNTIFS(Table3[Question set],INDEX(Table1[Evaluator Question Set],MATCH(Sector,Table1[BC Hydro Sector Allocation],0)),Table3[Diagnostic Heading],Table3[[#This Row],[Diagnostic Heading]],Table3[Selected],TRUE)) ->  | P104: 1 | Q104: 0.24 | R104: =Table3[[#This Row],[a]]*Table3[[#This Row],[b]]*Table3[[#This Row],[c]] ->  | S104: =Table3[[#This Row],[ES Percent]]*AnnEgyCons ->  | T104: TRUE | U104: https://www.bchydro.com/powersmart/business/technologies-equipment.html
A105: =INDEX(Table7[Q],MATCH(Table3[[#This Row],[Question set]],Table7[Question Set],0))&"."&INDEX(Table5[S],MATCH(Table3[[#This Row],[Diagnostic Heading]],Table5[Diagnostic Heading],0))&"."&Table3[[#This Row],[Q]] -> 5.2.2 | B105: Retail (food) | C105: Heating, Ventilation, Air Conditioning / Refrigeration | D105: 2 | E105: Refrigeration | F105: no | H105: Our cool room/freezer is insulated and includes a strip curtain and/or auto-closing door. | I105: Dollars are leaking out! Add strip curtains to walk-in coolers to reduce the amount of energy lost to the surrounding air. Strip curtains used in busy kitchens can cut your refrigeration costs significantly! As an added bonus, these curtains repel windborne contaminants like dust and pollutants. Auto closers will ensure coolers and freezers do not remain open. Learn more about strip curtains from the case study link below. | J105: https://www.bchydro.com/powersmart/business/success-stories/donalds-market-success.html | K105: =INDEX(Table1[Evaluator Question Set],MATCH(Sector,Table1[BC Hydro Sector Allocation],0))=Table3[[#This Row],[Question set]] ->  | L105: =IF(Table3[[#This Row],[Selected]],INDIRECT("'"&INDEX(Table5[SheetName],MATCH(Table3[[#This Row],[Diagnostic Heading]],Table5[Diagnostic Heading],0))&"'"&"!C"&11+Table3[[#This Row],[Q]]),"") ->  | M105: =IFERROR(AND(Table3[[#This Row],[BCH Funded]]="Yes",Table3[[#This Row],[Answer]]="No"),"") ->  | N105: =IFERROR(AND(Table3[[#This Row],[BCH Funded]]="no",Table3[[#This Row],[Answer]]="No"),"") ->  | O105: =IFERROR(IF(Table3[[#This Row],[Answer]]="No",INDEX(Table10[],MATCH(INDEX(Table8[CPR Type],MATCH(Table3[[#This Row],[Report Heading]],Table8[Report Heading],0)),Table10[Segment],0),MATCH(Table3[[#This Row],[Question set]],Table10[#Headers],0)),0),0.01/COUNTIFS(Table3[Question set],INDEX(Table1[Evaluator Question Set],MATCH(Sector,Table1[BC Hydro Sector Allocation],0)),Table3[Diagnostic Heading],Table3[[#This Row],[Diagnostic Heading]],Table3[Selected],TRUE)) ->  | P105: 1 | Q105: 0.3 | R105: =Table3[[#This Row],[a]]*Table3[[#This Row],[b]]*Table3[[#This Row],[c]] ->  | S105: =Table3[[#This Row],[ES Percent]]*AnnEgyCons ->  | T105: TRUE | U105: Past commercial incentives
A106: =INDEX(Table7[Q],MATCH(Table3[[#This Row],[Question set]],Table7[Question Set],0))&"."&INDEX(Table5[S],MATCH(Table3[[#This Row],[Diagnostic Heading]],Table5[Diagnostic Heading],0))&"."&Table3[[#This Row],[Q]] -> 5.2.3 | B106: Retail (food) | C106: Heating, Ventilation, Air Conditioning / Refrigeration | D106: 3 | E106: Air tightness | F106: no | H106: We have examined ways to improve the air-tightness of air-conditioned and refrigerated spaces (e.g. maintaining door gaskets, closing doors, installing air curtains). | I106: Regular maintenance of your door gaskets in coolers is important. Look at the door gaskets on all of your refrigerators and replace any that are torn, cracked or missing. A refrigerator must seal completely to be effective- and remember, you’re not trying to keep the cold air in, you’re trying to keep the hot, humid kitchen air out! | J106: http://www.energycodes.gov/sites/default/files/documents/BECP_Buidling%20Energy%20Code%20Resource%20Guide%20Air%20Leakage%20Guide_Sept2011_v00_lores.pdf | K106: =INDEX(Table1[Evaluator Question Set],MATCH(Sector,Table1[BC Hydro Sector Allocation],0))=Table3[[#This Row],[Question set]] ->  | L106: =IF(Table3[[#This Row],[Selected]],INDIRECT("'"&INDEX(Table5[SheetName],MATCH(Table3[[#This Row],[Diagnostic Heading]],Table5[Diagnostic Heading],0))&"'"&"!C"&11+Table3[[#This Row],[Q]]),"") ->  | M106: =IFERROR(AND(Table3[[#This Row],[BCH Funded]]="Yes",Table3[[#This Row],[Answer]]="No"),"") ->  | N106: =IFERROR(AND(Table3[[#This Row],[BCH Funded]]="no",Table3[[#This Row],[Answer]]="No"),"") ->  | O106: =IFERROR(IF(Table3[[#This Row],[Answer]]="No",INDEX(Table10[],MATCH(INDEX(Table8[CPR Type],MATCH(Table3[[#This Row],[Report Heading]],Table8[Report Heading],0)),Table10[Segment],0),MATCH(Table3[[#This Row],[Question set]],Table10[#Headers],0)),0),0.01/COUNTIFS(Table3[Question set],INDEX(Table1[Evaluator Question Set],MATCH(Sector,Table1[BC Hydro Sector Allocation],0)),Table3[Diagnostic Heading],Table3[[#This Row],[Diagnostic Heading]],Table3[Selected],TRUE)) ->  | P106: 1 | Q106: 0.02 | R106: =Table3[[#This Row],[a]]*Table3[[#This Row],[b]]*Table3[[#This Row],[c]] ->  | S106: =Table3[[#This Row],[ES Percent]]*AnnEgyCons ->  | T106: TRUE | U106: ASHRAE- Simulation of the Impact of Commercial Building Envelope Airtightness on Building Energy Utilization
A107: =INDEX(Table7[Q],MATCH(Table3[[#This Row],[Question set]],Table7[Question Set],0))&"."&INDEX(Table5[S],MATCH(Table3[[#This Row],[Diagnostic Heading]],Table5[Diagnostic Heading],0))&"."&Table3[[#This Row],[Q]] -> 5.2.4 | B107: Retail (food) | C107: Heating, Ventilation, Air Conditioning / Refrigeration | D107: 4 | E107: Heating / cooling controls | F107: yes | G107: Average incentive of 20% of project cost | H107: We have upgraded our heating, ventilation & air conditioning system to include variable frequency drives on fans and pumps and/or variable speed ECM pumps. | I107: BC Hydro funding is available. Consider upgrading your heating, ventilation & air conditioning system to include variable frequency drives on fans and pumps and/or variable speed ECM pumps. | J107: https://www.bchydro.com/ecatalog/ | K107: =INDEX(Table1[Evaluator Question Set],MATCH(Sector,Table1[BC Hydro Sector Allocation],0))=Table3[[#This Row],[Question set]] ->  | L107: =IF(Table3[[#This Row],[Selected]],INDIRECT("'"&INDEX(Table5[SheetName],MATCH(Table3[[#This Row],[Diagnostic Heading]],Table5[Diagnostic Heading],0))&"'"&"!C"&11+Table3[[#This Row],[Q]]),"") ->  | M107: =IFERROR(AND(Table3[[#This Row],[BCH Funded]]="Yes",Table3[[#This Row],[Answer]]="No"),"") ->  | N107: =IFERROR(AND(Table3[[#This Row],[BCH Funded]]="no",Table3[[#This Row],[Answer]]="No"),"") ->  | O107: =IFERROR(IF(Table3[[#This Row],[Answer]]="No",INDEX(Table10[],MATCH(INDEX(Table8[CPR Type],MATCH(Table3[[#This Row],[Report Heading]],Table8[Report Heading],0)),Table10[Segment],0),MATCH(Table3[[#This Row],[Question set]],Table10[#Headers],0)),0),0.01/COUNTIFS(Table3[Question set],INDEX(Table1[Evaluator Question Set],MATCH(Sector,Table1[BC Hydro Sector Allocation],0)),Table3[Diagnostic Heading],Table3[[#This Row],[Diagnostic Heading]],Table3[Selected],TRUE)) ->  | P107: 1 | Q107: 0.2 | R107: =Table3[[#This Row],[a]]*Table3[[#This Row],[b]]*Table3[[#This Row],[c]] ->  | S107: =Table3[[#This Row],[ES Percent]]*AnnEgyCons ->  | T107: TRUE | U107: Past commercial incentives
A108: =INDEX(Table7[Q],MATCH(Table3[[#This Row],[Question set]],Table7[Question Set],0))&"."&INDEX(Table5[S],MATCH(Table3[[#This Row],[Diagnostic Heading]],Table5[Diagnostic Heading],0))&"."&Table3[[#This Row],[Q]] -> 5.2.5 | B108: Retail (food) | C108: Heating, Ventilation, Air Conditioning / Refrigeration | D108: 5 | E108: Heating and cooling temperature set points | F108: no | H108: We have adjusted temperature settings for heating and cooling to minimize energy use. | I108: Work with your staff to have them adjust temperature settings for heating and cooling to minimize energy use. Learn more about operating your refrigeration equipment efficiently through the link below. | J108: https://www.bchydro.com/powersmart/business/technologies-equipment/heating-cooling.html | K108: =INDEX(Table1[Evaluator Question Set],MATCH(Sector,Table1[BC Hydro Sector Allocation],0))=Table3[[#This Row],[Question set]] ->  | L108: =IF(Table3[[#This Row],[Selected]],INDIRECT("'"&INDEX(Table5[SheetName],MATCH(Table3[[#This Row],[Diagnostic Heading]],Table5[Diagnostic Heading],0))&"'"&"!C"&11+Table3[[#This Row],[Q]]),"") ->  | M108: =IFERROR(AND(Table3[[#This Row],[BCH Funded]]="Yes",Table3[[#This Row],[Answer]]="No"),"") ->  | N108: =IFERROR(AND(Table3[[#This Row],[BCH Funded]]="no",Table3[[#This Row],[Answer]]="No"),"") ->  | O108: =IFERROR(IF(Table3[[#This Row],[Answer]]="No",INDEX(Table10[],MATCH(INDEX(Table8[CPR Type],MATCH(Table3[[#This Row],[Report Heading]],Table8[Report Heading],0)),Table10[Segment],0),MATCH(Table3[[#This Row],[Question set]],Table10[#Headers],0)),0),0.01/COUNTIFS(Table3[Question set],INDEX(Table1[Evaluator Question Set],MATCH(Sector,Table1[BC Hydro Sector Allocation],0)),Table3[Diagnostic Heading],Table3[[#This Row],[Diagnostic Heading]],Table3[Selected],TRUE)) ->  | P108: 1 | Q108: 0.05 | R108: =Table3[[#This Row],[a]]*Table3[[#This Row],[b]]*Table3[[#This Row],[c]] ->  | S108: =Table3[[#This Row],[ES Percent]]*AnnEgyCons ->  | T108: TRUE | U108: Past commercial incentives
A109: =INDEX(Table7[Q],MATCH(Table3[[#This Row],[Question set]],Table7[Question Set],0))&"."&INDEX(Table5[S],MATCH(Table3[[#This Row],[Diagnostic Heading]],Table5[Diagnostic Heading],0))&"."&Table3[[#This Row],[Q]] -> 5.4.1 | B109: Retail (food) | C109: Energy Efficient Equipment | D109: 1 | E109: Dishwasher | F109: no | H109: We have upgraded our commercial dishwasher to an Energy Star® model to reduce our energy and water costs. | I109: Calculate the cost and savings from upgrading your commercial dishwasher to an Energy Star® model to reduce your energy and water costs. | J109: https://www.energystar.gov/products/commercial_food_service_equipment/commercial_dishwashers | K109: =INDEX(Table1[Evaluator Question Set],MATCH(Sector,Table1[BC Hydro Sector Allocation],0))=Table3[[#This Row],[Question set]] ->  | L109: =IF(Table3[[#This Row],[Selected]],INDIRECT("'"&INDEX(Table5[SheetName],MATCH(Table3[[#This Row],[Diagnostic Heading]],Table5[Diagnostic Heading],0))&"'"&"!C"&11+Table3[[#This Row],[Q]]),"") ->  | M109: =IFERROR(AND(Table3[[#This Row],[BCH Funded]]="Yes",Table3[[#This Row],[Answer]]="No"),"") ->  | N109: =IFERROR(AND(Table3[[#This Row],[BCH Funded]]="no",Table3[[#This Row],[Answer]]="No"),"") ->  | O109: =IFERROR(IF(Table3[[#This Row],[Answer]]="No",INDEX(Table10[],MATCH(INDEX(Table8[CPR Type],MATCH(Table3[[#This Row],[Report Heading]],Table8[Report Heading],0)),Table10[Segment],0),MATCH(Table3[[#This Row],[Question set]],Table10[#Headers],0)),0),0.01/COUNTIFS(Table3[Question set],INDEX(Table1[Evaluator Question Set],MATCH(Sector,Table1[BC Hydro Sector Allocation],0)),Table3[Diagnostic Heading],Table3[[#This Row],[Diagnostic Heading]],Table3[Selected],TRUE)) ->  | P109: 1 | Q109: 0.25 | R109: =Table3[[#This Row],[a]]*Table3[[#This Row],[b]]*Table3[[#This Row],[c]] ->  | S109: =Table3[[#This Row],[ES Percent]]*AnnEgyCons ->  | T109: TRUE | U109: http://www.nrcan.gc.ca/sites/www.nrcan.gc.ca/files/energy/pdf/energystar/Commercial-Kitchen-Guide_E_acc.pdf
A110: =INDEX(Table7[Q],MATCH(Table3[[#This Row],[Question set]],Table7[Question Set],0))&"."&INDEX(Table5[S],MATCH(Table3[[#This Row],[Diagnostic Heading]],Table5[Diagnostic Heading],0))&"."&Table3[[#This Row],[Q]] -> 5.4.2 | B110: Retail (food) | C110: Energy Efficient Equipment | D110: 2 | E110: Ovens and griddles | F110: no | H110: We have assessed the cost effectiveness of upgrading convection ovens and electric griddles to Energy Star® models to reduce our energy costs. | I110: Assess the cost effectiveness of upgrading your convection ovens and electric griddles to Energy Star® models to reduce your energy costs. | J110: https://www.energystar.gov/index.cfm?c=archives.comm_griddles | K110: =INDEX(Table1[Evaluator Question Set],MATCH(Sector,Table1[BC Hydro Sector Allocation],0))=Table3[[#This Row],[Question set]] ->  | L110: =IF(Table3[[#This Row],[Selected]],INDIRECT("'"&INDEX(Table5[SheetName],MATCH(Table3[[#This Row],[Diagnostic Heading]],Table5[Diagnostic Heading],0))&"'"&"!C"&11+Table3[[#This Row],[Q]]),"") ->  | M110: =IFERROR(AND(Table3[[#This Row],[BCH Funded]]="Yes",Table3[[#This Row],[Answer]]="No"),"") ->  | N110: =IFERROR(AND(Table3[[#This Row],[BCH Funded]]="no",Table3[[#This Row],[Answer]]="No"),"") ->  | O110: =IFERROR(IF(Table3[[#This Row],[Answer]]="No",INDEX(Table10[],MATCH(INDEX(Table8[CPR Type],MATCH(Table3[[#This Row],[Report Heading]],Table8[Report Heading],0)),Table10[Segment],0),MATCH(Table3[[#This Row],[Question set]],Table10[#Headers],0)),0),0.01/COUNTIFS(Table3[Question set],INDEX(Table1[Evaluator Question Set],MATCH(Sector,Table1[BC Hydro Sector Allocation],0)),Table3[Diagnostic Heading],Table3[[#This Row],[Diagnostic Heading]],Table3[Selected],TRUE)) ->  | P110: 1 | Q110: 0.15 | R110: =Table3[[#This Row],[a]]*Table3[[#This Row],[b]]*Table3[[#This Row],[c]] ->  | S110: =Table3[[#This Row],[ES Percent]]*AnnEgyCons ->  | T110: TRUE | U110: http://www.nrcan.gc.ca/sites/www.nrcan.gc.ca/files/energy/pdf/energystar/Commercial-Kitchen-Guide_E_acc.pdf
A111: =INDEX(Table7[Q],MATCH(Table3[[#This Row],[Question set]],Table7[Question Set],0))&"."&INDEX(Table5[S],MATCH(Table3[[#This Row],[Diagnostic Heading]],Table5[Diagnostic Heading],0))&"."&Table3[[#This Row],[Q]] -> 5.4.3 | B111: Retail (food) | C111: Energy Efficient Equipment | D111: 3 | E111: Kitchen exhaust | F111: no | H111: We have added demand ventilation controls to our kitchen exhaust hood (i.e. added variable speed drives to our make-up unit and exhaust fan). | I111: Calculate the cost and savings of adding demand ventilation controls to your kitchen exhaust hood (i.e. adding variable speed drives to your make-up unit and exhaust fan). | J111: https://www.nrcan.gc.ca/sites/www.nrcan.gc.ca/files/energy/pdf/energystar/Commercial-Kitchen-Guide_E_acc.pdf | K111: =INDEX(Table1[Evaluator Question Set],MATCH(Sector,Table1[BC Hydro Sector Allocation],0))=Table3[[#This Row],[Question set]] ->  | L111: =IF(Table3[[#This Row],[Selected]],INDIRECT("'"&INDEX(Table5[SheetName],MATCH(Table3[[#This Row],[Diagnostic Heading]],Table5[Diagnostic Heading],0))&"'"&"!C"&11+Table3[[#This Row],[Q]]),"") ->  | M111: =IFERROR(AND(Table3[[#This Row],[BCH Funded]]="Yes",Table3[[#This Row],[Answer]]="No"),"") ->  | N111: =IFERROR(AND(Table3[[#This Row],[BCH Funded]]="no",Table3[[#This Row],[Answer]]="No"),"") ->  | O111: =IFERROR(IF(Table3[[#This Row],[Answer]]="No",INDEX(Table10[],MATCH(INDEX(Table8[CPR Type],MATCH(Table3[[#This Row],[Report Heading]],Table8[Report Heading],0)),Table10[Segment],0),MATCH(Table3[[#This Row],[Question set]],Table10[#Headers],0)),0),0.01/COUNTIFS(Table3[Question set],INDEX(Table1[Evaluator Question Set],MATCH(Sector,Table1[BC Hydro Sector Allocation],0)),Table3[Diagnostic Heading],Table3[[#This Row],[Diagnostic Heading]],Table3[Selected],TRUE)) ->  | P111: 1 | Q111: 0.2 | R111: =Table3[[#This Row],[a]]*Table3[[#This Row],[b]]*Table3[[#This Row],[c]] ->  | S111: =Table3[[#This Row],[ES Percent]]*AnnEgyCons ->  | T111: TRUE | U111: Past commercial incentives
A112: =INDEX(Table7[Q],MATCH(Table3[[#This Row],[Question set]],Table7[Question Set],0))&"."&INDEX(Table5[S],MATCH(Table3[[#This Row],[Diagnostic Heading]],Table5[Diagnostic Heading],0))&"."&Table3[[#This Row],[Q]] -> 5.4.4 | B112: Retail (food) | C112: Energy Efficient Equipment | D112: 4 | E112: Steamers & hot food holding cabinets | F112: no | H112: We have upgraded our convection steamers to electric pressureless Energy Star® models to reduce our energy costs. We have replaced our hot food holding cabinets with Energy Star® models to reduce our energy costs. | I112: Determine the costs and potential savings of replacing your convection steamers with electric pressureless Energy Star® models and your hot food cabinets with Energy Star® models to reduce your energy costs. | J112: https://www.energystar.gov/products/commercial_food_service_equipment/commercial_steam_cookers | K112: =INDEX(Table1[Evaluator Question Set],MATCH(Sector,Table1[BC Hydro Sector Allocation],0))=Table3[[#This Row],[Question set]] ->  | L112: =IF(Table3[[#This Row],[Selected]],INDIRECT("'"&INDEX(Table5[SheetName],MATCH(Table3[[#This Row],[Diagnostic Heading]],Table5[Diagnostic Heading],0))&"'"&"!C"&11+Table3[[#This Row],[Q]]),"") ->  | M112: =IFERROR(AND(Table3[[#This Row],[BCH Funded]]="Yes",Table3[[#This Row],[Answer]]="No"),"") ->  | N112: =IFERROR(AND(Table3[[#This Row],[BCH Funded]]="no",Table3[[#This Row],[Answer]]="No"),"") ->  | O112: =IFERROR(IF(Table3[[#This Row],[Answer]]="No",INDEX(Table10[],MATCH(INDEX(Table8[CPR Type],MATCH(Table3[[#This Row],[Report Heading]],Table8[Report Heading],0)),Table10[Segment],0),MATCH(Table3[[#This Row],[Question set]],Table10[#Headers],0)),0),0.01/COUNTIFS(Table3[Question set],INDEX(Table1[Evaluator Question Set],MATCH(Sector,Table1[BC Hydro Sector Allocation],0)),Table3[Diagnostic Heading],Table3[[#This Row],[Diagnostic Heading]],Table3[Selected],TRUE)) ->  | P112: 1 | Q112: 0.5 | R112: =Table3[[#This Row],[a]]*Table3[[#This Row],[b]]*Table3[[#This Row],[c]] ->  | S112: =Table3[[#This Row],[ES Percent]]*AnnEgyCons ->  | T112: TRUE | U112: http://www.nrcan.gc.ca/sites/www.nrcan.gc.ca/files/energy/pdf/energystar/Commercial-Kitchen-Guide_E_acc.pdf
A113: =INDEX(Table7[Q],MATCH(Table3[[#This Row],[Question set]],Table7[Question Set],0))&"."&INDEX(Table5[S],MATCH(Table3[[#This Row],[Diagnostic Heading]],Table5[Diagnostic Heading],0))&"."&Table3[[#This Row],[Q]] -> 5.4.5 | B113: Retail (food) | C113: Energy Efficient Equipment | D113: 5 | E113: Refrigeration Equipment | F113: no | H113: When upgrading refrigeration equipment and appliances we look for models with the Energy Star® label. Energy Star® indicates energy efficient equipment. | I113: Ensure you look for the Energy Star® label when upgrading refrigeration equipment and appliances. Energy Star® indicates energy efficient equipment. Learn more about Energy Star® refrigeration equipment through the link below. | J113: http://www.energystar.gov/products/certified-products/detail/commercial-refrigerators-freezers | K113: =INDEX(Table1[Evaluator Question Set],MATCH(Sector,Table1[BC Hydro Sector Allocation],0))=Table3[[#This Row],[Question set]] ->  | L113: =IF(Table3[[#This Row],[Selected]],INDIRECT("'"&INDEX(Table5[SheetName],MATCH(Table3[[#This Row],[Diagnostic Heading]],Table5[Diagnostic Heading],0))&"'"&"!C"&11+Table3[[#This Row],[Q]]),"") ->  | M113: =IFERROR(AND(Table3[[#This Row],[BCH Funded]]="Yes",Table3[[#This Row],[Answer]]="No"),"") ->  | N113: =IFERROR(AND(Table3[[#This Row],[BCH Funded]]="no",Table3[[#This Row],[Answer]]="No"),"") ->  | O113: =IFERROR(IF(Table3[[#This Row],[Answer]]="No",INDEX(Table10[],MATCH(INDEX(Table8[CPR Type],MATCH(Table3[[#This Row],[Report Heading]],Table8[Report Heading],0)),Table10[Segment],0),MATCH(Table3[[#This Row],[Question set]],Table10[#Headers],0)),0),0.01/COUNTIFS(Table3[Question set],INDEX(Table1[Evaluator Question Set],MATCH(Sector,Table1[BC Hydro Sector Allocation],0)),Table3[Diagnostic Heading],Table3[[#This Row],[Diagnostic Heading]],Table3[Selected],TRUE)) ->  | P113: 1 | Q113: 0.35 | R113: =Table3[[#This Row],[a]]*Table3[[#This Row],[b]]*Table3[[#This Row],[c]] ->  | S113: =Table3[[#This Row],[ES Percent]]*AnnEgyCons ->  | T113: TRUE | U113: http://www.nrcan.gc.ca/sites/www.nrcan.gc.ca/files/energy/pdf/energystar/Commercial-Kitchen-Guide_E_acc.pdf
A114: =INDEX(Table7[Q],MATCH(Table3[[#This Row],[Question set]],Table7[Question Set],0))&"."&INDEX(Table5[S],MATCH(Table3[[#This Row],[Diagnostic Heading]],Table5[Diagnostic Heading],0))&"."&Table3[[#This Row],[Q]] -> 5.5.1 | B114: Retail (food) | C114: Operating and Maintenance Practices | D114: 1 | E114: Hot water control | F114: no | H114: We have explored how to reduce hot water temperature while still maintaining required conditions. | I114: Look into the possibility of reducing your hot water temperature while still maintaining required sanitary conditions. You'll be surprised at what can be saved through reducing hot water temperature without degrading the use. Learn more about water heating and usage through the link below. | J114: https://www.bchydro.com/powersmart/business/technologies-equipment/heating-cooling.html | K114: =INDEX(Table1[Evaluator Question Set],MATCH(Sector,Table1[BC Hydro Sector Allocation],0))=Table3[[#This Row],[Question set]] ->  | L114: =IF(Table3[[#This Row],[Selected]],INDIRECT("'"&INDEX(Table5[SheetName],MATCH(Table3[[#This Row],[Diagnostic Heading]],Table5[Diagnostic Heading],0))&"'"&"!C"&11+Table3[[#This Row],[Q]]),"") ->  | M114: =IFERROR(AND(Table3[[#This Row],[BCH Funded]]="Yes",Table3[[#This Row],[Answer]]="No"),"") ->  | N114: =IFERROR(AND(Table3[[#This Row],[BCH Funded]]="no",Table3[[#This Row],[Answer]]="No"),"") ->  | O114: =IFERROR(IF(Table3[[#This Row],[Answer]]="No",INDEX(Table10[],MATCH(INDEX(Table8[CPR Type],MATCH(Table3[[#This Row],[Report Heading]],Table8[Report Heading],0)),Table10[Segment],0),MATCH(Table3[[#This Row],[Question set]],Table10[#Headers],0)),0),0.01/COUNTIFS(Table3[Question set],INDEX(Table1[Evaluator Question Set],MATCH(Sector,Table1[BC Hydro Sector Allocation],0)),Table3[Diagnostic Heading],Table3[[#This Row],[Diagnostic Heading]],Table3[Selected],TRUE)) ->  | P114: 1 | Q114: 1 | R114: =Table3[[#This Row],[a]]*Table3[[#This Row],[b]]*Table3[[#This Row],[c]] ->  | S114: =Table3[[#This Row],[ES Percent]]*AnnEgyCons ->  | T114: TRUE
A115: =INDEX(Table7[Q],MATCH(Table3[[#This Row],[Question set]],Table7[Question Set],0))&"."&INDEX(Table5[S],MATCH(Table3[[#This Row],[Diagnostic Heading]],Table5[Diagnostic Heading],0))&"."&Table3[[#This Row],[Q]] -> 5.5.2 | B115: Retail (food) | C115: Operating and Maintenance Practices | D115: 2 | E115: Staff operating procedures | F115: no | H115: Our staff turns off equipment when not needed (e.g., turns off lights and equipment when not in use, after hours and on weekends). | I115: The most important tip for your business is “turn it off!!”. Introduce procedures to encourage staff to turn off equipment when not needed (e.g. turn off lights and office equipment when not in use, after hours and on weekends). Find more tips and information about how and when to turn off equipment through the link below. | J115: https://www.bchydro.com/powersmart/business/technologies-equipment/lighting-systems.html#1 | K115: =INDEX(Table1[Evaluator Question Set],MATCH(Sector,Table1[BC Hydro Sector Allocation],0))=Table3[[#This Row],[Question set]] ->  | L115: =IF(Table3[[#This Row],[Selected]],INDIRECT("'"&INDEX(Table5[SheetName],MATCH(Table3[[#This Row],[Diagnostic Heading]],Table5[Diagnostic Heading],0))&"'"&"!C"&11+Table3[[#This Row],[Q]]),"") ->  | M115: =IFERROR(AND(Table3[[#This Row],[BCH Funded]]="Yes",Table3[[#This Row],[Answer]]="No"),"") ->  | N115: =IFERROR(AND(Table3[[#This Row],[BCH Funded]]="no",Table3[[#This Row],[Answer]]="No"),"") ->  | O115: =IFERROR(IF(Table3[[#This Row],[Answer]]="No",INDEX(Table10[],MATCH(INDEX(Table8[CPR Type],MATCH(Table3[[#This Row],[Report Heading]],Table8[Report Heading],0)),Table10[Segment],0),MATCH(Table3[[#This Row],[Question set]],Table10[#Headers],0)),0),0.01/COUNTIFS(Table3[Question set],INDEX(Table1[Evaluator Question Set],MATCH(Sector,Table1[BC Hydro Sector Allocation],0)),Table3[Diagnostic Heading],Table3[[#This Row],[Diagnostic Heading]],Table3[Selected],TRUE)) ->  | P115: 1 | Q115: 1 | R115: =Table3[[#This Row],[a]]*Table3[[#This Row],[b]]*Table3[[#This Row],[c]] ->  | S115: =Table3[[#This Row],[ES Percent]]*AnnEgyCons ->  | T115: TRUE
A116: =INDEX(Table7[Q],MATCH(Table3[[#This Row],[Question set]],Table7[Question Set],0))&"."&INDEX(Table5[S],MATCH(Table3[[#This Row],[Diagnostic Heading]],Table5[Diagnostic Heading],0))&"."&Table3[[#This Row],[Q]] -> 5.5.3 | B116: Retail (food) | C116: Operating and Maintenance Practices | D116: 3 | E116: Maintenance practices | F116: no | H116: We conduct regular maintenance on our heating, ventilation & air conditioning system (e.g. cleaning condenser coils, changing filters, checking operation of economizer). | I116: Modify your maintenance procedures on your heating, ventilation & air conditioning system to include regular energy efficiency checks (e.g. cleaning condenser coils, changing filters, checking operation of economizers). Heating, ventilation and air conditioning systems are at their most efficient when they are well maintained. Learn more about maintenance procedures through the link below. | J116: https://www.bchydro.com/powersmart/business/technologies-equipment/heating-cooling.html#d | K116: =INDEX(Table1[Evaluator Question Set],MATCH(Sector,Table1[BC Hydro Sector Allocation],0))=Table3[[#This Row],[Question set]] ->  | L116: =IF(Table3[[#This Row],[Selected]],INDIRECT("'"&INDEX(Table5[SheetName],MATCH(Table3[[#This Row],[Diagnostic Heading]],Table5[Diagnostic Heading],0))&"'"&"!C"&11+Table3[[#This Row],[Q]]),"") ->  | M116: =IFERROR(AND(Table3[[#This Row],[BCH Funded]]="Yes",Table3[[#This Row],[Answer]]="No"),"") ->  | N116: =IFERROR(AND(Table3[[#This Row],[BCH Funded]]="no",Table3[[#This Row],[Answer]]="No"),"") ->  | O116: =IFERROR(IF(Table3[[#This Row],[Answer]]="No",INDEX(Table10[],MATCH(INDEX(Table8[CPR Type],MATCH(Table3[[#This Row],[Report Heading]],Table8[Report Heading],0)),Table10[Segment],0),MATCH(Table3[[#This Row],[Question set]],Table10[#Headers],0)),0),0.01/COUNTIFS(Table3[Question set],INDEX(Table1[Evaluator Question Set],MATCH(Sector,Table1[BC Hydro Sector Allocation],0)),Table3[Diagnostic Heading],Table3[[#This Row],[Diagnostic Heading]],Table3[Selected],TRUE)) ->  | P116: 1 | Q116: 1 | R116: =Table3[[#This Row],[a]]*Table3[[#This Row],[b]]*Table3[[#This Row],[c]] ->  | S116: =Table3[[#This Row],[ES Percent]]*AnnEgyCons ->  | T116: TRUE
A117: =INDEX(Table7[Q],MATCH(Table3[[#This Row],[Question set]],Table7[Question Set],0))&"."&INDEX(Table5[S],MATCH(Table3[[#This Row],[Diagnostic Heading]],Table5[Diagnostic Heading],0))&"."&Table3[[#This Row],[Q]] -> 5.5.4 | B117: Retail (food) | C117: Operating and Maintenance Practices | D117: 4 | E117: Energy saving tips | F117: no | H117: We have a list of energy saving tips for our type of business. | I117: Prepare a list of energy saving tips for your type of business. BC Hydro Power Smart has tips available. Find energy saving tips through the link below. | J117: https://www.bchydro.com/powersmart/business/technologies-equipment.html?WT.mc_id=rd_oldgreenyourbusiness | K117: =INDEX(Table1[Evaluator Question Set],MATCH(Sector,Table1[BC Hydro Sector Allocation],0))=Table3[[#This Row],[Question set]] ->  | L117: =IF(Table3[[#This Row],[Selected]],INDIRECT("'"&INDEX(Table5[SheetName],MATCH(Table3[[#This Row],[Diagnostic Heading]],Table5[Diagnostic Heading],0))&"'"&"!C"&11+Table3[[#This Row],[Q]]),"") ->  | M117: =IFERROR(AND(Table3[[#This Row],[BCH Funded]]="Yes",Table3[[#This Row],[Answer]]="No"),"") ->  | N117: =IFERROR(AND(Table3[[#This Row],[BCH Funded]]="no",Table3[[#This Row],[Answer]]="No"),"") ->  | O117: =IFERROR(IF(Table3[[#This Row],[Answer]]="No",INDEX(Table10[],MATCH(INDEX(Table8[CPR Type],MATCH(Table3[[#This Row],[Report Heading]],Table8[Report Heading],0)),Table10[Segment],0),MATCH(Table3[[#This Row],[Question set]],Table10[#Headers],0)),0),0.01/COUNTIFS(Table3[Question set],INDEX(Table1[Evaluator Question Set],MATCH(Sector,Table1[BC Hydro Sector Allocation],0)),Table3[Diagnostic Heading],Table3[[#This Row],[Diagnostic Heading]],Table3[Selected],TRUE)) ->  | P117: 1 | Q117: 1 | R117: =Table3[[#This Row],[a]]*Table3[[#This Row],[b]]*Table3[[#This Row],[c]] ->  | S117: =Table3[[#This Row],[ES Percent]]*AnnEgyCons ->  | T117: TRUE
A118: =INDEX(Table7[Q],MATCH(Table3[[#This Row],[Question set]],Table7[Question Set],0))&"."&INDEX(Table5[S],MATCH(Table3[[#This Row],[Diagnostic Heading]],Table5[Diagnostic Heading],0))&"."&Table3[[#This Row],[Q]] -> 5.5.5 | B118: Retail (food) | C118: Operating and Maintenance Practices | D118: 5 | E118: Staff Awareness | F118: no | H118: We have conducted energy conservation awareness activities (e.g. signage, newsletters, competitions). | I118: Conduct energy conservation awareness activities with your staff (e.g. signage, newsletters, competitions). Find tips and information on workplace conservation activities through the link below. | J118: https://www.bchydro.com/powersmart/business/programs/workplace-conservation.html?WT.mc_id=rd_oldworkplaceconservationawareness | K118: =INDEX(Table1[Evaluator Question Set],MATCH(Sector,Table1[BC Hydro Sector Allocation],0))=Table3[[#This Row],[Question set]] ->  | L118: =IF(Table3[[#This Row],[Selected]],INDIRECT("'"&INDEX(Table5[SheetName],MATCH(Table3[[#This Row],[Diagnostic Heading]],Table5[Diagnostic Heading],0))&"'"&"!C"&11+Table3[[#This Row],[Q]]),"") ->  | M118: =IFERROR(AND(Table3[[#This Row],[BCH Funded]]="Yes",Table3[[#This Row],[Answer]]="No"),"") ->  | N118: =IFERROR(AND(Table3[[#This Row],[BCH Funded]]="no",Table3[[#This Row],[Answer]]="No"),"") ->  | O118: =IFERROR(IF(Table3[[#This Row],[Answer]]="No",INDEX(Table10[],MATCH(INDEX(Table8[CPR Type],MATCH(Table3[[#This Row],[Report Heading]],Table8[Report Heading],0)),Table10[Segment],0),MATCH(Table3[[#This Row],[Question set]],Table10[#Headers],0)),0),0.01/COUNTIFS(Table3[Question set],INDEX(Table1[Evaluator Question Set],MATCH(Sector,Table1[BC Hydro Sector Allocation],0)),Table3[Diagnostic Heading],Table3[[#This Row],[Diagnostic Heading]],Table3[Selected],TRUE)) ->  | P118: 1 | Q118: 1 | R118: =Table3[[#This Row],[a]]*Table3[[#This Row],[b]]*Table3[[#This Row],[c]] ->  | S118: =Table3[[#This Row],[ES Percent]]*AnnEgyCons ->  | T118: TRUE
A119: =INDEX(Table7[Q],MATCH(Table3[[#This Row],[Question set]],Table7[Question Set],0))&"."&INDEX(Table5[S],MATCH(Table3[[#This Row],[Diagnostic Heading]],Table5[Diagnostic Heading],0))&"."&Table3[[#This Row],[Q]] -> 5.6.1 | B119: Retail (food) | C119: Management Practice | D119: 1 | E119: Effective management of energy data | F119: no | H119: We regularly go to bchydro.com and use MyHydro to track our energy usage. | I119: Develop a process for managing energy bills and metered energy use information centrally. For example in a spreadsheet, database, or other online tool for ready access. Sign up to see your BC Hydro account information online using the link below. | J119: https://www.bchydro.com/account/UI/Login?realm=bch-ps&goto=https%3A%2F%2Fwww.bchydro.com%3A443%2FBCHCustomerPortal%2Fweb%2Flogin.html | K119: =INDEX(Table1[Evaluator Question Set],MATCH(Sector,Table1[BC Hydro Sector Allocation],0))=Table3[[#This Row],[Question set]] ->  | L119: =IF(Table3[[#This Row],[Selected]],INDIRECT("'"&INDEX(Table5[SheetName],MATCH(Table3[[#This Row],[Diagnostic Heading]],Table5[Diagnostic Heading],0))&"'"&"!C"&11+Table3[[#This Row],[Q]]),"") ->  | M119: =IFERROR(AND(Table3[[#This Row],[BCH Funded]]="Yes",Table3[[#This Row],[Answer]]="No"),"") ->  | N119: =IFERROR(AND(Table3[[#This Row],[BCH Funded]]="no",Table3[[#This Row],[Answer]]="No"),"") ->  | O119: =IFERROR(IF(Table3[[#This Row],[Answer]]="No",INDEX(Table10[],MATCH(INDEX(Table8[CPR Type],MATCH(Table3[[#This Row],[Report Heading]],Table8[Report Heading],0)),Table10[Segment],0),MATCH(Table3[[#This Row],[Question set]],Table10[#Headers],0)),0),0.01/COUNTIFS(Table3[Question set],INDEX(Table1[Evaluator Question Set],MATCH(Sector,Table1[BC Hydro Sector Allocation],0)),Table3[Diagnostic Heading],Table3[[#This Row],[Diagnostic Heading]],Table3[Selected],TRUE)) ->  | P119: 1 | Q119: 1 | R119: =Table3[[#This Row],[a]]*Table3[[#This Row],[b]]*Table3[[#This Row],[c]] ->  | S119: =Table3[[#This Row],[ES Percent]]*AnnEgyCons ->  | T119: TRUE
A120: =INDEX(Table7[Q],MATCH(Table3[[#This Row],[Question set]],Table7[Question Set],0))&"."&INDEX(Table5[S],MATCH(Table3[[#This Row],[Diagnostic Heading]],Table5[Diagnostic Heading],0))&"."&Table3[[#This Row],[Q]] -> 5.6.2 | B120: Retail (food) | C120: Management Practice | D120: 2 | E120: Reporting systems for energy use | F120: no | H120: We periodically report energy use for our business to relevant staff. | I120: Establish a process to regularly report your energy efficiency to management and staff. Learn more about managing energy costs and consumption in your business through the link below. | J120: https://www.bchydro.com/powersmart/business/types-of-business-customers.html | K120: =INDEX(Table1[Evaluator Question Set],MATCH(Sector,Table1[BC Hydro Sector Allocation],0))=Table3[[#This Row],[Question set]] ->  | L120: =IF(Table3[[#This Row],[Selected]],INDIRECT("'"&INDEX(Table5[SheetName],MATCH(Table3[[#This Row],[Diagnostic Heading]],Table5[Diagnostic Heading],0))&"'"&"!C"&11+Table3[[#This Row],[Q]]),"") ->  | M120: =IFERROR(AND(Table3[[#This Row],[BCH Funded]]="Yes",Table3[[#This Row],[Answer]]="No"),"") ->  | N120: =IFERROR(AND(Table3[[#This Row],[BCH Funded]]="no",Table3[[#This Row],[Answer]]="No"),"") ->  | O120: =IFERROR(IF(Table3[[#This Row],[Answer]]="No",INDEX(Table10[],MATCH(INDEX(Table8[CPR Type],MATCH(Table3[[#This Row],[Report Heading]],Table8[Report Heading],0)),Table10[Segment],0),MATCH(Table3[[#This Row],[Question set]],Table10[#Headers],0)),0),0.01/COUNTIFS(Table3[Question set],INDEX(Table1[Evaluator Question Set],MATCH(Sector,Table1[BC Hydro Sector Allocation],0)),Table3[Diagnostic Heading],Table3[[#This Row],[Diagnostic Heading]],Table3[Selected],TRUE)) ->  | P120: 1 | Q120: 1 | R120: =Table3[[#This Row],[a]]*Table3[[#This Row],[b]]*Table3[[#This Row],[c]] ->  | S120: =Table3[[#This Row],[ES Percent]]*AnnEgyCons ->  | T120: TRUE
A121: =INDEX(Table7[Q],MATCH(Table3[[#This Row],[Question set]],Table7[Question Set],0))&"."&INDEX(Table5[S],MATCH(Table3[[#This Row],[Diagnostic Heading]],Table5[Diagnostic Heading],0))&"."&Table3[[#This Row],[Q]] -> 5.6.3 | B121: Retail (food) | C121: Management Practice | D121: 3 | E121: Targets and Planning | F121: no | H121: We have a target and action plan to reduce energy costs for the next year (e.g. kWh/sq. ft. by 10%). | I121: Create a realistic target and action plan to reduce energy costs for the next year (e.g. kWh/sq. ft. by 10%). Find out how to manage your energy costs and consumption in your business through the link below. | J121: https://www.bchydro.com/news/conservation/2014/myhydro-to-manage-energy-and-profitability.html | K121: =INDEX(Table1[Evaluator Question Set],MATCH(Sector,Table1[BC Hydro Sector Allocation],0))=Table3[[#This Row],[Question set]] ->  | L121: =IF(Table3[[#This Row],[Selected]],INDIRECT("'"&INDEX(Table5[SheetName],MATCH(Table3[[#This Row],[Diagnostic Heading]],Table5[Diagnostic Heading],0))&"'"&"!C"&11+Table3[[#This Row],[Q]]),"") ->  | M121: =IFERROR(AND(Table3[[#This Row],[BCH Funded]]="Yes",Table3[[#This Row],[Answer]]="No"),"") ->  | N121: =IFERROR(AND(Table3[[#This Row],[BCH Funded]]="no",Table3[[#This Row],[Answer]]="No"),"") ->  | O121: =IFERROR(IF(Table3[[#This Row],[Answer]]="No",INDEX(Table10[],MATCH(INDEX(Table8[CPR Type],MATCH(Table3[[#This Row],[Report Heading]],Table8[Report Heading],0)),Table10[Segment],0),MATCH(Table3[[#This Row],[Question set]],Table10[#Headers],0)),0),0.01/COUNTIFS(Table3[Question set],INDEX(Table1[Evaluator Question Set],MATCH(Sector,Table1[BC Hydro Sector Allocation],0)),Table3[Diagnostic Heading],Table3[[#This Row],[Diagnostic Heading]],Table3[Selected],TRUE)) ->  | P121: 1 | Q121: 1 | R121: =Table3[[#This Row],[a]]*Table3[[#This Row],[b]]*Table3[[#This Row],[c]] ->  | S121: =Table3[[#This Row],[ES Percent]]*AnnEgyCons ->  | T121: TRUE
A122: =INDEX(Table7[Q],MATCH(Table3[[#This Row],[Question set]],Table7[Question Set],0))&"."&INDEX(Table5[S],MATCH(Table3[[#This Row],[Diagnostic Heading]],Table5[Diagnostic Heading],0))&"."&Table3[[#This Row],[Q]] -> 5.6.4 | B122: Retail (food) | C122: Management Practice | D122: 4 | E122: Understanding of energy performance and opportunities | F122: no | H122: We have completed an energy audit, which has quantified costs and savings opportunities. | I122: Conduct an energy audit to quantify costs and identify savings opportunities. Learn how to do an energy audit and build a business case for energy efficiency through the link below. | J122: http://www.bchydro.com/powersmart/business/business-energy-advisors.html?WT.mc_id=rd_bea | K122: =INDEX(Table1[Evaluator Question Set],MATCH(Sector,Table1[BC Hydro Sector Allocation],0))=Table3[[#This Row],[Question set]] ->  | L122: =IF(Table3[[#This Row],[Selected]],INDIRECT("'"&INDEX(Table5[SheetName],MATCH(Table3[[#This Row],[Diagnostic Heading]],Table5[Diagnostic Heading],0))&"'"&"!C"&11+Table3[[#This Row],[Q]]),"") ->  | M122: =IFERROR(AND(Table3[[#This Row],[BCH Funded]]="Yes",Table3[[#This Row],[Answer]]="No"),"") ->  | N122: =IFERROR(AND(Table3[[#This Row],[BCH Funded]]="no",Table3[[#This Row],[Answer]]="No"),"") ->  | O122: =IFERROR(IF(Table3[[#This Row],[Answer]]="No",INDEX(Table10[],MATCH(INDEX(Table8[CPR Type],MATCH(Table3[[#This Row],[Report Heading]],Table8[Report Heading],0)),Table10[Segment],0),MATCH(Table3[[#This Row],[Question set]],Table10[#Headers],0)),0),0.01/COUNTIFS(Table3[Question set],INDEX(Table1[Evaluator Question Set],MATCH(Sector,Table1[BC Hydro Sector Allocation],0)),Table3[Diagnostic Heading],Table3[[#This Row],[Diagnostic Heading]],Table3[Selected],TRUE)) ->  | P122: 1 | Q122: 1 | R122: =Table3[[#This Row],[a]]*Table3[[#This Row],[b]]*Table3[[#This Row],[c]] ->  | S122: =Table3[[#This Row],[ES Percent]]*AnnEgyCons ->  | T122: TRUE
A123: =INDEX(Table7[Q],MATCH(Table3[[#This Row],[Question set]],Table7[Question Set],0))&"."&INDEX(Table5[S],MATCH(Table3[[#This Row],[Diagnostic Heading]],Table5[Diagnostic Heading],0))&"."&Table3[[#This Row],[Q]] -> 5.6.5 | B123: Retail (food) | C123: Management Practice | D123: 5 | E123: Purchasing | F123: no | H123: We use energy efficient guidelines and product catalogues when buying equipment or specify standards in our procurement process. | I123: Use Power Smart buying guides and product catalogues when buying equipment or specify energy efficiency standards in your procurement process. Visit the link below for BC Hydro Power Smart buying guides. | J123: https://www.bchydro.com/powersmart/business/technologies-equipment.html https://www.energystar.gov/products?s=mega | K123: =INDEX(Table1[Evaluator Question Set],MATCH(Sector,Table1[BC Hydro Sector Allocation],0))=Table3[[#This Row],[Question set]] ->  | L123: =IF(Table3[[#This Row],[Selected]],INDIRECT("'"&INDEX(Table5[SheetName],MATCH(Table3[[#This Row],[Diagnostic Heading]],Table5[Diagnostic Heading],0))&"'"&"!C"&11+Table3[[#This Row],[Q]]),"") ->  | M123: =IFERROR(AND(Table3[[#This Row],[BCH Funded]]="Yes",Table3[[#This Row],[Answer]]="No"),"") ->  | N123: =IFERROR(AND(Table3[[#This Row],[BCH Funded]]="no",Table3[[#This Row],[Answer]]="No"),"") ->  | O123: =IFERROR(IF(Table3[[#This Row],[Answer]]="No",INDEX(Table10[],MATCH(INDEX(Table8[CPR Type],MATCH(Table3[[#This Row],[Report Heading]],Table8[Report Heading],0)),Table10[Segment],0),MATCH(Table3[[#This Row],[Question set]],Table10[#Headers],0)),0),0.01/COUNTIFS(Table3[Question set],INDEX(Table1[Evaluator Question Set],MATCH(Sector,Table1[BC Hydro Sector Allocation],0)),Table3[Diagnostic Heading],Table3[[#This Row],[Diagnostic Heading]],Table3[Selected],TRUE)) ->  | P123: 1 | Q123: 1 | R123: =Table3[[#This Row],[a]]*Table3[[#This Row],[b]]*Table3[[#This Row],[c]] ->  | S123: =Table3[[#This Row],[ES Percent]]*AnnEgyCons ->  | T123: TRUE

Sheet Variables (hidden)
A1: BC Hydro Sector Allocation | B1: Evaluator Question Set | C1: Rebate | E1: Question Set | F1: Q | I1: S | J1: Diagnostic Heading | K1: SheetName | M1: # | N1: Report Heading | O1: BC Stat Type | P1: CPR Type | AM1: Diagnostic Heading | AN1: Factor | AO1: Description | AP1: Source | AS1: Barrier | AT1: Reason | AU1: B | AV1: R
A2: Advanced Education | B2: Education | C2: 3353 | E2: Education | F2: 1 | I2: 1 | J2: Lighting | K2: Lighting | N2: LED Exit lighting | O2: Lights | P2: Lighting | T2: Energy Use | U2: Education | V2: Retail (non-food) | W2: Retail (food) | X2: Office | Y2: Hospitality | AA2: Segment | AB2: Accommodation | AC2: Colleges/Universities | AD2: Food Service | AE2: Hospital | AF2: Logistics/Warehouses | AG2: Long Term Care | AH2: Office | AI2: Other Commercial | AJ2: Retail - Food | AK2: Retail - Non Food | AM2: Lighting | AN2: a | AO2: (%) Ltg usage in comm. Buildings | AP2: BC Energy Use Commercial Stats | AS2: Long payback | AT2: For the environment | AU2: =Barrier=Table6[[#This Row],[Barrier]] -> FALSE | AV2: =Reason=Table6[[#This Row],[Reason]] -> FALSE | BV2: Next Steps | CD2: The data and information provided in this report was compiled solely for BC Hydro purposes. BC Hydro expressly disclaims any warranties or representations, either expressed or implied, with respect to the accuracy, reliability, usefulness, completeness, non-infringement of intellectual property rights, or quality of data and information contained herein. BC Hydro, its employees, servants and agents do not accept any liability of any kind arising in any way out of the use of or reliance on this data and information by any person. Any person using or relying on this data and information does so at their own risk.
A3: Government | B3: Office | C3: 3840 | E3: Retail (non-food) | F3: 2 | I3: 2 | J3: Heating, Ventilation, Air Conditioning / Refrigeration | K3: HVAC and Refrigeration | N3: Lighting control | O3: Lights | P3: Lighting | T3: Cool | U3: 1.925 | V3: 4.885 | W3: 1.7 | X3: 10.605 | Y3: 4.96 | AA3: Cooking | AB3: 6 | AC3: 4 | AD3: 41 | AE3: 7 | AF3: 4 | AG3: 7 | AH3: 13 | AI3: 4 | AJ3: 4 | AK3: 7 | AM3: Lighting | AN3: b | AO3: (%) ECM usage vs total ECM usage per building sector | AP3: Past Experience | AS3: No capital dollars | AT3: For the financial savings | AU3: =Barrier=Table6[[#This Row],[Barrier]] -> FALSE | AV3: =Reason=Table6[[#This Row],[Reason]] -> FALSE | BV3: 1. Review the report and recommended actions.
A4: Health Authority | B4: Hospitality | C4: 2781 | E4: Office | F4: 3 | I4: 4 | J4: Energy Efficient Equipment | K4: Energy Efficient Equipment | N4: Exterior Lighting | O4: Ext. Lts | P4: Ext. Lts | T4: Heat | U4: 30.435 | V4: 9.615 | W4: 1.66 | X4: 13.39 | Y4: 11.15 | AA4: NVAC Fans/Pumps | AB4: 144 | AC4: 208 | AD4: 140 | AE4: 119 | AF4: 102 | AG4: 75 | AH4: 876 | AI4: 432 | AJ4: 80 | AK4: 296 | AM4: Lighting | AN4: c | AO4: (%) ECM savings representative of Action type | AP4: Past Experience | AS4: Don't know where to begin | AT4: Green branding | AU4: =Barrier=Table6[[#This Row],[Barrier]] -> FALSE | AV4: =Reason=Table6[[#This Row],[Reason]] -> FALSE | BV4: 2. Go to www.bchydro.com/referral to get a list of Energy Professionals to help you with your project.
A5: Hospitality | B5: Hospitality | C5: 2477 | E5: Hospitality | F5: 4 | I5: 5 | J5: Operating and Maintenance Practices | K5: O&M Practices | N5: Fluorescent lighting | O5: Lights | P5: Lighting | T5: Lights | U5: 33.02 | V5: 29.76 | W5: 17.89 | X5: 33.96 | Y5: 18.485 | AA5: Hot Water | AB5: 27 | AC5: 15 | AD5: 72 | AE5: 1 | AF5: 12 | AG5: 6 | AH5: 63 | AI5: 30 | AJ5: 7 | AK5: 16 | AS5: Lack of information | AT5: Better quality equipment | AU5: =Barrier=Table6[[#This Row],[Barrier]] -> FALSE | AV5: =Reason=Table6[[#This Row],[Reason]] -> FALSE | BV5: 3. Go to www.bchydro.com/express to fill out an application form for incentives before any works starts.
A6: Municipalities | B6: Office | C6: 2284 | E6: Retail (food) | F6: 5 | I6: 6 | J6: Management Practice | K6: Management Practice | N6: LED Lighting | O6: Lights | P6: Lighting | T6: Fans | U6: 17.11 | V6: 10.08 | W6: 8.79 | X6: 17.61 | Y6: 12.635 | AA6: Lighting | AB6: 325 | AC6: 257 | AD6: 328 | AE6: 154 | AF6: 393 | AG6: 131 | AH6: 1635 | AI6: 399 | AJ6: 279 | AK6: 1225 | AS6: Leasing limitation | AT6: Competitive advantage | AU6: =Barrier=Table6[[#This Row],[Barrier]] -> FALSE | AV6: =Reason=Table6[[#This Row],[Reason]] -> FALSE | BV6: 4. To find out more about BC Hydro funding call 1 866 522 4713.
A7: Offices | B7: Office | C7: 3620 | N7: Economizer sensor | O7: Heat | P7: Space Cooling | T7: Equip. | U7: 5.65 | V7: 11.19 | W7: 4.98 | X7: 12.005 | Y7: 20.39 | AA7: Office Equipment | AB7: 56 | AC7: 40 | AD7: 4 | AE7: 7 | AF7: 15 | AG7: 6 | AH7: 253 | AI7: 8 | AJ7: 0 | AK7: 37 | AS7: Other | AT7: Other | AU7: =Barrier=Table6[[#This Row],[Barrier]] -> FALSE | AV7: =Reason=Table6[[#This Row],[Reason]] -> FALSE
A8: Property Management | B8: Office | C8: 3620 | N8: Economizer operation | O8: Heat | P8: Space Cooling | T8: Refrig. | U8: 0.69 | V8: 20.03 | W8: 56.29 | X8: 1.475 | Y8: 4.62 | AA8: Other | AB8: 50 | AC8: 37 | AD8: 153 | AE8: 112 | AF8: 164 | AG8: 28 | AH8: 403 | AI8: 110 | AJ8: 63 | AK8: 420
A9: Retail (food) | B9: Retail (food) | C9: 2617 | N9: Air tightness | O9: Heat | P9: Space Cooling | T9: Ext. Lts | U9: 2.625 | V9: 7.455 | W9: 2.33 | X9: 3.48 | Y9: 5.17 | AA9: Refrigeration | AB9: 10 | AC9: 4 | AD9: 37 | AE9: 5 | AF9: 64 | AG9: 6 | AH9: 11 | AI9: 154 | AJ9: 495 | AK9: 14 | AO9: Building consumption
A10: Retail (non-food) | B10: Retail (non-food) | C10: 2617 | N10: Heating and cooling temperature set points | O10: Heat | P10: Space Cooling | T10: Elev. | U10: 0.415 | V10: 1.7 | W10: 0.48 | X10: 3.105 | Y10: 1.295 | AA10: Space Cooling | AB10: 38 | AC10: 16 | AD10: 110 | AE10: 25 | AF10: 26 | AG10: 12 | AH10: 229 | AI10: 44 | AJ10: 11 | AK10: 99 | AO10: End use consumption
A11: School District | B11: Education | C11: 4025 | N11: Heating / cooling controls | O11: Heat | P11: HVAC Fans/Pumps | T11: DHW | U11: 4.455 | V11: 2.52 | W11: 3.28 | X11: 2.77 | Y11: 19.435 | AA11: Space Hating | AB11: 35 | AC11: 16 | AD11: 22 | AE11: 22 | AF11: 27 | AG11: 32 | AH11: 79 | AI11: 29 | AJ11: 4 | AK11: 40 | AO11: end use type consumption
N12: Office Equipment | O12: Equip. | P12: Office Equipment | T12: Cook | U12: 3.68 | V12: 2.775 | W12: 2.6 | X12: 1.6 | Y12: 1.855 | AB12: =SUM(AB3:AB11) -> 691 | AC12: =SUM(AC3:AC11) -> 597 | AD12: 907 | AE12: 452 | AF12: 807 | AG12: 303 | AH12: 3562 | AI12: 1210 | AJ12: 943 | AK12: 2154 | AO12: Typical ECM savings per end use type
N13: Vending Machines | O13: Equip. | P13: Other
N14: Refrigeration | O14: Equip. | P14: Refrigeration | AA14: Segment | AB14: Accommodation | AC14: Colleges/Universities | AD14: Food Service | AE14: Hospital | AF14: Logistics/Warehouses | AG14: Long Term Care | AH14: Office | AI14: Other Commercial | AJ14: Retail - Food | AK14: Retail - Non Food
N15: LED case light | O15: Lights | P15: Lighting | AA15: Cooking | AB15: =AB3/AB$12 -> 0.008683068017 | AC15: 0.006700167504 | AD15: 0.04520396913 | AE15: 0.01548672566 | AF15: 0.004956629492 | AG15: 0.02310231023 | AH15: 0.003649635036 | AI15: 0.003305785124 | AJ15: 0.004241781548 | AK15: 0.003249767874
N16: Programmable thermostat | O16: Equip. | P16: HVAC Fans/Pumps | AA16: HVAC Fans/Pumps | AB16: =AB4/AB$12 -> 0.2083936324 | AC16: 0.3484087102 | AD16: 0.1543550165 | AE16: 0.2632743363 | AF16: 0.126394052 | AG16: 0.2475247525 | AH16: 0.2459292532 | AI16: 0.3570247934 | AJ16: 0.08483563097 | AK16: 0.1374187558
N17: Energy Efficient Equipment | O17: Equip. | P17: Office Equipment | AA17: Hot Water | AB17: =AB5/AB$12 -> 0.03907380608 | AC17: 0.02512562814 | AD17: 0.07938257993 | AE17: 0.002212389381 | AF17: 0.01486988848 | AG17: 0.0198019802 | AH17: 0.01768669287 | AI17: 0.02479338843 | AJ17: 0.007423117709 | AK17: 0.007428040854
N18: Efficient equipment | O18: DHW | P18: Hot Water | AA18: Lighting | AB18: =AB6/AB$12 -> 0.4703328509 | AC18: 0.4304857621 | AD18: 0.361631753 | AE18: 0.3407079646 | AF18: 0.4869888476 | AG18: 0.4323432343 | AH18: 0.4590117911 | AI18: 0.3297520661 | AJ18: 0.295864263 | AK18: 0.5687093779 | AZ18: Lighting
N19: Showerheads | O19: Equip. | P19: Hot Water | AA19: Office Equipment | AB19: =AB7/AB$12 -> 0.08104196816 | AC19: 0.06700167504 | AD19: 0.00441014333 | AE19: 0.01548672566 | AF19: 0.01858736059 | AG19: 0.0198019802 | AH19: 0.07102751263 | AI19: 0.006611570248 | AJ19: 0 | AK19: 0.01717734448
N20: Refrigeration Equipment | O20: Equip. | P20: Refrigeration | AA20: Other | AB20: =AB8/AB$12 -> 0.07235890014 | AC20: 0.06197654941 | AD20: 0.1686879824 | AE20: 0.2477876106 | AF20: 0.2032218092 | AG20: 0.09240924092 | AH20: 0.1131386861 | AI20: 0.09090909091 | AJ20: 0.06680805938 | AK20: 0.1949860724
N21: Steamers & hot food holding cabinets | O21: Equip. | P21: Cooking | T21: Lights | U21: Lighting | AA21: Refrigeration | AB21: =AB9/AB$12 -> 0.01447178003 | AC21: 0.006700167504 | AD21: 0.0407938258 | AE21: 0.0110619469 | AF21: 0.07930607187 | AG21: 0.0198019802 | AH21: 0.003088152723 | AI21: 0.1272727273 | AJ21: 0.5249204666 | AK21: 0.006499535747
N22: Kitchen exhaust | O22: Equip. | P22: HVAC Fans/Pumps | T22: 35.645 | U22: 0.4304857621 | V22: Education | W22: =T22/100-U22 -> -0.07403576214 | AA22: Space Cooling | AB22: =AB10/AB$12 -> 0.05499276411 | AC22: 0.02680067002 | AD22: 0.1212789416 | AE22: 0.05530973451 | AF22: 0.0322180917 | AG22: 0.0396039604 | AH22: 0.06428972487 | AI22: 0.03636363636 | AJ22: 0.01166489926 | AK22: 0.04596100279
N23: Ovens and griddles | O23: Equip. | P23: Cooking | T23: 37.215 | U23: 0.5687093779 | V23: Retail (non-food) | W23: =T23/100-U23 -> -0.1965593779 | AA23: Space Hating | AB23: =AB11/AB$12 -> 0.0506512301 | AC23: 0.02680067002 | AD23: 0.02425578831 | AE23: 0.04867256637 | AF23: 0.03345724907 | AG23: 0.1056105611 | AH23: 0.02217855138 | AI23: 0.02396694215 | AJ23: 0.004241781548 | AK23: 0.01857010214
N24: Dishwasher | O24: Refrig. | P24: Hot Water | T24: 20.22 | U24: 0.4252509016 | V24: Office | W24: -0.2230509016
T25: 37.44 | U25: 0.295864263 | V25: Retail (food) | W25: 0.07853573701 | AA25: Segment | AB25: Education | AC25: Retail (non-food) | AD25: Office | AE25: Retail (food) | AF25: Hospitality
T26: 23.655 | U26: 0.41446135 | V26: Hospitality | W26: -0.17791135 | AA26: Cooking | AB26: 0.006700167504 | AC26: 0.003249767874 | AD26: 0.003970683217 | AE26: 0.004241781548 | AF26: 0.01575736797
J27: =INDIRECT("HVAC_and_Refrigeration!D5") ->  | AA27: HVAC Fans/Pumps | AB27: 0.3484087102 | AC27: 0.1374187558 | AD27: 0.2431160329 | AE27: 0.08483563097 | AF27: 0.2397309071
AA28: Hot Water | AB28: 0.02512562814 | AC28: 0.007428040854 | AD28: 0.01911665659 | AE28: 0.007423117709 | AF28: 0.02036272522
AA29: Lighting | AB29: 0.4042357621 | AC29: 0.287081753 | AD29: 0.3174079646 | AE29: 0.4521888476 | AF29: 0.3806432343
AA30: Ext. Lts | AB30: 0.02625 | AC30: 0.07455 | AD30: 0.0233 | AE30: 0.0348 | AF30: 0.0517
AA31: Office Equipment | AB31: 0.06700167504 | AC31: 0.01717734448 | AD31: 0.03207548116 | AE31: 0 | AF31: 0.03877689134
AA32: Other | AB32: 0.06197654941 | AC32: 0.1949860724 | AD32: 0.1357565287 | AE32: 0.06680805938 | AF32: 0.1375185839
AA33: Refrigeration | AB33: 0.006700167504 | AC33: 0.006499535747 | AD33: 0.06988898396 | AE33: 0.5249204666 | AF33: 0.01511190238
AA34: Space Cooling | AB34: 0.02680067002 | AC34: 0.04596100279 | AD34: 0.04429048431 | AE34: 0.01166489926 | AF34: 0.04996881967
AA35: Space Heating | AB35: 0.02680067002 | AC35: 0.01857010214 | AD35: 0.02653424753 | AE35: 0.004241781548 | AF35: 0.06831145251
AA36: *From 2016 CPR
Y37: Schools
Y38: 2
Y39: 86
Y40: 4
Y41: 160
Y42: 9
Y43: 69
Y44: 0
Y45: 10
Y46: 15
